Workbook

Sheet TOC
A2: =+'Front Pg'!A2:F2 -> LIBERTY LOCAL SCHOOL DISTRICT - TRUMBULL COUNTY
A3: Your Five Year Forecast
A4: Table of Contents
B5: 1 | C5: Table of Contents
B6: 2 | C6: Front Pg | F6: Cover Page with Base Data
B7: 3 | C7: New State Model Fcast | F7: The Actual Five Year Forecast
B8: 4 | C8: State Model By % | F8: Management tool of % Change in lines
B9: 5 | C9: Note Calc | F9: All entries are made except Tax Information
B10: 6 | C10: Tax | F10: The Property & Income Tax Calculations
B11: 7 | C11: PASS | F11: The PASS Model in SF3 Format
B12: 8 | C12: PASS2 | F12: The PASS Model in State Original Format
B13: 9 | C13: STAFF_Plan | F13: The Staffing Plan
B14: 10 | C14: Graphs | F14: The Graphs for a presentation and Notes
B15: 11 | C15: Students | F15: Student Count from October
A21: Instructions
C22: Your Footnotes

Sheet Front Pg
A2: =UPPER(+D58)&" - "&UPPER(D59)&" COUNTY" -> LIBERTY LOCAL SCHOOL DISTRICT - TRUMBULL COUNTY
A3: SCHEDULE OF REVENUE, EXPENDITURES, AND CHANGES
A4: IN FUND BALANCES FOR THE FISCAL YEARS ENDED
A5: ="ACTUAL JUNE 30, "&A51&", "&A50&", "&A49 -> ACTUAL JUNE 30, 2008, 2009, 2010
A6: FORECASTED FISCAL YEARS ENDING
A7: ="JUNE 30, "&A47&" THROUGH "&E47 -> JUNE 30, 2011 THROUGH 2015
A39: Forecast Provided By
A40: =UPPER(+D62) -> TRACY OBERMIYER, CFO
A41: Treasurer's Office
A43: 330-759-0799
A47: =+D64 -> 2011 | B47: =+A47+1 -> 2012 | C47: =+B47+1 -> 2013 | D47: =+C47+1 -> 2014 | E47: =+D47+1 -> 2015
A49: =+A47-1 -> 2010
A50: =+A49-1 -> 2009
A51: =+A50-1 -> 2008
A53: For the Fiscal Years Ended June 30, 2007, 2008, 2009 Actual;
A54: Forecasted Fiscal Year Ending June 30, 2010 through 2014
A58: Enter School District Name | D58: Liberty Local School District
A59: Enter County | D59: Trumbull
A60: IRN # | D60: 050195
A62: Treasurer Name, Title | D62: Tracy Obermiyer, CFO
A64: Enter the 1st Fiscal Year of Forecast | D64: 2011

Sheet New State Model Fcast
A1: =+'Front Pg'!D58 -> Liberty Local School District
A2: =+'Front Pg'!D59&" County" -> Trumbull County
A3: Schedule of Revenues, Expenditures and Changes in Fund Balances
A4: ="For the Fiscal Years Ended June 30, "&'Front Pg'!A51&", "&'Front Pg'!A50&" and "&'Front Pg'!A49&" Actual;" -> For the Fiscal Years Ended June 30, 2008, 2009 and 2010 Actual;
A5: ="Forecasted Fiscal Years Ending June 30, "&'Front Pg'!A47&" Through "&'Front Pg'!E47 -> Forecasted Fiscal Years Ending June 30, 2011 Through 2015
F7: Actual | J7: Forecasted
C8: Fiscal Year | D8: Fiscal Year | E8: Fiscal Year | F8: Fiscal Year | G8: Fiscal Year | H8: Fiscal Year | I8: Average | J8: Fiscal Year | K8: Fiscal Year | L8: Fiscal Year | M8: Fiscal Year | N8: Fiscal Year
C9: 2005 | D9: 2006 | E9: 2007 | F9: 2008 | G9: 2009 | H9: 2010 | I9: Change | J9: =+'Front Pg'!A47 -> 2011 | K9: =+'Front Pg'!B47 -> 2012 | L9: =+'Front Pg'!C47 -> 2013 | M9: =+'Front Pg'!D47 -> 2014 | N9: =+'Front Pg'!E47 -> 2015
B11: Revenues
A12: 1.01 | B12: General Property Tax (Real Estate) | C12: 14595320 | D12: 15132533 | E12: 8325229 | F12: 7453348 | G12: 7928867 | H12: 8770342 | I12: =IF(OR(G12=0,F12 = 0),0,AVERAGE((G12-F12)/F12,(H12-G12)/G12)) -> 0.08496370406 | J12: =+'Note Calc'!D27 -> 7847606 | K12: =+'Note Calc'!E27 -> 7599224.062 | L12: =+'Note Calc'!F27 -> 7396527.594 | M12: =+'Note Calc'!G27 -> 7087560.395 | N12: =+'Note Calc'!H27 -> 6714468.315
A13: 1.02 | B13: Tangible Personal Property | C13: 3703883 | D13: 2777841 | E13: 368999 | F13: 323846 | G13: 172823 | H13: 48780 | I13: -0.5920439643 | J13: =+'Note Calc'!E72 -> 13980.54428 | K13: =+'Note Calc'!F72 -> 0 | L13: =+'Note Calc'!G72 -> 0 | M13: =+'Note Calc'!H72 -> 0 | N13: =+'Note Calc'!I72 -> 0
A14: 1.03 | B14: Income Tax | C14: 0 | D14: 0 | E14: 0 | F14: 0 | G14: 0 | I14: 0 | J14: ='Note Calc'!E80 -> 0 | K14: ='Note Calc'!F80 -> 0 | L14: ='Note Calc'!G80 -> 0 | M14: ='Note Calc'!H80 -> 0 | N14: ='Note Calc'!I80 -> 0
A15: 1.035 | B15: Unrestricted State Grants-in-Aid | C15: 45013795 | D15: 44510117 | E15: 5438676 | F15: 5338782 | G15: 5297121 | H15: 5105746 | I15: -0.02196579046 | J15: ='Note Calc'!E166 -> 4913821.64 | K15: ='Note Calc'!F166 -> 4807519.55 | L15: ='Note Calc'!G166 -> 4894315.683 | M15: ='Note Calc'!H166 -> 5289025.594 | N15: ='Note Calc'!I166 -> 5683735.504
A16: 1.04 | B16: Restricted State Grants-in-Aid | C16: 5380199 | D16: 5819049 | E16: 122172 | F16: 133242 | G16: 161585 | H16: 8505 | I16: -0.3673234759 | J16: ='Note Calc'!E167 -> 8569 | K16: ='Note Calc'!F167 -> 8569 | L16: ='Note Calc'!G167 -> 8569 | M16: ='Note Calc'!H167 -> 8569 | N16: ='Note Calc'!I167 -> 8569
A17: 1.045 | B17: Restricted Federal Grants-in-Aid - SFSF/Ed Jobs | C17: 0 | D17: 0 | H17: 310815 | I17: 0 | J17: ='Note Calc'!E168 -> 428035 | K17: ='Note Calc'!F168 -> 219093 | L17: ='Note Calc'!G168 -> 0 | M17: ='Note Calc'!H168 -> 0 | N17: ='Note Calc'!I168 -> 0
A18: 1.05 | B18: Property Tax Allocation | C18: 2107194 | D18: 2202346 | E18: 838584 | F18: 1300318 | G18: 1554296 | H18: 1676450 | I18: 0.136955561 | J18: =+'Note Calc'!E135 -> 1661392.33 | K18: =+'Note Calc'!F135 -> 1612262.519 | L18: =+'Note Calc'!G135 -> 1565994.64 | M18: =+'Note Calc'!H135 -> 1258605.083 | N18: =+'Note Calc'!I135 -> 1147454.408
A19: 1.06 | B19: All Other Revenues | C19: 2595250 | D19: 3219668 | E19: 775039 | F19: 998728 | G19: 958082 | H19: 894303 | I19: -0.05363361306 | J19: =+'Note Calc'!E96 -> 1041500.227 | K19: =+'Note Calc'!F96 -> 1048769.729 | L19: =+'Note Calc'!G96 -> 1056111.927 | M19: =+'Note Calc'!H96 -> 1063527.546 | N19: =+'Note Calc'!I96 -> 1071017.321
A20: 1.07 | B20: Total Revenues | C20: 73395641 | D20: 73661554 | E20: =SUM(E12:E19) -> 15868699 | F20: =SUM(F12:F19) -> 15548264 | G20: =SUM(G12:G19) -> 16072774 | H20: =SUM(H12:H19) -> 16814941 | I20: 0.03995486356 | J20: =SUM(J12:J19) -> 15914904.74 | K20: =SUM(K12:K19) -> 15295437.86 | L20: =SUM(L12:L19) -> 14921518.84 | M20: =SUM(M12:M19) -> 14707287.62 | N20: =SUM(N12:N19) -> 14625244.55
B22: Other Financing Sources
A23: 2.01 | B23: Proceeds from Sale of Notes | C23: 3700000 | D23: 6462000 | G23: 563382 | H23: 1776000 | I23: =IF(OR(G23=0,F23 = 0),0,AVERAGE((G23-F23)/F23,(H23-G23)/G23)) -> 0 | J23: ='Note Calc'!E182 -> 0 | K23: ='Note Calc'!F182 -> 0 | L23: ='Note Calc'!G182 -> 0 | M23: ='Note Calc'!H182 -> 0 | N23: ='Note Calc'!I182 -> 0
A24: 2.02 | B24: State Emergency Loans and Advancements (Approved) | C24: 7554000 | D24: 0 | I24: 0 | J24: ='Note Calc'!E185 -> 0 | K24: ='Note Calc'!F185 -> 0 | L24: ='Note Calc'!G185 -> 0 | M24: ='Note Calc'!H185 -> 0 | N24: ='Note Calc'!I185 -> 0
A25: 2.04 | B25: Operating Transfers-In | C25: 0 | D25: 0 | G25: 87352 | I25: 0 | J25: ='Note Calc'!E188 -> 0 | K25: ='Note Calc'!F188 -> 0 | L25: ='Note Calc'!G188 -> 0 | M25: ='Note Calc'!H188 -> 0 | N25: ='Note Calc'!I188 -> 0
A26: 2.05 | B26: Advances-In | C26: 0 | D26: 0 | E26: 3397021 | F26: 54866 | I26: 0 | J26: ='Note Calc'!E189 -> 0 | K26: ='Note Calc'!F189 -> 0 | L26: ='Note Calc'!G189 -> 0 | M26: ='Note Calc'!H189 -> 0 | N26: ='Note Calc'!I189 -> 0
A27: 2.06 | B27: All Other Financing Sources | C27: 0 | D27: 0 | G27: 224234 | H27: 302796 | I27: 0 | J27: ='Note Calc'!E195 -> 0 | K27: ='Note Calc'!F195 -> 0 | L27: ='Note Calc'!G195 -> 0 | M27: ='Note Calc'!H195 -> 0 | N27: ='Note Calc'!I195 -> 0
A28: 2.07 | B28: Total Other Financing Sources | C28: 11254000 | D28: 6462000 | E28: =SUM(E23:E27) -> 3397021 | F28: =SUM(F23:F27) -> 54866 | G28: =SUM(G23:G27) -> 874968 | H28: =SUM(H23:H27) -> 2078796 | I28: 8.161608205 | J28: =SUM(J23:J27) -> 0 | K28: =SUM(K23:K27) -> 0 | L28: =SUM(L23:L27) -> 0 | M28: =SUM(M23:M27) -> 0 | N28: =SUM(N23:N27) -> 0
A29: 2.08 | B29: Total Revenues and Other Financing Sources | C29: 84649641 | D29: 80123554 | E29: =+E20+E28 -> 19265720 | F29: =+F20+F28 -> 15603130 | G29: =+G20+G28 -> 16947742 | H29: =+H20+H28 -> 18893737 | I29: 0.1004995237 | J29: =+J28+J20 -> 15914904.74 | K29: =+K28+K20 -> 15295437.86 | L29: =+L28+L20 -> 14921518.84 | M29: =+M28+M20 -> 14707287.62 | N29: =+N28+N20 -> 14625244.55
B31: Expenditures
A32: 3.01 | B32: Personal Services | C32: 46550034 | D32: 40364344 | E32: 7670134 | F32: 8155009 | G32: 7933566 | H32: 7516913 | I32: =IF(OR(G32=0,F32 = 0),0,AVERAGE((G32-F32)/F32,(H32-G32)/G32)) -> -0.03983598835 | J32: 7253818 | K32: 7313914 | L32: 7438251 | M32: 7564701 | N32: 7693301
A33: 3.02 | B33: Employees' Retirement/Insurance Benefits | C33: 17158645 | D33: 17041621 | E33: 3418890 | F33: 3115650 | G33: 3919536 | H33: 3740930 | I33: 0.1062236768 | J33: 3473269 | K33: 3670487 | L33: 3902413 | M33: 4148589 | N33: 4411123
A34: 3.03 | B34: Purchased Services | C34: 11081278 | D34: 13057650 | E34: 2158261 | F34: 2776176 | G34: 3262870 | H34: 3405437 | I34: 0.1095023367 | J34: =+'Note Calc'!E305 -> 4217896.98 | K34: =+'Note Calc'!F305 -> 4349836.831 | L34: =+'Note Calc'!G305 -> 4462603.365 | M34: =+'Note Calc'!H305 -> 4578531.998 | N34: =+'Note Calc'!I305 -> 4697714.512
A35: 3.04 | B35: Supplies and Materials | C35: 607190 | D35: 746621 | E35: 603721 | F35: 502654 | G35: 456696 | H35: 318878 | I35: -0.1966012715 | J35: =+'Note Calc'!E317 -> 322067 | K35: =+'Note Calc'!F317 -> 325288 | L35: =+'Note Calc'!G317 -> 328541 | M35: =+'Note Calc'!H317 -> 331826 | N35: =+'Note Calc'!I317 -> 335144
A36: 3.05 | B36: Capital Outlay | C36: 42843 | D36: 1408 | E36: 232560 | F36: 88983 | G36: 29404 | H36: 33960 | I36: -0.2573049767 | J36: =+'Note Calc'!E330 -> 36337.2 | K36: =+'Note Calc'!F330 -> 38880.804 | L36: =+'Note Calc'!G330 -> 41602.46028 | M36: =+'Note Calc'!H330 -> 44514.6325 | N36: =+'Note Calc'!I330 -> 47630.65677
A37: 3.06 | B37: Intergovernmental | C37: 0 | D37: 0 | E37: 0 | F37: 0 | G37: 0 | I37: 0 | J37: 0 | K37: 0 | L37: 0 | M37: 0 | N37: 0
B38: Debt Service: | C38: 0 | D38: 0
A39: 4.01 | B39: Principal-All (Historical Only) | C39: 0 | D39: 0 | I39: =IF(OR(G39=0,F39 = 0),0,AVERAGE((G39-F39)/F39,(H39-G39)/G39)) -> 0 | J39: 0 | K39: 0 | L39: 0 | M39: 0 | N39: 0
A40: 4.02 | B40: Principal-Notes | C40: 3700000 | D40: 0 | E40: 410767 | F40: 376187 | G40: 355200 | H40: 355200 | I40: -0.02789437168 | J40: 523000 | K40: 523000 | L40: 523000 | M40: 523000 | N40: ='Note Calc'!I338 -> 355200
A41: 4.03 | B41: Principal-State Loans | C41: 0 | D41: 3777000 | E41: 0 | F41: 0 | G41: 0 | H41: 0 | I41: 0 | J41: ='Note Calc'!E339 -> 0 | K41: ='Note Calc'!F339 -> 0 | L41: ='Note Calc'!G339 -> 0 | M41: ='Note Calc'!H339 -> 0 | N41: ='Note Calc'!I339 -> 0
A42: 4.04 | B42: Principal-State Advancements | C42: 0 | D42: 0 | E42: 0 | F42: 0 | G42: 0 | H42: 0 | I42: 0 | J42: ='Note Calc'!E340 -> 0 | K42: ='Note Calc'!F340 -> 0 | L42: ='Note Calc'!G340 -> 0 | M42: ='Note Calc'!H340 -> 0 | N42: ='Note Calc'!I340 -> 0
A43: 4.05 | B43: Principal-HB 264 Loans | C43: 0 | D43: 0 | E43: 0 | F43: 0 | G43: 0 | H43: 0 | I43: 0 | J43: ='Note Calc'!E348 -> 0 | K43: ='Note Calc'!F348 -> 0 | L43: ='Note Calc'!G348 -> 0 | M43: ='Note Calc'!H348 -> 0 | N43: ='Note Calc'!I348 -> 0
A44: 4.055 | B44: Principal- | C44: 68706 | D44: 0 | E44: 0 | F44: 0 | G44: 0 | H44: 0 | I44: 0 | J44: ='Note Calc'!E341 -> 0 | K44: ='Note Calc'!F341 -> 0 | L44: ='Note Calc'!G341 -> 0 | M44: ='Note Calc'!H341 -> 0 | N44: ='Note Calc'!I341 -> 0
A45: 4.06 | B45: Interest and Fiscal Charges | C45: 0 | D45: 0 | E45: 0 | F45: 0 | G45: 30813 | H45: 79379 | I45: 0 | J45: ='Note Calc'!E352 -> 61850 | K45: ='Note Calc'!F352 -> 54346 | L45: ='Note Calc'!G352 -> 42268 | M45: ='Note Calc'!H352 -> 30192 | N45: ='Note Calc'!I352 -> 18115
A46: 4.3 | B46: Other Objects | C46: 1022488 | D46: 615430 | E46: 1094438 | F46: 948169 | G46: 1432740 | H46: 2401551 | I46: 0.5936271508 | J46: ='Note Calc'!E369 -> 1502000 | K46: ='Note Calc'!F369 -> 1400933 | L46: ='Note Calc'!G369 -> 1407841.4 | M46: ='Note Calc'!H369 -> 1414818.884 | N46: ='Note Calc'!I369 -> 1421866.143
A47: 4.5 | B47: Total Expenditures | C47: 80231184 | D47: 75604074 | E47: =SUM(E32:E46) -> 15588771 | F47: =SUM(F32:F46) -> 15962828 | G47: =SUM(G32:G46) -> 17420825 | H47: =SUM(H32:H46) -> 17852248 | I47: 0.05805089852 | J47: =SUM(J32:J46) -> 17390238.18 | K47: =SUM(K32:K46) -> 17676685.63 | L47: =SUM(L32:L46) -> 18146520.23 | M47: =SUM(M32:M46) -> 18636173.51 | N47: =SUM(N32:N46) -> 18980094.31
B49: Other Financing Uses
A50: 5.01 | B50: Operating Transfers-Out | D50: 0 | E50: 3591057 | F50: 24104 | G50: 148167 | H50: 424370 | I50: =IF(OR(G50=0,F50 = 0),0,AVERAGE((G50-F50)/F50,(H50-G50)/G50)) -> 3.505560545 | J50: =+'Note Calc'!E376 -> 60000 | K50: =+'Note Calc'!F376 -> 65000 | L50: =+'Note Calc'!G376 -> 70000 | M50: =+'Note Calc'!H376 -> 75000 | N50: =+'Note Calc'!I376 -> 75000
A51: 5.02 | B51: Advances-Out | C51: 0 | D51: 30800 | E51: 0 | F51: 0 | G51: 0 | H51: 0 | I51: 0 | J51: =+'Note Calc'!E377 -> 0 | K51: =+'Note Calc'!F377 -> 0 | L51: =+'Note Calc'!G377 -> 0 | M51: =+'Note Calc'!H377 -> 0 | N51: =+'Note Calc'!I377 -> 0
A52: 5.03 | B52: All Other Financing Uses | C52: 0 | D52: 0 | E52: 0 | F52: 0 | G52: 0 | H52: 0 | I52: 0 | J52: ='Note Calc'!E381 -> 0 | K52: ='Note Calc'!F381 -> 0 | L52: ='Note Calc'!G381 -> 0 | M52: ='Note Calc'!H381 -> 0 | N52: ='Note Calc'!I381 -> 0
A53: 5.04 | B53: Total Other Financing Uses | C53: 0 | D53: 30800 | E53: =SUM(E50:E52) -> 3591057 | F53: =SUM(F50:F52) -> 24104 | G53: =SUM(G50:G52) -> 148167 | H53: =SUM(H50:H52) -> 424370 | I53: 3.505560545 | J53: =SUM(J50:J52) -> 60000 | K53: =SUM(K50:K52) -> 65000 | L53: =SUM(L50:L52) -> 70000 | M53: =SUM(M50:M52) -> 75000 | N53: =SUM(N50:N52) -> 75000
A54: 5.05 | B54: Total Expenditures and Other Financing Uses | C54: 80231184 | D54: 75634874 | E54: =+E47+E53 -> 19179828 | F54: =+F47+F53 -> 15986932 | G54: =+G47+G53 -> 17568992 | H54: =+H47+H53 -> 18276618 | I54: 0.06961827934 | J54: =+J53+J47 -> 17450238.18 | K54: =+K53+K47 -> 17741685.63 | L54: =+L53+L47 -> 18216520.23 | M54: =+M53+M47 -> 18711173.51 | N54: =+N53+N47 -> 19055094.31
A55: 6.01 | B55: Excess of Revenues and Other Financing Sources over (under) Expenditures and Other Financing Uses | C55: 4418457 | D55: 4488680 | E55: =+E29-E54 -> 85892 | F55: =+F29-F54 -> -383802 | G55: =+G29-G54 -> -621250 | H55: =+H29-H54 -> 617119 | I55: -0.6873386665 | J55: =+J29-J54 -> -1535333.439 | K55: =+K29-K54 -> -2446247.774 | L55: =+L29-L54 -> -3295001.382 | M55: =+M29-M54 -> -4003885.897 | N55: =+N29-N54 -> -4429849.763
A57: 7.01 | B57: Cash Balance July 1 - Excluding Proposed Renewal/Replacement and New Levies | C57: 1743325 | D57: 2675132 | E57: 1544279 | F57: =+E59 -> 1630171 | G57: =+F59 -> 1246369 | H57: =+G59 -> 625119 | I57: =IF(OR(G57=0,F57 = 0),0,AVERAGE((G57-F57)/F57,(H57-G57)/G57)) -> -0.366942271 | J57: =+H59 -> 1242238 | K57: =+J59 -> -293095.4391 | L57: =+K59 -> -2739343.213 | M57: =+L59 -> -6034344.595 | N57: =+M59 -> -10038230.49
A59: 7.02 | B59: Cash Balance June 30 | C59: 2675132 | D59: 7163812 | E59: =+E55+E57 -> 1630171 | F59: =+F55+F57 -> 1246369 | G59: =+G55+G57 -> 625119 | H59: =+H55+H57 -> 1242238 | I59: =IF(OR(G59=0,F59 = 0),0,AVERAGE((G59-F59)/F59,(H59-G59)/G59)) -> 0.2443772726 | J59: =+J55+J57 -> -293095.4391 | K59: =+K55+K57 -> -2739343.213 | L59: =+L55+L57 -> -6034344.595 | M59: =+M55+M57 -> -10038230.49 | N59: =+N55+N57 -> -14468080.25
A61: 8.01 | B61: Estimated Encumbrances June 30 | C61: 248305 | D61: 250000 | E61: 223812 | F61: 422023 | G61: 421480 | H61: 210661 | I61: =IF(OR(G61=0,F61 = 0),0,AVERAGE((G61-F61)/F61,(H61-G61)/G61)) -> -0.2507370472 | J61: 0 | K61: ='Note Calc'!F390 -> 210661 | L61: ='Note Calc'!G390 -> 210661 | M61: ='Note Calc'!H390 -> 210661 | N61: ='Note Calc'!I390 -> 210661
B63: Reservation of Fund Balance
A64: 9.01 | B64: Textbooks and Instructional Materials | C64: 862717 | D64: 475156 | F64: 0 | G64: 0 | H64: 0 | I64: =IF(OR(G64=0,F64 = 0),0,AVERAGE((G64-F64)/F64,(H64-G64)/G64)) -> 0 | J64: =+'Note Calc'!E394 -> 0 | K64: =+'Note Calc'!F394 -> 0 | L64: =+'Note Calc'!G394 -> 0 | M64: =+'Note Calc'!H394 -> 0 | N64: =+'Note Calc'!I394 -> 0
A65: 9.02 | B65: Capital Improvements | C65: 0 | D65: 0 | E65: 0 | F65: 0 | G65: 0 | H65: 0 | I65: 0 | J65: =+'Note Calc'!E395 -> 0 | K65: =+'Note Calc'!F395 -> 0 | L65: =+'Note Calc'!G395 -> 0 | M65: =+'Note Calc'!H395 -> 0 | N65: =+'Note Calc'!I395 -> 0
A66: 9.03 | B66: Budget Reserve | C66: 0 | D66: 0 | E66: 0 | F66: 0 | G66: 0 | H66: 0 | I66: 0 | J66: =+'Note Calc'!E396 -> 0 | K66: =+'Note Calc'!F396 -> 0 | L66: =+'Note Calc'!G396 -> 0 | M66: =+'Note Calc'!H396 -> 0 | N66: =+'Note Calc'!I396 -> 0
A67: 9.04 | B67: DPIA | C67: 0 | D67: 0 | E67: 0 | F67: 0 | G67: 0 | H67: 0 | I67: 0 | J67: =+'Note Calc'!E397 -> 0 | K67: =+'Note Calc'!F397 -> 0 | L67: =+'Note Calc'!G397 -> 0 | M67: =+'Note Calc'!H397 -> 0 | N67: =+'Note Calc'!I397 -> 0
A68: 9.045 | B68: Fiscal Stabilization | E68: 0 | F68: 0 | G68: 0 | H68: 0 | I68: 0 | J68: =+'Note Calc'!E398 -> 0 | K68: =+'Note Calc'!F398 -> 0 | L68: =+'Note Calc'!G398 -> 0 | M68: =+'Note Calc'!H398 -> 0 | N68: =+'Note Calc'!I398 -> 0
A69: 9.05 | B69: Debt Service | C69: 0 | D69: 0 | F69: 0 | G69: 0 | H69: 0 | I69: 0 | J69: =+'Note Calc'!E399 -> 0 | K69: =+'Note Calc'!F399 -> 0 | L69: =+'Note Calc'!G399 -> 0 | M69: =+'Note Calc'!H399 -> 0 | N69: =+'Note Calc'!I399 -> 0
A70: 9.06 | B70: Property Tax Advances | C70: 0 | D70: 0 | E70: 0 | F70: 0 | G70: 0 | H70: 0 | I70: 0 | J70: =+'Note Calc'!E400 -> 0 | K70: =+'Note Calc'!F400 -> 0 | L70: =+'Note Calc'!G400 -> 0 | M70: =+'Note Calc'!H400 -> 0 | N70: =+'Note Calc'!I400 -> 0
A71: 9.07 | B71: Bus Purchases | C71: 21732 | D71: 45696 | E71: 0 | F71: 0 | G71: 0 | H71: 0 | I71: 0 | J71: =+'Note Calc'!E401 -> 0 | K71: =+'Note Calc'!F401 -> 0 | L71: =+'Note Calc'!G401 -> 0 | M71: =+'Note Calc'!H401 -> 0 | N71: =+'Note Calc'!I401 -> 0
A72: 9.08 | B72: Subtotal | C72: 884449 | D72: 520852 | E72: 0 | F72: 0 | G72: 0 | H72: 0 | I72: 0 | J72: =SUM(J64:J71) -> 0 | K72: =SUM(K64:K71) -> 0 | L72: =SUM(L64:L71) -> 0 | M72: =SUM(M64:M71) -> 0 | N72: =SUM(N64:N71) -> 0
A73: 10.01 | B73: Fund Balance June 30 for Certification of Appropriations | C73: 1542378 | D73: 6392960 | E73: =+E59-E61 -> 1406359 | F73: =+F59-F61 -> 824346 | G73: =+G59-G61 -> 203639 | H73: =+H59-H61 -> 1031577 | I73: =IF(OR(G73=0,F73 = 0),0,AVERAGE((G73-F73)/F73,(H73-G73)/G73)) -> 1.656372654 | J73: =+J59-J61-J72 -> -293095.4391 | K73: =+K59-K61-K72 -> -2950004.213 | L73: =+L59-L61-L72 -> -6245005.595 | M73: =+M59-M61-M72 -> -10248891.49 | N73: =+N59-N61-N72 -> -14678741.25
B75: Revenue from Replacement/Renewal Levies
A76: 11.01 | B76: Income Tax - Renewal | C76: 0 | D76: 0 | E76: 0 | F76: 0 | G76: 0 | H76: 0 | I76: =IF(OR(G76=0,F76 = 0),0,AVERAGE((G76-F76)/F76,(H76-G76)/G76)) -> 0
A77: 11.02 | B77: Property Tax - Renewal or Replacement | C77: 0 | D77: 0 | F77: 0 | G77: 0 | H77: 0 | I77: =IF(OR(G77=0,F77 = 0),0,AVERAGE((G77-F77)/F77,(H77-G77)/G77)) -> 0 | J77: =+'Note Calc'!E50 -> 0 | K77: =+'Note Calc'!F50 -> 385153.6 | L77: =+'Note Calc'!G50 -> 740680 | M77: =+'Note Calc'!H50 -> 1177236.12 | N77: =+'Note Calc'!I50 -> 1177236.12
E78: 0
A79: 11.3 | B79: Cumulative Balance of Replacement/Renewal Levies | C79: 0 | D79: 0 | E79: 0 | F79: 0 | G79: 0 | H79: =+H76+H77 -> 0 | I79: =IF(OR(G79=0,F79 = 0),0,AVERAGE((G79-F79)/F79,(H79-G79)/G79)) -> 0 | J79: =+J76+J77 -> 0 | K79: =SUM(K76:K77)+J79 -> 385153.6 | L79: =SUM(L76:L77)+K79 -> 1125833.6 | M79: =SUM(M76:M77)+L79 -> 2303069.72 | N79: =SUM(N76:N77)+M79 -> 3480305.84
A80: 12.01 | B80: Fund Balance June 30 for Certification of Contracts, Salary Schedules and Other Obligations | C80: 1542378 | D80: 6392960 | E80: =+E73+E79 -> 1406359 | F80: =+F73+F79 -> 824346 | G80: =+G73+G79 -> 203639 | H80: =+H73+H79 -> 1031577 | I80: =IF(OR(G80=0,F80 = 0),0,AVERAGE((G80-F80)/F80,(H80-G80)/G80)) -> 1.656372654 | J80: =+J73+J79 -> -293095.4391 | K80: =+K73+K79 -> -2564850.613 | L80: =+L73+L79 -> -5119171.995 | M80: =+M73+M79 -> -7945821.772 | N80: =+N73+N79 -> -11198435.41
E81: 0 | F81: 0 | G81: 0 | H81: 0
B82: Revenue from New Levies
A83: 13.01 | B83: Income Tax - New | E83: 0 | F83: 0 | G83: 0 | H83: 0 | I83: =IF(OR(G83=0,F83 = 0),0,AVERAGE((G83-F83)/F83,(H83-G83)/G83)) -> 0 | J83: ='Note Calc'!E58 -> 0 | K83: ='Note Calc'!F58 -> 0 | L83: ='Note Calc'!G58 -> 0 | M83: ='Note Calc'!H58 -> 0 | N83: ='Note Calc'!I58 -> 0
A84: 13.02 | B84: Property Tax - New | C84: 0 | D84: 0 | I84: =IF(OR(G84=0,F84 = 0),0,AVERAGE((G84-F84)/F84,(H84-G84)/G84)) -> 0 | J84: ='Note Calc'!E59 -> 0 | K84: ='Note Calc'!F59 -> 0 | L84: ='Note Calc'!G59 -> 0 | M84: ='Note Calc'!H59 -> 0 | N84: ='Note Calc'!I59 -> 0
A86: 13.03 | B86: Cumulative Balance of New Levies | C86: 0 | D86: 0 | I86: =IF(OR(G86=0,F86 = 0),0,AVERAGE((G86-F86)/F86,(H86-G86)/G86)) -> 0 | J86: =SUM(J83:J84) -> 0 | K86: =SUM(K83:K84) -> 0 | L86: =SUM(L83:L84) -> 0 | M86: =SUM(M83:M84) -> 0 | N86: =SUM(N83:N84) -> 0
E87: 0 | F87: 0 | G87: 0 | H87: 0
A88: 14.01 | B88: Revenue from Future State Advancements | D88: 0 | I88: =IF(OR(G88=0,F88 = 0),0,AVERAGE((G88-F88)/F88,(H88-G88)/G88)) -> 0 | J88: ='Note Calc'!E198 -> 0 | K88: ='Note Calc'!F198 -> 0 | L88: ='Note Calc'!G198 -> 0 | M88: ='Note Calc'!H198 -> 0 | N88: ='Note Calc'!I198 -> 0
E89: 0 | F89: 0 | G89: 0 | H89: 0
A90: 15.01 | B90: Unreserved Fund Balance June 30 | C90: 1542378 | D90: 6392960 | E90: =+E80+E86 -> 1406359 | F90: =+F80+F86 -> 824346 | G90: =+G80+G86 -> 203639 | H90: =+H80+H86 -> 1031577 | I90: =IF(OR(G90=0,F90 = 0),0,AVERAGE((G90-F90)/F90,(H90-G90)/G90)) -> 1.656372654 | J90: =+J80+J86+J88 -> -293095.4391 | K90: =+K80+K86+K88 -> -2564850.613 | L90: =+L80+L86+L88 -> -5119171.995 | M90: =+M80+M86+M88 -> -7945821.772 | N90: =+N80+N86+N88 -> -11198435.41
G91: 0
B92: ADM Forecasts
A93: 20.01 | B93: Kindergarten - October Count | E93: 0 | F93: 0 | G93: 0 | H93: 0 | I93: =IF(OR(G93=0,F93 = 0),0,AVERAGE((G93-F93)/F93,(H93-G93)/G93)) -> 0 | J93: 101 | K93: =+J93*1 -> 101 | L93: 101 | M93: 101 | N93: 101
A94: 20.015 | B94: Grades 1-12 - October Count | F94: 0 | G94: 0 | H94: 0 | I94: =IF(OR(G94=0,F94 = 0),0,AVERAGE((G94-F94)/F94,(H94-G94)/G94)) -> 0 | J94: 1561 | K94: 1561 | L94: 1561 | M94: 1561 | N94: 1561
B95: State Fiscal Stabilization Funds- Information Only
A96: 21.01 | B96: Personal Services SFSF | F96: 0 | G96: 0 | H96: 279666 | I96: =IF(OR(G96=0,F96 = 0),0,AVERAGE((G96-F96)/F96,(H96-G96)/G96)) -> 0 | J96: =+'Note Calc'!E418 -> 385139 | K96: =+'Note Calc'!F418 -> 0 | L96: =+'Note Calc'!G418 -> 0 | M96: =+'Note Calc'!H418 -> 0 | N96: =+'Note Calc'!I418 -> 0
A97: 21.02 | B97: Employees Retirement/Insurance Benefits SFSF | F97: 0 | G97: 0 | H97: 31148 | I97: 0 | J97: =+'Note Calc'!E419 -> 42896 | K97: =+'Note Calc'!F419 -> 0 | L97: =+'Note Calc'!G419 -> 0 | M97: =+'Note Calc'!H419 -> 0 | N97: =+'Note Calc'!I419 -> 0
A98: 21.03 | B98: Purchased Services SFSF | F98: 0 | G98: 0 | H98: 0 | I98: 0 | J98: =+'Note Calc'!E420 -> 0 | K98: =+'Note Calc'!F420 -> 0 | L98: =+'Note Calc'!G420 -> 0 | M98: =+'Note Calc'!H420 -> 0 | N98: =+'Note Calc'!I420 -> 0
A99: 21.04 | B99: Supplies and Materials SFSF | E99: 0 | F99: 0 | G99: 0 | H99: 0 | I99: 0 | J99: =+'Note Calc'!E421 -> 0 | K99: =+'Note Calc'!F421 -> 0 | L99: =+'Note Calc'!G421 -> 0 | M99: =+'Note Calc'!H421 -> 0 | N99: =+'Note Calc'!I421 -> 0
A100: 21.05 | B100: Capital Outlay SFSF | E100: 0 | F100: 0 | G100: 0 | H100: 0 | I100: 0 | J100: =+'Note Calc'!E422 -> 0 | K100: =+'Note Calc'!F422 -> 0 | L100: =+'Note Calc'!G422 -> 0 | M100: =+'Note Calc'!H422 -> 0 | N100: =+'Note Calc'!I422 -> 0
A101: 21.06 | B101: Total Expenditures - SFSF | E101: 0 | F101: 0 | G101: 0 | H101: =SUM(H96:H100) -> 310814 | I101: 0 | J101: =SUM(J96:J100) -> 428035 | K101: =SUM(K96:K100) -> 0 | L101: =SUM(L96:L100) -> 0 | M101: =SUM(M96:M100) -> 0 | N101: =SUM(N96:N100) -> 0
B103: See accompanying summary of significant forecast assumptions and accounting policies
B104: Includes: General fund, Emergency Levy fund, PBA fund (FY07-FY09), Textbook fund and any portion of Debt Service fund related to General fund debt
B105: Fund 532 SFSF and Ed Jobs Funds Fund 504.

Sheet State Model By %
A1: =+'New State Model Fcast'!A1 -> Liberty Local School District
A2: =+'New State Model Fcast'!A2 -> Trumbull County
B3: Schedule of Percentage Changes of Revenues, Expenditures and Changes in Fund Balances
A4: =+'New State Model Fcast'!A5 -> Forecasted Fiscal Years Ending June 30, 2011 Through 2015
D7: Forecasted
C8: Historical Annual | D8: Fiscal Year | E8: % | F8: Fiscal Year | G8: % | H8: Fiscal Year | I8: % | J8: Fiscal Year | K8: % | L8: Fiscal Year | M8: %
C9: Average Change | D9: =+'Front Pg'!A47 -> 2011 | E9: change | F9: =+D9+1 -> 2012 | G9: change | H9: =+F9+1 -> 2013 | I9: change | J9: =+H9+1 -> 2014 | K9: change | L9: =+J9+1 -> 2015 | M9: change
B11: Revenues
A12: 1.01 | B12: General Property Tax (Real Estate) | C12: =+'New State Model Fcast'!I12 -> 0.08496370406 | D12: =+'New State Model Fcast'!J12 -> 7847606 | E12: =IF('New State Model Fcast'!F12=0,0,('State Model By %'!D12-'New State Model Fcast'!F12)/'State Model By %'!D12) -> 0.05023927042 | F12: =+'New State Model Fcast'!K12 -> 7599224.062 | G12: =IF(D12=0,0,(+F12-D12)/D12) -> -0.03165066363 | H12: =+'New State Model Fcast'!L12 -> 7396527.594 | I12: =IF(F12=0,0,(+H12-F12)/F12) -> -0.02667331123 | J12: =+'New State Model Fcast'!M12 -> 7087560.395 | K12: =IF(H12=0,0,(+J12-H12)/H12) -> -0.04177192532 | L12: =+'New State Model Fcast'!N12 -> 6714468.315 | M12: =IF(J12=0,0,(+L12-J12)/J12) -> -0.05264040932
A13: 1.02 | B13: Tangible Personal Property Tax | C13: =+'New State Model Fcast'!I13 -> -0.5920439643 | D13: =+'New State Model Fcast'!J13 -> 13980.54428 | E13: =IF('New State Model Fcast'!F13=0,0,('State Model By %'!D13-'New State Model Fcast'!F13)/'State Model By %'!D13) -> -22.16404809 | F13: =+'New State Model Fcast'!K13 -> 0 | G13: -1 | H13: =+'New State Model Fcast'!L13 -> 0 | I13: 0 | J13: =+'New State Model Fcast'!M13 -> 0 | K13: 0 | L13: =+'New State Model Fcast'!N13 -> 0 | M13: 0
A14: 1.03 | B14: Income Tax | C14: =+'New State Model Fcast'!I14 -> 0 | D14: =+'New State Model Fcast'!J14 -> 0 | E14: =IF('New State Model Fcast'!F14=0,0,('State Model By %'!D14-'New State Model Fcast'!F14)/'State Model By %'!D14) -> 0 | F14: =+'New State Model Fcast'!K14 -> 0 | G14: 0 | H14: =+'New State Model Fcast'!L14 -> 0 | I14: 0 | J14: =+'New State Model Fcast'!M14 -> 0 | K14: 0 | L14: =+'New State Model Fcast'!N14 -> 0 | M14: 0
A15: 1.035 | B15: Unrestricted State Grants-in-Aid | C15: =+'New State Model Fcast'!I15 -> -0.02196579046 | D15: =+'New State Model Fcast'!J15 -> 4913821.64 | E15: =IF('New State Model Fcast'!F15=0,0,('State Model By %'!D15-'New State Model Fcast'!F15)/'State Model By %'!D15) -> -0.08648265874 | F15: =+'New State Model Fcast'!K15 -> 4807519.55 | G15: -0.0216332822 | H15: =+'New State Model Fcast'!L15 -> 4894315.683 | I15: 0.01805424451 | J15: =+'New State Model Fcast'!M15 -> 5289025.594 | K15: 0.08064659826 | L15: =+'New State Model Fcast'!N15 -> 5683735.504 | M15: 0.07462809617
A16: 1.04 | B16: Restricted State Grants-in-Aid | C16: =+'New State Model Fcast'!I16 -> -0.3673234759 | D16: =+'New State Model Fcast'!J16 -> 8569 | E16: =IF('New State Model Fcast'!F16=0,0,('State Model By %'!D16-'New State Model Fcast'!F16)/'State Model By %'!D16) -> -14.54930564 | F16: =+'New State Model Fcast'!K16 -> 8569 | G16: 0 | H16: =+'New State Model Fcast'!L16 -> 8569 | I16: 0 | J16: =+'New State Model Fcast'!M16 -> 8569 | K16: 0 | L16: =+'New State Model Fcast'!N16 -> 8569 | M16: 0
A17: 1.045 | B17: Restricted Federal Grants-in-Aid - SFSF | C17: =+'New State Model Fcast'!I17 -> 0 | D17: =+'New State Model Fcast'!J17 -> 428035 | E17: =IF('New State Model Fcast'!F17=0,0,('State Model By %'!D17-'New State Model Fcast'!F17)/'State Model By %'!D17) -> 0 | F17: =+'New State Model Fcast'!K17 -> 219093 | G17: -0.4881423248 | H17: =+'New State Model Fcast'!L17 -> 0 | I17: -1 | J17: =+'New State Model Fcast'!M17 -> 0 | K17: 0 | L17: =+'New State Model Fcast'!N17 -> 0 | M17: 0
A18: 1.05 | B18: Property Tax Allocation | C18: =+'New State Model Fcast'!I18 -> 0.136955561 | D18: =+'New State Model Fcast'!J18 -> 1661392.33 | E18: =IF('New State Model Fcast'!F18=0,0,('State Model By %'!D18-'New State Model Fcast'!F18)/'State Model By %'!D18) -> 0.2173323683 | F18: =+'New State Model Fcast'!K18 -> 1612262.519 | G18: -0.02957146811 | H18: =+'New State Model Fcast'!L18 -> 1565994.64 | I18: -0.02869748508 | J18: =+'New State Model Fcast'!M18 -> 1258605.083 | K18: -0.1962902996 | L18: =+'New State Model Fcast'!N18 -> 1147454.408 | M18: -0.08831259044
A19: 1.06 | B19: All Other Revenues | C19: =+'New State Model Fcast'!I19 -> -0.05363361306 | D19: =+'New State Model Fcast'!J19 -> 1041500.227 | E19: =IF('New State Model Fcast'!F19=0,0,('State Model By %'!D19-'New State Model Fcast'!F19)/'State Model By %'!D19) -> 0.04106789983 | F19: =+'New State Model Fcast'!K19 -> 1048769.729 | G19: 0.006979837432 | H19: =+'New State Model Fcast'!L19 -> 1056111.927 | I19: 0.007000771559 | J19: =+'New State Model Fcast'!M19 -> 1063527.546 | K19: 0.0070216225 | L19: =+'New State Model Fcast'!N19 -> 1071017.321 | M19: 0.007042389722
A20: 1.07 | B20: Total Revenues | C20: =SUM(C12:C19) -> -0.8130475788 | D20: =SUM(D12:D19) -> 15914904.74 | E20: =IF('New State Model Fcast'!F20=0,0,('State Model By %'!D20-'New State Model Fcast'!F20)/'State Model By %'!D20) -> 0.02303757056 | F20: =SUM(F12:F19) -> 15295437.86 | G20: -0.03892369388 | H20: =SUM(H12:H19) -> 14921518.84 | I20: -0.02444644088 | J20: =SUM(J12:J19) -> 14707287.62 | K20: -0.01435719966 | L20: =SUM(L12:L19) -> 14625244.55 | M20: -0.005578395657
B22: Other Financing Sources
A23: 2.01 | B23: Proceeds from Sale of Notes | C23: =+'New State Model Fcast'!I23 -> 0 | D23: =+'New State Model Fcast'!J23 -> 0 | E23: =IF('New State Model Fcast'!F23=0,0,('State Model By %'!D23-'New State Model Fcast'!F23)/'State Model By %'!D23) -> 0 | F23: =+'New State Model Fcast'!K23 -> 0 | G23: =IF(D23=0,0,(+F23-D23)/D23) -> 0 | H23: =+'New State Model Fcast'!L23 -> 0 | I23: 0 | J23: =+'New State Model Fcast'!M23 -> 0 | K23: 0 | L23: =+'New State Model Fcast'!N23 -> 0 | M23: 0
A24: 2.02 | B24: State Emergency Loans and Advancements (Approved) | C24: =+'New State Model Fcast'!I24 -> 0 | D24: =+'New State Model Fcast'!J24 -> 0 | E24: =IF('New State Model Fcast'!F24=0,0,('State Model By %'!D24-'New State Model Fcast'!F24)/'State Model By %'!D24) -> 0 | F24: =+'New State Model Fcast'!K24 -> 0 | G24: 0 | H24: =+'New State Model Fcast'!L24 -> 0 | I24: 0 | J24: =+'New State Model Fcast'!M24 -> 0 | K24: 0 | L24: =+'New State Model Fcast'!N24 -> 0 | M24: 0
A25: 2.04 | B25: Operating Transfers-In | C25: =+'New State Model Fcast'!I25 -> 0 | D25: =+'New State Model Fcast'!J25 -> 0 | E25: =IF('New State Model Fcast'!F25=0,0,('State Model By %'!D25-'New State Model Fcast'!F25)/'State Model By %'!D25) -> 0 | F25: =+'New State Model Fcast'!K25 -> 0 | G25: 0 | H25: =+'New State Model Fcast'!L25 -> 0 | I25: 0 | J25: =+'New State Model Fcast'!M25 -> 0 | K25: 0 | L25: =+'New State Model Fcast'!N25 -> 0 | M25: 0
A26: 2.05 | B26: Advances-In | C26: =+'New State Model Fcast'!I26 -> 0 | D26: =+'New State Model Fcast'!J26 -> 0 | E26: 0 | F26: =+'New State Model Fcast'!K26 -> 0 | G26: 0 | H26: =+'New State Model Fcast'!L26 -> 0 | I26: 0 | J26: =+'New State Model Fcast'!M26 -> 0 | K26: 0 | L26: =+'New State Model Fcast'!N26 -> 0 | M26: 0
A27: 2.06 | B27: All Other Financing Sources | C27: =+'New State Model Fcast'!I27 -> 0 | D27: =+'New State Model Fcast'!J27 -> 0 | E27: =IF('New State Model Fcast'!F27=0,0,('State Model By %'!D27-'New State Model Fcast'!F27)/'State Model By %'!D27) -> 0 | F27: =+'New State Model Fcast'!K27 -> 0 | G27: 0 | H27: =+'New State Model Fcast'!L27 -> 0 | I27: 0 | J27: =+'New State Model Fcast'!M27 -> 0 | K27: 0 | L27: =+'New State Model Fcast'!N27 -> 0 | M27: 0
A28: 2.07 | B28: Total Other Financing Sources | C28: =SUM(C23:C27) -> 0 | D28: =SUM(D23:D27) -> 0 | E28: =IF('New State Model Fcast'!F28=0,0,('State Model By %'!D28-'New State Model Fcast'!F28)/'State Model By %'!D28) ->  | F28: =SUM(F23:F27) -> 0 | G28: 0 | H28: 0 | I28: 0 | J28: 0 | K28: 0 | L28: 0 | M28: 0
A29: 2.08 | B29: Total Revenues and Other Financing Sources | C29: =+C28+C20 -> -0.8130475788 | D29: =+D28+D20 -> 15914904.74 | E29: =IF('New State Model Fcast'!F29=0,0,('State Model By %'!D29-'New State Model Fcast'!F29)/'State Model By %'!D29) -> 0.0195901104 | F29: =+F28+F20 -> 15295437.86 | G29: -0.03892369388 | H29: 14921518.84 | I29: -0.02444644088 | J29: 14707287.62 | K29: -0.01435719966 | L29: 14625244.55 | M29: -0.005578395657
B31: Expenditures
A32: 3.01 | B32: Personal Services | C32: =+'New State Model Fcast'!I32 -> -0.03983598835 | D32: =+'New State Model Fcast'!J32 -> 7253818 | E32: =IF('New State Model Fcast'!F32=0,0,('State Model By %'!D32-'New State Model Fcast'!F32)/'State Model By %'!D32) -> -0.1242367812 | F32: =+'New State Model Fcast'!K32 -> 7313914 | G32: =IF(D32=0,0,(+F32-D32)/D32) -> 0.008284740533 | H32: =+'New State Model Fcast'!L32 -> 7438251 | I32: =IF(F32=0,0,(+H32-F32)/F32) -> 0.01700006317 | J32: =+'New State Model Fcast'!M32 -> 7564701 | K32: =IF(H32=0,0,(+J32-H32)/H32) -> 0.0169999641 | L32: =+'New State Model Fcast'!N32 -> 7693301 | M32: =IF(J32=0,0,(+L32-J32)/J32) -> 0.01700001097
A33: 3.02 | B33: Employees' Retirement/Insurance Benefits | C33: =+'New State Model Fcast'!I33 -> 0.1062236768 | D33: =+'New State Model Fcast'!J33 -> 3473269 | E33: =IF('New State Model Fcast'!F33=0,0,('State Model By %'!D33-'New State Model Fcast'!F33)/'State Model By %'!D33) -> 0.1029632315 | F33: =+'New State Model Fcast'!K33 -> 3670487 | G33: 0.05678166592 | H33: =+'New State Model Fcast'!L33 -> 3902413 | I33: 0.06318671065 | J33: =+'New State Model Fcast'!M33 -> 4148589 | K33: 0.06308302068 | L33: =+'New State Model Fcast'!N33 -> 4411123 | M33: 0.06328272094
A34: 3.03 | B34: Purchased Services | C34: =+'New State Model Fcast'!I34 -> 0.1095023367 | D34: =+'New State Model Fcast'!J34 -> 4217896.98 | E34: =IF('New State Model Fcast'!F34=0,0,('State Model By %'!D34-'New State Model Fcast'!F34)/'State Model By %'!D34) -> 0.3418103825 | F34: =+'New State Model Fcast'!K34 -> 4349836.831 | G34: 0.03128095618 | H34: =+'New State Model Fcast'!L34 -> 4462603.365 | I34: 0.02592431371 | J34: =+'New State Model Fcast'!M34 -> 4578531.998 | K34: 0.02597780346 | L34: =+'New State Model Fcast'!N34 -> 4697714.512 | M34: 0.02603072632
A35: 3.04 | B35: Supplies and Materials | C35: =+'New State Model Fcast'!I35 -> -0.1966012715 | D35: =+'New State Model Fcast'!J35 -> 322067 | E35: =IF('New State Model Fcast'!F35=0,0,('State Model By %'!D35-'New State Model Fcast'!F35)/'State Model By %'!D35) -> -0.5607125225 | F35: =+'New State Model Fcast'!K35 -> 325288 | G35: 0.01000102463 | H35: =+'New State Model Fcast'!L35 -> 328541 | I35: 0.0100003689 | J35: =+'New State Model Fcast'!M35 -> 331826 | K35: 0.009998752058 | L35: =+'New State Model Fcast'!N35 -> 335144 | M35: 0.009999216457
A36: 3.05 | B36: Capital Outlay | C36: =+'New State Model Fcast'!I36 -> -0.2573049767 | D36: =+'New State Model Fcast'!J36 -> 36337.2 | E36: =IF('New State Model Fcast'!F36=0,0,('State Model By %'!D36-'New State Model Fcast'!F36)/'State Model By %'!D36) -> -1.448812787 | F36: =+'New State Model Fcast'!K36 -> 38880.804 | G36: 0.07 | H36: =+'New State Model Fcast'!L36 -> 41602.46028 | I36: 0.07 | J36: =+'New State Model Fcast'!M36 -> 44514.6325 | K36: 0.07 | L36: =+'New State Model Fcast'!N36 -> 47630.65677 | M36: 0.07
A37: 3.06 | B37: Intergovernmental | C37: =+'New State Model Fcast'!I37 -> 0 | D37: =+'New State Model Fcast'!J37 -> 0 | E37: =IF('New State Model Fcast'!F37=0,0,('State Model By %'!D37-'New State Model Fcast'!F37)/'State Model By %'!D37) -> 0 | F37: =+'New State Model Fcast'!K37 -> 0 | G37: 0 | H37: =+'New State Model Fcast'!L37 -> 0 | I37: 0 | J37: =+'New State Model Fcast'!M37 -> 0 | K37: 0 | L37: =+'New State Model Fcast'!N37 -> 0 | M37: 0
B38: Debt Service:
A39: 4.01 | B39: Principal-All (Historical Only) | C39: =+'New State Model Fcast'!I39 -> 0 | D39: =+'New State Model Fcast'!J39 -> 0 | E39: =IF('New State Model Fcast'!F39=0,0,('State Model By %'!D39-'New State Model Fcast'!F39)/'State Model By %'!D39) -> 0 | F39: =+'New State Model Fcast'!K39 -> 0 | G39: =IF(D39=0,0,(+F39-D39)/D39) -> 0 | H39: =+'New State Model Fcast'!L39 -> 0 | I39: =IF(F39=0,0,(+H39-F39)/F39) -> 0 | J39: =+'New State Model Fcast'!M39 -> 0 | K39: =IF(H39=0,0,(+J39-H39)/H39) -> 0 | L39: =+'New State Model Fcast'!N39 -> 0 | M39: =IF(J39=0,0,(+L39-J39)/J39) -> 0
A40: 4.02 | B40: Principal-Notes | C40: =+'New State Model Fcast'!I40 -> -0.02789437168 | D40: =+'New State Model Fcast'!J40 -> 523000 | E40: =IF('New State Model Fcast'!F40=0,0,('State Model By %'!D40-'New State Model Fcast'!F40)/'State Model By %'!D40) -> 0.2807131931 | F40: =+'New State Model Fcast'!K40 -> 523000 | G40: 0 | H40: =+'New State Model Fcast'!L40 -> 523000 | I40: 0 | J40: =+'New State Model Fcast'!M40 -> 523000 | K40: 0 | L40: =+'New State Model Fcast'!N40 -> 355200 | M40: -0.3208413002
A41: 4.03 | B41: Principal-State Loans | C41: =+'New State Model Fcast'!I41 -> 0 | D41: =+'New State Model Fcast'!J41 -> 0 | E41: =IF('New State Model Fcast'!F41=0,0,('State Model By %'!D41-'New State Model Fcast'!F41)/'State Model By %'!D41) -> 0 | F41: =+'New State Model Fcast'!K41 -> 0 | G41: 0 | H41: =+'New State Model Fcast'!L41 -> 0 | I41: 0 | J41: =+'New State Model Fcast'!M41 -> 0 | K41: 0 | L41: =+'New State Model Fcast'!N41 -> 0 | M41: 0
A42: 4.04 | B42: Principal-State Advancements | C42: =+'New State Model Fcast'!I42 -> 0 | D42: =+'New State Model Fcast'!J42 -> 0 | E42: =IF('New State Model Fcast'!F42=0,0,('State Model By %'!D42-'New State Model Fcast'!F42)/'State Model By %'!D42) -> 0 | F42: =+'New State Model Fcast'!K42 -> 0 | G42: 0 | H42: =+'New State Model Fcast'!L42 -> 0 | I42: 0 | J42: =+'New State Model Fcast'!M42 -> 0 | K42: 0 | L42: =+'New State Model Fcast'!N42 -> 0 | M42: 0
A43: 4.05 | B43: Principal-HB 264 Loans | C43: =+'New State Model Fcast'!I43 -> 0 | D43: =+'New State Model Fcast'!J43 -> 0 | E43: =IF('New State Model Fcast'!F43=0,0,('State Model By %'!D43-'New State Model Fcast'!F43)/'State Model By %'!D43) -> 0 | F43: =+'New State Model Fcast'!K43 -> 0 | G43: 0 | H43: =+'New State Model Fcast'!L43 -> 0 | I43: 0 | J43: =+'New State Model Fcast'!M43 -> 0 | K43: 0 | L43: =+'New State Model Fcast'!N43 -> 0 | M43: 0
A44: 4.055 | B44: Principal-Other | C44: =+'New State Model Fcast'!I44 -> 0 | D44: =+'New State Model Fcast'!J44 -> 0 | E44: =IF('New State Model Fcast'!F44=0,0,('State Model By %'!D44-'New State Model Fcast'!F44)/'State Model By %'!D44) -> 0 | F44: =+'New State Model Fcast'!K44 -> 0 | G44: 0 | H44: =+'New State Model Fcast'!L44 -> 0 | I44: 0 | J44: =+'New State Model Fcast'!M44 -> 0 | K44: 0 | L44: =+'New State Model Fcast'!N44 -> 0 | M44: 0
A45: 4.06 | B45: Interest and Fiscal Charges | C45: =+'New State Model Fcast'!I45 -> 0 | D45: =+'New State Model Fcast'!J45 -> 61850 | E45: =IF('New State Model Fcast'!F45=0,0,('State Model By %'!D45-'New State Model Fcast'!F45)/'State Model By %'!D45) -> 0 | F45: =+'New State Model Fcast'!K45 -> 54346 | G45: -0.1213257882 | H45: =+'New State Model Fcast'!L45 -> 42268 | I45: -0.2222426674 | J45: =+'New State Model Fcast'!M45 -> 30192 | K45: -0.2857007665 | L45: =+'New State Model Fcast'!N45 -> 18115 | M45: -0.4000066243
A46: 4.3 | B46: Other Objects | C46: =+'New State Model Fcast'!I46 -> 0.5936271508 | D46: =+'New State Model Fcast'!J46 -> 1502000 | E46: =IF('New State Model Fcast'!F46=0,0,('State Model By %'!D46-'New State Model Fcast'!F46)/'State Model By %'!D46) -> 0.368729028 | F46: =+'New State Model Fcast'!K46 -> 1400933 | G46: -0.06728828229 | H46: =+'New State Model Fcast'!L46 -> 1407841.4 | I46: 0.004931285079 | J46: =+'New State Model Fcast'!M46 -> 1414818.884 | K46: 0.004956157704 | L46: =+'New State Model Fcast'!N46 -> 1421866.143 | M46: 0.004981032498
A47: 4.5 | B47: Total Expenditures | C47: =SUM(C32:C46) -> 0.287716556 | D47: =SUM(D32:D46) -> 17390238.18 | E47: =IF('New State Model Fcast'!F47=0,0,('State Model By %'!D47-'New State Model Fcast'!F47)/'State Model By %'!D47) -> 0.0820811173 | F47: =SUM(F32:F46) -> 17676685.63 | G47: 0.01647173843 | H47: =SUM(H32:H46) -> 18146520.23 | I47: 0.02657933736 | J47: =SUM(J32:J46) -> 18636173.51 | K47: 0.02698331599 | L47: =SUM(L32:L46) -> 18980094.31 | M47: 0.01845447491
B49: Other Financing Uses
A50: 5.01 | B50: Operating Transfers-Out | C50: =+'New State Model Fcast'!I50 -> 3.505560545 | D50: =+'New State Model Fcast'!J50 -> 60000 | E50: =IF('New State Model Fcast'!F50=0,0,('State Model By %'!D50-'New State Model Fcast'!F50)/'State Model By %'!D50) -> 0.5982666667 | F50: =+'New State Model Fcast'!K50 -> 65000 | G50: =IF(D50=0,0,(+F50-D50)/D50) -> 0.08333333333 | H50: =+'New State Model Fcast'!L50 -> 70000 | I50: =IF(F50=0,0,(+H50-F50)/F50) -> 0.07692307692 | J50: =+'New State Model Fcast'!M50 -> 75000 | K50: =IF(H50=0,0,(+J50-H50)/H50) -> 0.07142857143 | L50: =+'New State Model Fcast'!N50 -> 75000 | M50: =IF(J50=0,0,(+L50-J50)/J50) -> 0
A51: 5.02 | B51: Advances-Out | C51: =+'New State Model Fcast'!I51 -> 0 | D51: =+'New State Model Fcast'!J51 -> 0 | E51: =IF('New State Model Fcast'!F51=0,0,('State Model By %'!D51-'New State Model Fcast'!F51)/'State Model By %'!D51) -> 0 | F51: =+'New State Model Fcast'!K51 -> 0 | G51: 0 | H51: =+'New State Model Fcast'!L51 -> 0 | I51: 0 | J51: =+'New State Model Fcast'!M51 -> 0 | K51: 0 | L51: =+'New State Model Fcast'!N51 -> 0 | M51: 0
A52: 5.03 | B52: All Other Financing Uses | C52: =+'New State Model Fcast'!I52 -> 0 | D52: =+'New State Model Fcast'!J52 -> 0 | E52: =IF('New State Model Fcast'!F52=0,0,('State Model By %'!D52-'New State Model Fcast'!F52)/'State Model By %'!D52) -> 0 | F52: =+'New State Model Fcast'!K52 -> 0 | G52: 0 | H52: =+'New State Model Fcast'!L52 -> 0 | I52: 0 | J52: =+'New State Model Fcast'!M52 -> 0 | K52: 0 | L52: =+'New State Model Fcast'!N52 -> 0 | M52: 0
A53: 5.04 | B53: Total Other Financing Uses | C53: =SUM(C50:C52) -> 3.505560545 | D53: =SUM(D50:D52) -> 60000 | E53: =IF('New State Model Fcast'!F53=0,0,('State Model By %'!D53-'New State Model Fcast'!F53)/'State Model By %'!D53) -> 0.5982666667 | F53: =SUM(F50:F52) -> 65000 | G53: 0.08333333333 | H53: =SUM(H50:H52) -> 70000 | I53: 0.07692307692 | J53: =SUM(J50:J52) -> 75000 | K53: 0.07142857143 | L53: =SUM(L50:L52) -> 75000 | M53: 0
A54: 5.05 | B54: Total Expenditures and Other Financing Uses | C54: =+C53+C47 -> 3.793277101 | D54: =+D53+D47 -> 17450238.18 | E54: =IF('New State Model Fcast'!F54=0,0,('State Model By %'!D54-'New State Model Fcast'!F54)/'State Model By %'!D54) -> 0.08385594311 | F54: =+F53+F47 -> 17741685.63 | G54: 0.0167016319 | H54: =+H53+H47 -> 18216520.23 | I54: 0.02676378111 | J54: =+J53+J47 -> 18711173.51 | K54: 0.02715410425 | L54: =+L53+L47 -> 19055094.31 | M54: 0.01838050383
A55: 6.01 | B55: Excess of Revenues and Other Financing Sources over (under) Expenditures and Other Financing Uses | C55: =+C29-C54 -> -4.60632468 | D55: =+D29-D54 -> -1535333.439 | E55: =IF('New State Model Fcast'!F55=0,0,('State Model By %'!D55-'New State Model Fcast'!F55)/'State Model By %'!D55) -> 0.7500204254 | F55: =+F29-F54 -> -2446247.774 | G55: 0.5933006549 | H55: =+H29-H54 -> -3295001.382 | I55: 0.3469614228 | J55: =+J29-J54 -> -4003885.897 | K55: 0.2151393679 | L55: =+L29-L54 -> -4429849.763 | M55: 0.1063876136
A57: 7.01 | B57: Cash Balance July 1 - Excluding Proposed Renewal/Replacement and New Levies | C57: =+'New State Model Fcast'!I57 -> -0.366942271 | D57: =+'New State Model Fcast'!J57 -> 1242238 | E57: =IF('New State Model Fcast'!F57=0,0,('State Model By %'!D57-'New State Model Fcast'!F57)/'State Model By %'!D57) -> -0.3122855685 | F57: =+D59 -> -293095.4391 | G57: =IF(D57=0,0,(+F57-D57)/D57) -> -1.235941453 | H57: =+F59 -> -2739343.213 | I57: =IF(F57=0,0,(+H57-F57)/F57) -> 8.346249883 | J57: =+H59 -> -6034344.595 | K57: =IF(H57=0,0,(+J57-H57)/H57) -> 1.202843575 | L57: =+J59 -> -10038230.49 | M57: =IF(J57=0,0,(+L57-J57)/J57) -> 0.6635162831
A59: 7.02 | B59: Cash Balance June 30 | C59: =+C55+C57 -> -4.973266951 | D59: =+D55+D57 -> -293095.4391 | E59: =IF('New State Model Fcast'!F59=0,0,('State Model By %'!D59-'New State Model Fcast'!F59)/'State Model By %'!D59) -> 5.252433965 | F59: =+F55+F57 -> -2739343.213 | G59: =IF(D59=0,0,(+F59-D59)/D59) -> 8.346249883 | H59: =+H55+H57 -> -6034344.595 | I59: =IF(F59=0,0,(+H59-F59)/F59) -> 1.202843575 | J59: =+J55+J57 -> -10038230.49 | K59: =IF(H59=0,0,(+J59-H59)/H59) -> 0.6635162831 | L59: =+L55+L57 -> -14468080.25 | M59: =IF(J59=0,0,(+L59-J59)/J59) -> 0.4412978728
A61: 8.01 | B61: Estimated Encumbrances June 30 | C61: =+'New State Model Fcast'!I61 -> -0.2507370472 | D61: =+'New State Model Fcast'!J61 -> 0 | E61: =IF('New State Model Fcast'!F61=0,0,('State Model By %'!D61-'New State Model Fcast'!F61)/'State Model By %'!D61) ->  | F61: =+'New State Model Fcast'!K61 -> 210661 | G61: =IF(D61=0,0,(+F61-D61)/D61) -> 0 | H61: =+'New State Model Fcast'!L61 -> 210661 | I61: =IF(F61=0,0,(+H61-F61)/F61) -> 0 | J61: =+'New State Model Fcast'!M61 -> 210661 | K61: =IF(H61=0,0,(+J61-H61)/H61) -> 0 | L61: =+'New State Model Fcast'!N61 -> 210661 | M61: =IF(J61=0,0,(+L61-J61)/J61) -> 0
B63: Reservation of Fund Balance
A64: 9.01 | B64: Textbooks and Instructional Materials | C64: =+'New State Model Fcast'!I64 -> 0 | D64: =+'New State Model Fcast'!J64 -> 0 | E64: =IF('New State Model Fcast'!F64=0,0,('State Model By %'!D64-'New State Model Fcast'!F64)/'State Model By %'!D64) -> 0 | F64: =+'New State Model Fcast'!J64 -> 0 | G64: =IF(D64=0,0,(+F64-D64)/D64) -> 0 | H64: =+'New State Model Fcast'!K64 -> 0 | I64: =IF(F64=0,0,(+H64-F64)/F64) -> 0 | J64: =+'New State Model Fcast'!L64 -> 0 | K64: =IF(H64=0,0,(+J64-H64)/H64) -> 0 | L64: =+'New State Model Fcast'!M64 -> 0 | M64: =IF(J64=0,0,(+L64-J64)/J64) -> 0
A65: 9.02 | B65: Capital Improvements | C65: =+'New State Model Fcast'!I65 -> 0 | D65: =+'New State Model Fcast'!J65 -> 0 | E65: =IF('New State Model Fcast'!F65=0,0,('State Model By %'!D65-'New State Model Fcast'!F65)/'State Model By %'!D65) -> 0 | F65: =+'New State Model Fcast'!J65 -> 0 | G65: 0 | H65: =+'New State Model Fcast'!K65 -> 0 | I65: 0 | J65: =+'New State Model Fcast'!L65 -> 0 | K65: 0 | L65: =+'New State Model Fcast'!M65 -> 0 | M65: 0
A66: 9.03 | B66: Budget Reserve | C66: =+'New State Model Fcast'!I66 -> 0 | D66: =+'New State Model Fcast'!J66 -> 0 | E66: =IF('New State Model Fcast'!F66=0,0,('State Model By %'!D66-'New State Model Fcast'!F66)/'State Model By %'!D66) -> 0 | F66: =+'New State Model Fcast'!J66 -> 0 | G66: 0 | H66: =+'New State Model Fcast'!K66 -> 0 | I66: 0 | J66: =+'New State Model Fcast'!L66 -> 0 | K66: 0 | L66: =+'New State Model Fcast'!M66 -> 0 | M66: 0
A67: 9.04 | B67: DPIA | C67: =+'New State Model Fcast'!I67 -> 0 | D67: =+'New State Model Fcast'!J67 -> 0 | E67: =IF('New State Model Fcast'!F67=0,0,('State Model By %'!D67-'New State Model Fcast'!F67)/'State Model By %'!D67) -> 0 | F67: =+'New State Model Fcast'!J67 -> 0 | G67: 0 | H67: =+'New State Model Fcast'!K67 -> 0 | I67: 0 | J67: =+'New State Model Fcast'!L67 -> 0 | K67: 0 | L67: =+'New State Model Fcast'!M67 -> 0 | M67: 0
A68: 9.045 | B68: Fiscal Stabilization | C68: =+'New State Model Fcast'!I68 -> 0 | D68: =+'New State Model Fcast'!J68 -> 0 | E68: =IF('New State Model Fcast'!F68=0,0,('State Model By %'!D68-'New State Model Fcast'!F68)/'State Model By %'!D68) -> 0 | F68: =+'New State Model Fcast'!J68 -> 0 | G68: 0 | H68: =+'New State Model Fcast'!K68 -> 0 | I68: 0 | J68: =+'New State Model Fcast'!L68 -> 0 | K68: 0 | L68: =+'New State Model Fcast'!M68 -> 0 | M68: 0
A69: 9.05 | B69: Debt Service | C69: =+'New State Model Fcast'!I69 -> 0 | D69: =+'New State Model Fcast'!J69 -> 0 | E69: =IF('New State Model Fcast'!F69=0,0,('State Model By %'!D69-'New State Model Fcast'!F69)/'State Model By %'!D69) -> 0 | F69: =+'New State Model Fcast'!J69 -> 0 | G69: 0 | H69: =+'New State Model Fcast'!K69 -> 0 | I69: 0 | J69: =+'New State Model Fcast'!L69 -> 0 | K69: 0 | L69: =+'New State Model Fcast'!M69 -> 0 | M69: 0
A70: 9.06 | B70: Property Tax Advances | C70: =+'New State Model Fcast'!I70 -> 0 | D70: =+'New State Model Fcast'!J70 -> 0 | E70: =IF('New State Model Fcast'!F70=0,0,('State Model By %'!D70-'New State Model Fcast'!F70)/'State Model By %'!D70) -> 0 | F70: =+'New State Model Fcast'!J70 -> 0 | G70: 0 | H70: =+'New State Model Fcast'!K70 -> 0 | I70: 0 | J70: =+'New State Model Fcast'!L70 -> 0 | K70: 0 | L70: =+'New State Model Fcast'!M70 -> 0 | M70: 0
A71: 9.07 | B71: Bus Purchases | C71: =+'New State Model Fcast'!I71 -> 0 | D71: =+'New State Model Fcast'!J71 -> 0 | E71: =IF('New State Model Fcast'!F71=0,0,('State Model By %'!D71-'New State Model Fcast'!F71)/'State Model By %'!D71) -> 0 | F71: =+'New State Model Fcast'!J71 -> 0 | G71: 0 | H71: =+'New State Model Fcast'!K71 -> 0 | I71: 0 | J71: =+'New State Model Fcast'!L71 -> 0 | K71: 0 | L71: =+'New State Model Fcast'!M71 -> 0 | M71: 0
A72: 9.08 | B72: Subtotal | C72: =SUM(C64:C71) -> 0 | D72: =SUM(D64:D71) -> 0 | E72: =IF('New State Model Fcast'!F72=0,0,('State Model By %'!D72-'New State Model Fcast'!F72)/'State Model By %'!D72) -> 0 | F72: 0 | G72: 0 | H72: 0 | I72: 0 | J72: 0 | K72: 0 | L72: 0 | M72: 0
A73: 10.01 | B73: Fund Balance June 30 for Certification of Appropriations | C73: =+C59+C61+C72 -> -5.224003998 | D73: =+D59+D61+D72 -> -293095.4391 | E73: =IF('New State Model Fcast'!F73=0,0,('State Model By %'!D73-'New State Model Fcast'!F73)/'State Model By %'!D73) -> 3.812551443 | F73: =+F59+F61+F72 -> -2528682.213 | G73: =IF(D73=0,0,(+F73-D73)/D73) -> 7.627504478 | H73: -5823683.595 | I73: =IF(F73=0,0,(+H73-F73)/F73) -> 1.303050801 | J73: -9827569.492 | K73: =IF(H73=0,0,(+J73-H73)/H73) -> 0.6875177594 | L73: -14257419.25 | M73: =IF(J73=0,0,(+L73-J73)/J73) -> 0.4507574092
B75: Revenue from Replacement/Renewal Levies
A76: 11.01 | B76: Income Tax - Renewal | C76: =+'New State Model Fcast'!G76 -> 0 | D76: =+'New State Model Fcast'!H76 -> 0 | E76: =IF('New State Model Fcast'!F76=0,0,('State Model By %'!D76-'New State Model Fcast'!F76)/'State Model By %'!D76) -> 0 | F76: =+'New State Model Fcast'!J76 -> 0 | G76: =IF(D76=0,0,(+F76-D76)/D76) -> 0 | H76: =+'New State Model Fcast'!K76 -> 0 | I76: =IF(F76=0,0,(+H76-F76)/F76) -> 0 | J76: =+'New State Model Fcast'!L76 -> 0 | K76: =IF(H76=0,0,(+J76-H76)/H76) -> 0 | L76: =+'New State Model Fcast'!M76 -> 0 | M76: =IF(J76=0,0,(+L76-J76)/J76) -> 0
A77: 11.02 | B77: Property Tax - Renewal or Replacement | C77: =+'New State Model Fcast'!G77 -> 0 | D77: =+'New State Model Fcast'!H77 -> 0 | E77: =IF('New State Model Fcast'!F77=0,0,('State Model By %'!D77-'New State Model Fcast'!F77)/'State Model By %'!D77) -> 0 | F77: =+'New State Model Fcast'!J77 -> 0 | G77: =IF(D77=0,0,(+F77-D77)/D77) -> 0 | H77: =+'New State Model Fcast'!K77 -> 385153.6 | I77: =IF(F77=0,0,(+H77-F77)/F77) -> 0 | J77: =+'New State Model Fcast'!L77 -> 740680 | K77: =IF(H77=0,0,(+J77-H77)/H77) -> 0.9230769231 | L77: =+'New State Model Fcast'!M77 -> 1177236.12 | M77: =IF(J77=0,0,(+L77-J77)/J77) -> 0.5893990927
A78: 11.3 | B78: Cumulative Balance of Replacement/Renewal Levies | C78: =+'New State Model Fcast'!G79 -> 0 | D78: =+'New State Model Fcast'!H79 -> 0 | E78: =IF('New State Model Fcast'!F79=0,0,('State Model By %'!D78-'New State Model Fcast'!F79)/'State Model By %'!D78) -> 0 | F78: =+'New State Model Fcast'!J79 -> 0 | G78: =IF(D78=0,0,(+F78-D78)/D78) -> 0 | H78: =+'New State Model Fcast'!K79 -> 385153.6 | I78: =IF(F78=0,0,(+H78-F78)/F78) -> 0 | J78: =+'New State Model Fcast'!L79 -> 1125833.6 | K78: =IF(H78=0,0,(+J78-H78)/H78) -> 1.923076923 | L78: =+'New State Model Fcast'!M79 -> 2303069.72 | M78: =IF(J78=0,0,(+L78-J78)/J78) -> 1.045657298
A80: 12.01 | B80: Fund Balance June 30 for Certification of Contracts, Salary Schedules and Other Obligations | C80: =+C73+C78 -> -5.224003998 | D80: =+D73+D78 -> -293095.4391 | E80: =IF('New State Model Fcast'!F80=0,0,('State Model By %'!D80-'New State Model Fcast'!F80)/'State Model By %'!D80) -> 3.812551443 | F80: =+F73+F78 -> -2528682.213 | G80: =IF(D80=0,0,(+F80-D80)/D80) -> 7.627504478 | H80: =+H73+H78 -> -5438529.995 | I80: =IF(F80=0,0,(+H80-F80)/F80) -> 1.150736841 | J80: =+J73+J78 -> -8701735.892 | K80: =IF(H80=0,0,(+J80-H80)/H80) -> 0.6000161624 | L80: =+L73+L78 -> -11954349.53 | M80: =IF(J80=0,0,(+L80-J80)/J80) -> 0.3737890558
B82: Revenue from New Levies
A83: 13.01 | B83: Income Tax - New | C83: =+'New State Model Fcast'!G83 -> 0 | D83: =+'New State Model Fcast'!H83 -> 0 | E83: =IF('New State Model Fcast'!F83=0,0,('State Model By %'!D83-'New State Model Fcast'!F83)/'State Model By %'!D83) -> 0 | F83: =+'New State Model Fcast'!J83 -> 0 | G83: =IF(D83=0,0,(+F83-D83)/D83) -> 0 | H83: =+'New State Model Fcast'!K83 -> 0 | I83: =IF(F83=0,0,(+H83-F83)/F83) -> 0 | J83: =+'New State Model Fcast'!L83 -> 0 | K83: =IF(H83=0,0,(+J83-H83)/H83) -> 0 | L83: =+'New State Model Fcast'!M83 -> 0 | M83: =IF(J83=0,0,(+L83-J83)/J83) -> 0
A84: 13.02 | B84: Property Tax - New | C84: =+'New State Model Fcast'!G84 -> 0 | D84: =+'New State Model Fcast'!H84 -> 0 | E84: =IF('New State Model Fcast'!F84=0,0,('State Model By %'!D84-'New State Model Fcast'!F84)/'State Model By %'!D84) -> 0 | F84: =+'New State Model Fcast'!J84 -> 0 | G84: =IF(D84=0,0,(+F84-D84)/D84) -> 0 | H84: =+'New State Model Fcast'!K84 -> 0 | I84: =IF(F84=0,0,(+H84-F84)/F84) -> 0 | J84: =+'New State Model Fcast'!L84 -> 0 | K84: =IF(H84=0,0,(+J84-H84)/H84) -> 0 | L84: =+'New State Model Fcast'!M84 -> 0 | M84: =IF(J84=0,0,(+L84-J84)/J84) -> 0
E85: =IF('New State Model Fcast'!F85=0,0,('State Model By %'!D85-'New State Model Fcast'!F85)/'State Model By %'!D85) -> 0
A86: 13.03 | B86: Cumulative Balance of New Levies | C86: =+'New State Model Fcast'!G86 -> 0 | D86: =+'New State Model Fcast'!H86 -> 0 | E86: =IF('New State Model Fcast'!F86=0,0,('State Model By %'!D86-'New State Model Fcast'!F86)/'State Model By %'!D86) -> 0 | F86: =+'New State Model Fcast'!J86 -> 0 | G86: =IF(D86=0,0,(+F86-D86)/D86) -> 0 | H86: =+'New State Model Fcast'!K86 -> 0 | I86: =IF(F86=0,0,(+H86-F86)/F86) -> 0 | J86: =+'New State Model Fcast'!L86 -> 0 | K86: =IF(H86=0,0,(+J86-H86)/H86) -> 0 | L86: =+'New State Model Fcast'!M86 -> 0 | M86: =IF(J86=0,0,(+L86-J86)/J86) -> 0
A88: 14.01 | B88: Revenue from Future State Advancements | C88: =+'New State Model Fcast'!G88 -> 0 | D88: =+'New State Model Fcast'!H88 -> 0 | E88: =IF('New State Model Fcast'!F88=0,0,('State Model By %'!D88-'New State Model Fcast'!F88)/'State Model By %'!D88) -> 0 | F88: =+'New State Model Fcast'!J88 -> 0 | G88: =IF(D88=0,0,(+F88-D88)/D88) -> 0 | H88: =+'New State Model Fcast'!K88 -> 0 | I88: =IF(F88=0,0,(+H88-F88)/F88) -> 0 | J88: =+'New State Model Fcast'!L88 -> 0 | K88: =IF(H88=0,0,(+J88-H88)/H88) -> 0 | L88: =+'New State Model Fcast'!M88 -> 0 | M88: =IF(J88=0,0,(+L88-J88)/J88) -> 0
A90: 15.01 | B90: Unreserved Fund Balance June 30 | C90: =+'New State Model Fcast'!G90 -> 203639 | D90: =+'New State Model Fcast'!H90 -> 1031577 | E90: =IF('New State Model Fcast'!F90=0,0,('State Model By %'!D90-'New State Model Fcast'!F90)/'State Model By %'!D90) -> 0.2008875731 | F90: =+'New State Model Fcast'!J90 -> -293095.4391 | G90: =IF(D90=0,0,(+F90-D90)/D90) -> -1.284123666 | H90: =+'New State Model Fcast'!K90 -> -2564850.613 | I90: =IF(F90=0,0,(+H90-F90)/F90) -> 7.750905921 | J90: =+'New State Model Fcast'!L90 -> -5119171.995 | K90: =IF(H90=0,0,(+J90-H90)/H90) -> 0.9958947976 | L90: =+'New State Model Fcast'!M90 -> -7945821.772 | M90: =IF(J90=0,0,(+L90-J90)/J90) -> 0.5521693312
B92: ADM Forecasts
A93: 20.01 | B93: Kindergarten - October Count | C93: =+'New State Model Fcast'!G93 -> 0 | D93: =+'New State Model Fcast'!H93 -> 0 | E93: =IF('New State Model Fcast'!F93=0,0,('State Model By %'!D93-'New State Model Fcast'!F93)/'State Model By %'!D93) -> 0 | F93: =+'New State Model Fcast'!J93 -> 101 | G93: =IF(D93=0,0,(+F93-D93)/D93) -> 0 | H93: =+'New State Model Fcast'!K93 -> 101 | I93: 0 | J93: =+'New State Model Fcast'!L93 -> 101 | K93: 0 | L93: =+'New State Model Fcast'!M93 -> 101 | M93: 0
A94: 20.015 | B94: Grades 1-12 - October Count | C94: =+'New State Model Fcast'!G94 -> 0 | D94: =+'New State Model Fcast'!H94 -> 0 | E94: =IF('New State Model Fcast'!F94=0,0,('State Model By %'!D94-'New State Model Fcast'!F94)/'State Model By %'!D94) -> 0 | F94: =+'New State Model Fcast'!J94 -> 1561 | G94: 0 | H94: =+'New State Model Fcast'!K94 -> 1561 | I94: 0 | J94: =+'New State Model Fcast'!L94 -> 1561 | K94: 0 | L94: =+'New State Model Fcast'!M94 -> 1561 | M94: 0
B95: State Fiscal Stabilization Funds
A96: 21.01 | B96: Personal Services SFSF | C96: =+'New State Model Fcast'!G96 -> 0 | D96: =+'New State Model Fcast'!H96 -> 279666 | E96: =IF('New State Model Fcast'!F96=0,0,('State Model By %'!D96-'New State Model Fcast'!F96)/'State Model By %'!D96) -> 0 | F96: =+'New State Model Fcast'!J96 -> 385139 | G96: 0.3771391589 | H96: =+'New State Model Fcast'!K96 -> 0 | I96: -1 | J96: =+'New State Model Fcast'!L96 -> 0 | K96: 0 | L96: =+'New State Model Fcast'!M96 -> 0 | M96: 0
A97: 21.02 | B97: Employees Retirement/Insurance Benefits SFSF | C97: =+'New State Model Fcast'!G97 -> 0 | D97: =+'New State Model Fcast'!H97 -> 31148 | E97: =IF('New State Model Fcast'!F97=0,0,('State Model By %'!D97-'New State Model Fcast'!F97)/'State Model By %'!D97) -> 0 | F97: =+'New State Model Fcast'!J97 -> 42896 | G97: 0.3771670733 | H97: =+'New State Model Fcast'!K97 -> 0 | I97: -1 | J97: =+'New State Model Fcast'!L97 -> 0 | K97: 0 | L97: =+'New State Model Fcast'!M97 -> 0 | M97: 0
A98: 21.03 | B98: Purchased Services SFSF | C98: =+'New State Model Fcast'!G98 -> 0 | D98: =+'New State Model Fcast'!H98 -> 0 | E98: =IF('New State Model Fcast'!F98=0,0,('State Model By %'!D98-'New State Model Fcast'!F98)/'State Model By %'!D98) -> 0 | F98: =+'New State Model Fcast'!J98 -> 0 | G98: 0 | H98: =+'New State Model Fcast'!K98 -> 0 | I98: 0 | J98: =+'New State Model Fcast'!L98 -> 0 | K98: 0 | L98: =+'New State Model Fcast'!M98 -> 0 | M98: 0
A99: 21.04 | B99: Supplies and Materials SFSF | C99: =+'New State Model Fcast'!G99 -> 0 | D99: =+'New State Model Fcast'!H99 -> 0 | E99: =IF('New State Model Fcast'!F99=0,0,('State Model By %'!D99-'New State Model Fcast'!F99)/'State Model By %'!D99) -> 0 | F99: =+'New State Model Fcast'!J99 -> 0 | G99: 0 | H99: =+'New State Model Fcast'!K99 -> 0 | I99: 0 | J99: =+'New State Model Fcast'!L99 -> 0 | K99: 0 | L99: =+'New State Model Fcast'!M99 -> 0 | M99: 0
A100: 21.05 | B100: Capital Outlay SFSF | C100: =+'New State Model Fcast'!G100 -> 0 | D100: =+'New State Model Fcast'!H100 -> 0 | E100: =IF('New State Model Fcast'!F100=0,0,('State Model By %'!D100-'New State Model Fcast'!F100)/'State Model By %'!D100) -> 0 | F100: =+'New State Model Fcast'!J100 -> 0 | G100: 0 | H100: =+'New State Model Fcast'!K100 -> 0 | I100: 0 | J100: =+'New State Model Fcast'!L100 -> 0 | K100: 0 | L100: =+'New State Model Fcast'!M100 -> 0 | M100: 0
A101: 21.06 | B101: Total Expenditures - SFSF | C101: =SUM(C96:C100) -> 0 | D101: =SUM(D96:D100) -> 310814 | E101: =IF('New State Model Fcast'!F101=0,0,('State Model By %'!D101-'New State Model Fcast'!F101)/'State Model By %'!D101) -> 0 | F101: =SUM(F96:F100) -> 428035 | G101: 0.3771419563 | H101: =SUM(H96:H100) -> 0 | I101: -1 | J101: =SUM(J96:J100) -> 0 | K101: 0 | L101: =SUM(L96:L100) -> 0 | M101: 0
B103: See accompanying summary of significant forecast assumptions and accounting policies
B104: Includes: General fund, Emergency Levy fund, DPIA fund, Textbook fund and any portion of Debt Service fund related to General fund debt

Sheet Note Calc
A1: =+'State Model By %'!A1 -> Liberty Local School District
A2: Instructions and Note Calculation Sheet
A3: =NOW() -> 2011-07-14T08:00:11.220
A5: INTRODUCTION
A6: These are the instructions for you to update you five year forecast. Use this tab a research and documentation, these
A9: REVENUE ASSUMPTIONS
A10: Section 1 REAL ESTATE VALUE ASSUMPTIONS - Line#1.010
A11: Location of Data : Classification is ok the New Base section needs worked on the TAX Tab
A13: ESTIMATED ASSESSED VALUE (AV) BY COLLECTION YEARS
C15: Actual | D15: Actual | E15: Estimated | F15: Estimated | G15: Estimated | H15: Estimated | I15: Estimated
C16: TAX YEAR 2008 | D16: TAX YEAR 2009 | E16: TAX YEAR 2010 | F16: TAX YEAR 2011 | G16: TAX YEAR 2012 | H16: TAX YEAR 2013 | I16: TAX YEAR 2014
A17: Classification | C17: COLLECT 2009 | D17: COLLECT 2010 | E17: COLLECT 2011 | F17: COLLECT 2012 | G17: COLLECT 2013 | H17: COLLECT 2014 | I17: COLLECT 2015
A18: Res./Ag. | C18: =+TAX!E7 -> 172637070 | D18: =+TAX!F7 -> 173371540 | E18: =+TAX!G7 -> 173371540 | F18: =+TAX!H7 -> 173371540 | G18: =+TAX!I7 -> 173371540 | H18: =+TAX!J7 -> 173371540 | I18: =+TAX!K7 -> 173371540
A19: Comm./Ind. | C19: =+TAX!E8 -> 53432710 | D19: =+TAX!F8 -> 54568870 | E19: =+TAX!G8 -> 54568870 | F19: =+TAX!H8 -> 54568870 | G19: =+TAX!I8 -> 54568870 | H19: =+TAX!J8 -> 54568870 | I19: =+TAX!K8 -> 54568870 | K19: Data automatically comes
A20: Public Utility Personal Property (PUPP) | C20: =+TAX!E9 -> 4778850 | D20: =+TAX!F9 -> 4947040 | E20: =+TAX!G9 -> 4947040 | F20: =+TAX!H9 -> 4947040 | G20: =+TAX!I9 -> 4947040 | H20: =+TAX!J9 -> 4947040 | I20: =+TAX!K9 -> 4947040 | K20: from the Tax Sheet summary
A21: Tangible Personal Property (TPP) | C21: =+TAX!E10 -> 1180240 | D21: =+TAX!F10 -> 397310 | E21: =+TAX!G10 -> 0 | F21: =+TAX!H10 -> 0 | G21: =+TAX!I10 -> 0 | H21: =+TAX!J10 -> 0 | I21: =+TAX!K10 -> 0 | K21: at bottom of page….NO ENTRY NEEDED HERE
A22: Total Assessed Valuation | C22: =SUM(C17:C21) -> 232028870 | D22: 233284760 | E22: 232887450 | F22: 232887450 | G22: 232887450 | H22: 232887450 | I22: =SUM(I17:I21) -> 232887450
A25: ESTIMATED REAL ESTATE TAX - Line #1.010
A26: Source | C26: FY09 | D26: FY10 | E26: FY11 | F26: FY12 | G26: FY13 | H26: FY14 | I26: FY15
A27: Est. Gen. Prop. Taxes Excluding TPP to Line #1.010 | C27: =+TAX!E28 -> 7928866 | D27: =+TAX!F28 -> 7847606 | E27: =+TAX!G28 -> 7599224.062 | F27: =+TAX!H28 -> 7396527.594 | G27: =+TAX!I28 -> 7087560.395 | H27: =+TAX!J28 -> 6714468.315 | I27: =+TAX!K28 -> 6392350.749
A30: Delinquency Issues: (Due to the economic down turn may wan to note any information helpful to explain lower collections)
A31: As a result of the very difficult economic times, our district has experienced an increase in delinquencies as noted below:
A33: Close of Settlement By Year | C33: Real Est. Del. | D33: Amt. | E33: % +/(-)
A34: 2005 | C34: 0
A35: 2006 | C35: 0 | D35: =C35-C34 -> 0 | E35: =D35/C34 -> 
A36: 2007 | C36: 0 | D36: =C36-C35 -> 0 | E36: =D36/C35 -> 
A37: 2008 | C37: 0 | D37: =C37-C36 -> 0 | E37: =D37/C36 -> 
A40: Section 2 RENEWAL/ REPLACEMENT/NEW LEVIES - Line#11.02
A41: Location of Data : From the
A42: RENEWAL AND REPLACEMENT LEVIES - Line # 11.020
A43: Emergency levies are shown at gross and A&T , DRETAC fees are left in the expense area under other so showing gross on renewal and replacement levies keeps
A44: at the actual net amount ot be collected. Delinquencies are not calculated as eventually all taxes should be collected.
A46: Source | C46: FY09 | D46: FY10 | E46: FY11 | F46: FY12 | G46: FY13 | H46: FY14 | I46: FY15
A47: Renew 7.45 Mill Emergency levy 2016 | C47: 0 | D47: =TAX!F159 -> 0 | E47: =TAX!G159 -> 0 | F47: =TAX!H159 -> 0 | G47: =TAX!I159 -> 0 | H47: =TAX!J159 -> 0 | I47: =TAX!K159 -> 0
A48: Renew 3.1 Mill Emergency Levy 2012 | C48: 0 | D48: =TAX!F160 -> 0 | E48: =TAX!G160 -> 0 | F48: =TAX!H160 -> 385153.6 | G48: =TAX!I160 -> 740680 | H48: =TAX!J160 -> 740680 | I48: =TAX!K160 -> 740680
A49: Renew 3.55 Mill Emergency Levy 2014 | C49: 0 | D49: =TAX!F161 -> 0 | E49: =TAX!G161 -> 0 | F49: =TAX!H161 -> 0 | G49: =TAX!I161 -> 0 | H49: =TAX!J161 -> 436556.12 | I49: =TAX!K161 -> 436556.12
A50: Total Line # 11.020 | C50: =SUM(C46:C48) -> 0 | D50: =SUM(D46:D48) -> 0 | E50: =SUM(E46:E48) -> 0 | F50: =SUM(F46:F48) -> 385153.6 | G50: =SUM(G46:G48) -> 740680 | H50: =SUM(H47:H49) -> 1177236.12 | I50: =SUM(I47:I49) -> 1177236.12
A52: Accumulative Total | D52: =D50 -> 0 | E52: =E50+D52 -> 0 | F52: =F50+E52 -> 385153.6 | G52: =G50+F52 -> 1125833.6 | H52: =H50+G52 -> 2303069.72 | I52: =I50+H52 -> 3480305.84
A54: NEW TAX LEVIES - Line #13.10 and Line # 13.20
A57: Source and Type of New Revenue | C57: FY09 | D57: FY10 | E57: FY11 | F57: FY12 | G57: FY13 | H57: FY14 | I57: FY15
A58: New SDIT Line # 13.10 | C58: 0 | D58: =+TAX!F165 -> 0 | E58: =+TAX!G165 -> 0 | F58: =+TAX!H165 -> 0 | G58: =+TAX!I165 -> 0 | H58: =+TAX!J165 -> 0 | I58: =+TAX!K165 -> 0
A59: New Levy Modeled Line # 13.20 | C59: 0 | D59: =+TAX!F166 -> 0 | E59: =+TAX!G166 -> 0 | F59: =+TAX!H166 -> 0 | G59: =+TAX!I166 -> 0 | H59: =+TAX!J166 -> 0 | I59: =+TAX!K166 -> 0
A60: Total Line # 13.30 | C60: =C58+C59 -> 0 | D60: 0 | E60: 0 | F60: 0 | G60: 0 | H60: 0 | I60: =I58+I59 -> 0
A63: Section 3 TANGIBLE PERSONAL TAX AND PUBLIC UTILITY - Line #1.020
A64: ESTIMATED TANGIBLE PERSONAL TAX - Line #1.020
A67: TPP will be completely phased out as a result of HB66 at the end of Calendar year end 2010 as result of Hb 66.
A70: Source | C70: =C26 -> FY09 | D70: FY10 | E70: FY11 | F70: FY12 | G70: FY13 | H70: FY14 | I70: =I26 -> FY15
A71: Tangible Personal Property Taxes (TPP) | C71: 172823 | D71: 48780 | E71: =+TAX!G29 -> 13980.54428 | F71: =+TAX!H29 -> 0 | G71: =+TAX!I29 -> 0 | H71: =+TAX!J29 -> 0 | I71: =+TAX!K29 -> 0
A72: Total Line # 1.020 | C72: =SUM(C71:C71) -> 172823 | D72: 48780 | E72: 13980.54428 | F72: 0 | G72: 0 | H72: 0 | I72: =SUM(I71:I71) -> 0
A75: Section 4 SCHOOL DISTRICT INCOME TAX COLLECTIONS - Line #1.030
A76: SDIT REVENUES - Line # 1.030
A77: Source | B77: FY08 | C77: =C26 -> FY09 | D77: FY10 | E77: FY11 | F77: FY12 | G77: FY13 | H77: FY14 | I77: =I26 -> FY15 | L77: Collection in FY10 are estimated to be down by 12%
A78: SDIT Collection | B78: 0 | C78: =B80 -> 0 | D78: 0 | E78: 0 | F78: 0 | G78: 0 | H78: 0 | I78: 0
A79: Adjustments | B79: 0 | C79: 0 | D79: =-D78*0.1 -> 0 | E79: 0 | F79: 0 | G79: 0 | H79: 0 | I79: 0
A80: Total to Line #1.030 | B80: =SUM(B78:B79) -> 0 | C80: =SUM(C78:C79) -> 0 | D80: 0 | E80: 0 | F80: 0 | G80: 0 | H80: 0 | I80: =SUM(I78:I79) -> 0
A85: Section 5 OTHER LOCAL REVENUES - LINE #1.060
A86: LEARN Community school will return $110,000 plus $30,000 =$140,000 in FY11 and LEAD will return $110,000 in FY11
A87: OTHER LOCAL REVENUES - Line # 1.060
A90: Source | C90: =C26 -> FY09 | D90: FY10 | E90: FY11 | F90: FY12 | G90: FY13 | H90: FY14 | I90: =I26 -> FY15
A91: Open Enrollment Gross | C91: =884141-179254 -> 704887 | D91: 668277.7 | E91: =+D91*1.01 -> 674960.477 | F91: =+E91*1.01 -> 681710.0818 | G91: =+F91*1.01 -> 688527.1826 | H91: =+G91*1.01 -> 695412.4544 | I91: =+H91*1.01 -> 702366.579 | K91: Input % +/- Adjustment
A92: Interest | C92: 36686 | D92: 9642 | E92: =+D92*1 -> 9642 | F92: =+E92*1 -> 9642 | G92: =+F92*1 -> 9642 | H92: =+G92*1 -> 9642 | I92: =+H92*1 -> 9642 | K92: Input % of GF revenue
A93: Community Schools LEARN & LEAD | D93: 110000 | E93: 250000 | F93: 250000 | G93: 250000 | H93: 250000 | I93: 250000
A94: Tuition SF-14 & SF-14H | C94: 77030 | D94: 51475 | E94: =+D94*1.01 -> 51989.75 | F94: =+E94*1.01 -> 52509.6475 | G94: =+F94*1.01 -> 53034.74397 | H94: =+G94*1.01 -> 53565.09141 | I94: =+H94*1.01 -> 54100.74233
A95: Other Income and rentals | C95: 139479 | D95: 54908 | E95: =+D95*1 -> 54908 | F95: =+E95*1 -> 54908 | G95: =+F95*1 -> 54908 | H95: =+G95*1 -> 54908 | I95: =+H95*1 -> 54908
A96: Total Line # 1.060 | C96: =SUM(C91:C95) -> 958082 | D96: 894303 | E96: =SUM(E91:E95) -> 1041500.227 | F96: =SUM(F91:F95) -> 1048769.729 | G96: =SUM(G91:G95) -> 1056111.927 | H96: =SUM(H91:H95) -> 1063527.546 | I96: =SUM(I91:I95) -> 1071017.321
A98: Interest as % of Operating Revenus
A103: Section 6 STATE TAXES REIMBURSEMENT/PROPERTY TAX ALLOCATION - Line # 1.050
A105: a) ROLLBACK & HOMESTEAD REIMBURSEMENT
A107: Source | C107: =C26 -> FY09 | D107: FY10 | E107: FY11 | F107: FY12 | G107: FY13 | H107: FY14 | I107: =I26 -> FY15
A108: Base R & H | C108: 1116207 | D108: =+TAX!F30 -> 1118809 | E108: =+TAX!G30 -> 1127745.33 | F108: =+TAX!H30 -> 1078615.519 | G108: =+TAX!I30 -> 1032347.64 | H108: =+TAX!J30 -> 976086.0828 | I108: =+TAX!K30 -> 927717.4076
A109: New Levy- (Gross receipts not net of R&H) | C109: 0 | D109: 0 | E109: 0 | F109: 0 | G109: 0 | H109: 0 | I109: 0
A110: Total Rollback & Homestead | C110: =SUM(C108:C109) -> 1116207 | D110: 1118809 | E110: 1127745.33 | F110: 1078615.519 | G110: 1032347.64 | H110: 976086.0828 | I110: =SUM(I108:I109) -> 927717.4076
A112: b) TANGIBLE PERSONAL PROPERTY REIMBURSEMENTS - Fixed Rate
A114: These amounts reflect the state's reimbursement of tangible personal property tax that is being phased out in HB66. The numbers
A115: noted are from Ohio Department of taxation reports estimating payments to the district for both fixed Rate and Sum Levies.
A117: Source | C117: =C26 -> FY09 | D117: FY10 | E117: FY11 | F117: FY12 | G117: FY13 | H117: FY14 | I117: =I26 -> FY15
A118: TPP Reimbursement - Fixed Rate | C118: 319220 | D118: =+TAX!F153 -> 406784 | E118: =+TAX!G153 -> 414779 | F118: =+TAX!H153 -> 414779 | G118: =+TAX!I153 -> 414779 | H118: =+TAX!J153 -> 219588.8824 | I118: =+TAX!K153 -> 170791.3529
A119: Total TPP Fixed Rate | C119: =C118 -> 319220 | D119: 406784 | E119: 414779 | F119: 414779 | G119: 414779 | H119: 219588.8824 | I119: =I118 -> 170791.3529
A121: c) TANGIBLE PERSONAL PROPERTY REIMBURSEMENTS - Fixed Sum
A123: These amounts reflect the state's reimbursement of tangible personal property tax that is being phased out in HB66.
A125: Source | C125: =C117 -> FY09 | D125: FY10 | E125: FY11 | F125: FY12 | G125: FY13 | H125: FY14 | I125: =I117 -> FY15
A126: TPP Reimbursement - Fixed Sum | C126: 118868 | D126: =+TAX!F152 -> 150857 | E126: =+TAX!G152 -> 118868 | F126: =+TAX!H152 -> 118868 | G126: =+TAX!I152 -> 118868 | H126: =+TAX!J152 -> 62930.11765 | I126: =+TAX!K152 -> 48945.64706
A127: Total TPP Fixed Sum | C127: =C126 -> 118868 | D127: 150857 | E127: 118868 | F127: 118868 | G127: 118868 | H127: 62930.11765 | I127: =I126 -> 48945.64706
A129: SUMMARY OF STATE TAX REIMBURSEMENT
A131: Source | C131: =C125 -> FY09 | D131: FY10 | E131: FY11 | F131: FY12 | G131: FY13 | H131: FY14 | I131: =I125 -> FY15
A132: Rollback and Homestead | C132: =C110 -> 1116207 | D132: 1118809 | E132: 1127745.33 | F132: 1078615.519 | G132: 1032347.64 | H132: 976086.0828 | I132: =I110 -> 927717.4076
A133: TPP Reimbursement - Fixed Rate | C133: =C119 -> 319220 | D133: 406784 | E133: 414779 | F133: 414779 | G133: 414779 | H133: 219588.8824 | I133: =I119 -> 170791.3529
A134: TPP Reimbursement - Fixed Sum | C134: =C127 -> 118868 | D134: 150857 | E134: 118868 | F134: 118868 | G134: 118868 | H134: 62930.11765 | I134: =I127 -> 48945.64706
A135: Total Tax Reimb./Prop Allocations Line #1.050 | C135: =SUM(C132:C134) -> 1554295 | D135: 1676450 | E135: 1661392.33 | F135: 1612262.519 | G135: 1565994.64 | H135: 1258605.083 | I135: =SUM(I132:I134) -> 1147454.408
A139: Section 7 STATE FOUNDATION REVENUE ESTIMATES
A142: A) UNRESTRICTED STATE FOUNDATION REVENUE SF-3 FORM - Line #1.035
A143: FY12 &13 the distrcit has anticiapted state budget reductions of 10% then backing off to 5% in FY14. FY15 restored funding.
A144: Source | C144: =C26 -> FY09 | D144: FY10 | E144: FY11 | F144: FY12 | G144: FY13 | H144: FY14 | I144: =I26 -> FY15
A145: State Basic Aid | C145: 5297119 | D145: 5105746 | E145: =PASS!C128-(E154+E161) -> 4913821.64 | F145: =PASS!D128-F154 -> 5342402.602 | G145: =PASS!E128-G154 -> 5430970.085 | H145: =PASS!F128-H154 -> 5557352.795 | I145: =PASS!G128-I154 -> 5683735.504 | K145: Includes PBA which was eliminated in HB 1
A146: Other State Funding Adjustments | C146: 0 | D146: 0 | E146: 0 | F146: 0 | G146: =F146 -> 0 | H146: 0 | I146: 0
A147: State Budget Reductions 10% FY12&13; 5% FY14 | C147: 0 | D147: 0 | E147: 0 | F147: =-(E161+(0.02*F145)) -> -534883.052 | G147: =-(E161+(0.02*G145)) -> -536654.4017 | H147: =0.5*G147 -> -268327.2008 | I147: 0 | K147: enter +/- % state budget
A148: Total Unrest. State Aid Line # 1.035 | C148: =C145+C147 -> 5297119 | D148: =D145+D147 -> 5105746 | E148: =E145+E147 -> 4913821.64 | F148: =SUM(F145:F147) -> 4807519.55 | G148: =SUM(G145:G147) -> 4894315.683 | H148: =SUM(H145:H147) -> 5289025.594 | I148: =SUM(I145:I147) -> 5683735.504 | K148: reduction estimate
A150: B) RESTRICTED STATE REVENUES - Line #1.040
A152: Source | C152: =C26 -> FY09 | D152: FY10 | E152: FY11 | F152: FY12 | G152: FY13 | H152: FY14 | I152: =I26 -> FY15
A153: Bus Allowance | C153: 37985 | D153: 0 | E153: =D153 -> 0 | F153: =E153 -> 0 | G153: =F153 -> 0 | H153: =G153 -> 0 | I153: =H153 -> 0 | K153: Eliminated in HB 1 2009
A154: Career Tech & Other - Restricted | C154: 123600 | D154: 8505 | E154: =PASS!C120 -> 8569 | F154: =PASS!D120 -> 8569 | G154: =PASS!E120 -> 8569 | H154: =PASS!F120 -> 8569 | I154: =PASS!G120 -> 8569
A155: Total Restricted State Revenues Line #1.040 | C155: =SUM(C153:C154) -> 161585 | D155: 8505 | E155: 8569 | F155: 8569 | G155: 8569 | H155: 8569 | I155: =SUM(I153:I154) -> 8569
A157: C) RESTRICTED FEDERAL GRANTS IN AID - SFSF (Fund 532) & Ed Jobs Bill (Fund 504) - Line #1.045
A158: Estiamted SFSF in FY11 at 8% of state aid
A160: Source | C160: =+C152 -> FY09 | D160: =D26 -> FY10 | E160: FY11 | F160: FY12 | G160: FY13 | H160: FY14 | I160: FY15
A161: Restricted Federal Grants in Aid Line # 1.045 | C161: 0 | D161: 310815 | E161: 428035 | F161: 219093 | G161: 0 | H161: 0 | I161: 0 | K161: The SFSF was used to balance FY10 and FY11 state Budgets. It is assumed the state will put this money in PASS)
D162: {SFSF} | E162: {SFSF} | F162: {Ed Jobs}
A164: SUMMARY OF STATE FOUNDATION REVENUES
A165: Source | C165: =C26 -> FY09 | D165: FY10 | E165: FY11 | F165: FY12 | G165: FY13 | H165: FY14 | I165: =I26 -> FY15
A166: Unrestricted Line # 1.035 | C166: =C148 -> 5297119 | D166: 5105746 | E166: 4913821.64 | F166: 4807519.55 | G166: 4894315.683 | H166: 5289025.594 | I166: =I148 -> 5683735.504
A167: Restricted Line # 1.040 | C167: =C155 -> 161585 | D167: 8505 | E167: 8569 | F167: 8569 | G167: 8569 | H167: 8569 | I167: =I155 -> 8569
A168: Rest. Fed. Grants in Aid- SFSF Line #1.045 | C168: 0 | D168: =D161 -> 310815 | E168: 428035 | F168: 219093 | G168: 0 | H168: 0 | I168: 0
A169: Total State Foundation Revenue | C169: =SUM(C166:C167) -> 5458704 | D169: =SUM(D166:D168) -> 5425066 | E169: 5350425.64 | F169: 5035181.55 | G169: 4902884.683 | H169: 5297594.594 | I169: 5692304.504
A171: Section 8 SHORT TERM BORROWING & TRANSFERS IN/RETURN OF ADVANCES
A172: SHORT TERM MORROWING & TRANSFERS IN/RETURN OF ADVANCES
A174: These are non-operating revenues which are the repayment of short term loans to other funds over the previous fiscal year and
A175: reimbursements for expenses received for a previous fiscal year in the current fiscal year. All advances over year end are
A176: planned to be returned in the succeeding fiscal year.
A178: SHORT TERM BORROWING
A179: There is no planned short term borrowings at this time.
A181: Source | C181: =C26 -> FY09 | D181: FY10 | E181: FY11 | F181: FY12 | G181: FY13 | H181: FY14 | I181: =I26 -> FY15
A182: Tax Anticipation Notes (TANS) Line 2.010 | C182: 563382 | D182: =514105+1261895 -> 1776000 | E182: 0 | F182: 0 | G182: 0 | H182: 0 | I182: 0
A184: Source | C184: =C26 -> FY09 | D184: FY10 | E184: FY11 | F184: FY12 | G184: FY13 | H184: FY14 | I184: =I26 -> FY15
A185: State Emergency Loan - Line 2.020 | C185: 0 | D185: 0 | E185: 0 | F185: 0 | G185: 0 | H185: 0 | I185: 0
A187: Source | C187: =C26 -> FY09 | D187: FY10 | E187: FY11 | F187: FY12 | G187: FY13 | H187: FY14 | I187: =I26 -> FY15
A188: Transfers In - Line 2.040 | C188: 87352 | D188: 0 | E188: 0 | F188: 0 | G188: 0 | H188: 0 | I188: 0
A189: Advance Returns - Line 2.050 | C189: 0 | D189: 0 | E189: 0 | F189: 0 | G189: 0 | H189: 0 | I189: 0
A190: Total Transfer & Advances In | C190: =SUM(C188:C189) -> 87352 | D190: 0 | E190: 0 | F190: 0 | G190: 0 | H190: 0 | I190: =SUM(I188:I189) -> 0
A193: ALL OTHER FINANCIAL SOURCES - LINE #2.060
C194: =C26 -> FY09 | D194: FY10 | E194: FY11 | F194: FY12 | G194: FY13 | H194: FY14 | I194: =I26 -> FY15
A195: Refund of prior years expenditures | C195: 224234 | D195: 302796 | E195: 0 | F195: =E195 -> 0 | G195: =F195 -> 0 | H195: =G195 -> 0 | I195: =H195 -> 0
C197: =C26 -> FY09 | D197: FY10 | E197: FY11 | F197: FY12 | G197: FY13 | H197: FY14 | I197: =I26 -> FY15
A198: Rev. From State Advances Line 14.010 | C198: 0 | D198: =C198 -> 0 | E198: 0 | F198: 0 | G198: 0 | H198: 0 | I198: 0
C201: EXPENSE ASSUMPTIONS
A203: Section 9 WAGES - Line #3.010
A204: WAGES - Line #3.010
A205: Amounts noted for staff reductions are for staff reductions and wages differences between retirees and lower paid new staff.
A207: Source | C207: =+C187 -> FY09 | D207: FY10 | E207: FY11 | F207: FY12 | G207: FY13 | H207: FY14 | I207: =+I187 -> FY15
A208: Base Wages | C208: 7933566 | D208: 7933566 | E208: =+D216-(+D213+D214) -> 7516912.622 | F208: =+E216-E213 -> 7569818.137 | G208: =+F216-F213 -> 7698505.045 | H208: =+G216 -> 7829379.631 | I208: =+H216 -> 7962479.084
A209: Increases | C209: 0 | D209: =D217*D208 -> 0 | E209: 0 | F209: 0 | G209: 0 | H209: 0 | I209: 0 | K209: Input negotiated % raises
A210: Steps & Training | C210: 0 | D210: =0.017*D208 -> 134870.622 | E210: 127787.5146 | F210: 128686.9083 | G210: 130874.5858 | H210: 133099.4537 | I210: 135362.1444 | K210: Input Avg Step %
A211: Growth | D211: =STAFF_Plan!G16 -> 0 | E211: =STAFF_Plan!I16 -> 0 | F211: =STAFF_Plan!K16 -> 0 | G211: =STAFF_Plan!M16 -> 0 | H211: =STAFF_Plan!O16 -> 0 | I211: =STAFF_Plan!Q16 -> 0
A212: Unfunded Recapture | D212: =STAFF_Plan!G23+STAFF_Plan!G29 -> 0 | E212: =STAFF_Plan!I23+STAFF_Plan!I29 -> 0 | F212: =STAFF_Plan!K23+STAFF_Plan!K29 -> 0 | G212: =STAFF_Plan!M23+STAFF_Plan!M29 -> 0 | H212: =STAFF_Plan!O23+STAFF_Plan!O29 -> 0 | I212: =STAFF_Plan!Q23+STAFF_Plan!Q29 -> 0
A213: Retirement Incentive | C213: 0 | D213: 0 | E213: 0 | F213: 0 | G213: 0 | H213: 0 | I213: 0 | K213: Input # of Staff taking incentive ($27,000 over three years)
A214: Severance - Extraordinary** | C214: 0 | D214: 0 | E214: 0 | F214: 0 | G214: 0 | H214: 0 | I214: 0 | K214: Input # of Additional Retirees ($15K avg. severance)
A215: Staff Reductions | C215: 0 | D215: -551524 | E215: -74882 | F215: =-STAFF_Plan!K35 -> 0 | G215: =-STAFF_Plan!M35 -> 0 | H215: =-STAFF_Plan!O35 -> 0 | I215: =-STAFF_Plan!Q35 -> 0 | K215: Input additional cost factors outside of staffing plan
A216: Total Wages Line 3.010 | C216: =SUM(C208:C215) -> 7933566 | D216: 7516912.622 | E216: 7569818.137 | F216: 7698505.045 | G216: 7829379.631 | H216: 7962479.084 | I216: =SUM(I208:I215) -> 8097841.229 | K216: new teacher if replaced, etc.)
A217: Rate Increase | D217: 0 | E217: 0 | F217: 0 | G217: 0 | H217: 0 | I217: 0
A218: ** - This would be severance for more than the normal number of retirees due to factors like retirement incentives.
A221: Section 10 FRINGES BENEFITS - Line #3.020
A223: This area of the forecast captures all costs associated with benefits and retirement costs. The district pays 14% of each dollar
A224: paid in wages to either the State Teachers Retirement System or the School Employees Retirement System as required by Ohio
A225: law. While this amount is high by private employer standards, there have been two attempts in the past couple years to raise
A226: this amount by an additional .5% a year for 5 years to 16.5%. This would increase our district's cost by roughly $320,000 a year when
A227: fully phased in. We have not made adjustments in the forecast for any change of this nature with STRS or SERS.
A228: SERS 1/6 of a year catchup went into effect in FY11 and will end after FY16.
A229: A) STRS/SERS will increase as Wages increase
A231: Source | C231: =+C207 -> FY09 | D231: FY10 | E231: FY11 | F231: FY12 | G231: FY13 | H231: FY14 | I231: =+I207 -> FY15
A232: Base Wages | C232: 1174485 | D232: 1174485 | E232: =D239 -> 1116153.527 | F232: =E239 -> 1148560.299 | G232: =F239 -> 1191576.466 | H232: =G239 -> 1234898.908 | I232: =H239 -> 1278532.832
A233: Increases | C233: =0.14*C209 -> 0 | D233: =0.14*D209 -> 0 | E233: 0 | F233: 0 | G233: 0 | H233: =0.14*H209 -> 0 | I233: 0
A234: Steps & Training | C234: 0 | D234: =0.14*D210 -> 18881.88708 | E234: 17890.25204 | F234: 18016.16717 | G234: 18322.44201 | H234: 18633.92352 | I234: 18950.70022
A235: Growth | C235: 0 | D235: 0 | E235: 0 | F235: 0 | G235: 0 | H235: 0 | I235: 0
A236: Unfunded Recapture | C236: 0 | D236: 0 | E236: 0 | F236: 0 | G236: 0 | H236: 0 | I236: 0
A237: Staff Reductions | C237: =0.14*C215 -> 0 | D237: =0.14*D215 -> -77213.36 | E237: -10483.48 | F237: 0 | G237: 0 | H237: 0 | I237: =0.14*I215 -> 0
A238: Other - SERS 1/6 Pmt. Ends FY16 | C238: =1.05*B238 -> 0 | D238: =0.14*C238 -> 0 | E238: 25000 | F238: =E238 -> 25000 | G238: =F238 -> 25000 | H238: =G238 -> 25000 | I238: =H238 -> 25000 | K238: Input extraordinary cost factors
A239: Total Retirement System Estimates | C239: =SUM(C232:C238) -> 1174485 | D239: 1116153.527 | E239: 1148560.299 | F239: 1191576.466 | G239: 1234898.908 | H239: 1278532.832 | I239: =SUM(I232:I238) -> 1322483.532
A241: B) INSURANCES
A243: Estimated increases are 5% for FY10 & 11, 10% for 2012-2014, for medical, dental and vision insurances. The trend for insurances is coming down
A244: so inflation has been adjusted down from 15% to reflect this new information which is the best data available at this time. FY 10& 11
A245: reflects savings odue to plan changes effective Jan 1, 2009. Both adjustments are
A246: needed to reflect the full 12 month savings of these changes, which affect two fiscal years.
A248: Also noted below are adjustments for premium holidays which are one time waivers of monthly funding of our health care plan
A249: care plan. The holidays taken in one year must be readjusted to the base of the following year so annual costs at existing funding
A250: rates are known for future forecasting.
A252: Source | C252: =+C231 -> FY09 | D252: FY10 | E252: FY11 | F252: FY12 | G252: FY13 | H252: FY14 | I252: =+I231 -> FY15
A253: Base Costs | C253: 2591278 | D253: =2567859-65176 -> 2502683 | E253: =D260 -> 2370317.24 | F253: =E260 -> 2541970.939 | G253: =F260 -> 2745328.614 | H253: =G260 -> 2964954.903 | I253: =H260 -> 3202151.296
A254: Base Adjustment for Premium Holiday | C254: 0 | D254: 0 | E254: 0 | F254: 0 | G254: 0 | H254: 0 | I254: 0 | K254: Adjust when premium holidays
A255: Premium Holiday | C255: 0 | D255: 0 | E255: 0 | F255: 0 | G255: 0 | H255: 0 | I255: 0 | K255: are taken so base annual amount is accurate
A256: Growth | C256: 0 | D256: =0.08*D211 -> 0 | E256: 0 | F256: 0 | G256: 0 | H256: =0.08*H211 -> 0 | I256: =0.08*I211 -> 0
A257: Unfunded Recapture | C257: 0 | D257: 0 | E257: 0 | F257: 0 | G257: 0 | H257: =0.08*H212 -> 0 | I257: =0.08*I212 -> 0
A258: Staff Reductions | C258: =0.24*C215 -> 0 | D258: -132365.76 | E258: -17971.68 | F258: 0 | G258: 0 | H258: 0 | I258: =0.24*I215 -> 0
A259: Insurance Trend Adjustment | C259: 0 | D259: 0 | E259: =E253*E261 -> 189625.3792 | F259: =F261*E260 -> 203357.6751 | G259: =G261*F260 -> 219626.2891 | H259: =H261*G260 -> 237196.3923 | I259: =I261*H260 -> 256172.1037 | K259: Input % +/- Adjustment
A260: Total Insurance Estimates | C260: =SUM(C253:C259) -> 2591278 | D260: 2370317.24 | E260: 2541970.939 | F260: 2745328.614 | G260: 2964954.903 | H260: 3202151.296 | I260: =SUM(I253:I259) -> 3458323.399
B261: Percent Increase | E261: 0.08 | F261: 0.08 | G261: 0.08 | H261: 0.08 | I261: 0.08
A263: C) WORKERS COMPENSATION/UNEMPLOYMENT
A264: Workers compensation is expected to bre 1.58% of wages due to high claim experience and Unemployment Comp has been negligible.
A267: Source | C267: =+C252 -> FY09 | D267: FY10 | E267: FY11 | F267: FY12 | G267: FY13 | H267: FY14 | I267: =+I252 -> FY15
A268: Workers Comp Base Cost Estimates | C268: 53948 | D268: =53950+65176 -> 119126 | E268: =E216*0.0158 -> 119603.1266 | F268: =F216*0.0158 -> 121636.3797 | G268: =G216*0.0158 -> 123704.1982 | H268: =H216*0.0158 -> 125807.1695 | I268: =I216*0.0158 -> 127945.8914 | K268: Input % +/- Adjustment
A269: Unemployment Compensation | C269: 2655 | D269: 18317 | E269: 3000 | F269: 3000 | G269: 3000 | H269: 3000 | I269: 3000
A270: Toal BWC & UC Cost Estimates | C270: =SUM(C268:C269) -> 56603 | D270: 137443 | E270: 122603.1266 | F270: 124636.3797 | G270: 126704.1982 | H270: 128807.1695 | I270: =SUM(I268:I269) -> 130945.8914
A272: D) MEDICARE
A274: Medicare will continue to increase at the rate of increase in wages. Contributions are 1.45% for all new employees to the district
A275: on or after April 1, 1986. These amounts are growing at the general growth rate of wages which will be estimated at 4%.
A277: Source | C277: =+C267 -> FY09 | D277: FY10 | E277: FY11 | F277: FY12 | G277: FY13 | H277: FY14 | I277: =+I267 -> FY15
A278: Base Costs | C278: 98026 | D278: =0.0145*D216 -> 108995.233 | E278: =E216*0.012 -> 90837.81764 | F278: =F216*0.012 -> 92382.06054 | G278: =G216*0.012 -> 93952.55557 | H278: =H216*0.012 -> 95549.74901 | I278: =I216*0.012 -> 97174.09475 | K278: % Increase is same as step inc. % and
A279: Growth | C279: =0.0145*C211 -> 0 | D279: 0 | E279: 0 | F279: 0 | G279: 0 | H279: =0.0145*H211 -> 0 | I279: =0.0145*I211 -> 0 | K279: base wage % adjust if those are changed.
A280: Unfunded Recapture | C280: 0 | D280: 0 | E280: 0 | F280: 0 | G280: 0 | H280: =0.0145*H212 -> 0 | I280: =0.0145*I212 -> 0
A281: Staff Reductions | C281: =0.0145*C215 -> 0 | D281: -7997.098 | E281: -1085.789 | F281: 0 | G281: 0 | H281: 0 | I281: =0.0145*I215 -> 0
A282: Total Medicare Estimate | C282: =SUM(C278:C281) -> 98026 | D282: 100998.135 | E282: 89752.02864 | F282: 92382.06054 | G282: 93952.55557 | H282: 95549.74901 | I282: =SUM(I278:I281) -> 97174.09475
A284: SUMMARY OF FRINGE BENEFITS -Line #3.020
... 108 more rows

Sheet TAX
A1: SUMMARY OF ASSESSED VALUATION INCLUDING PUPP AND TPP; PROPERTY TAX RATES; AND, PROPERTY TAX ESTIMATES
A2: =" IRN: "&+'Front Pg'!D60&" "&+'Front Pg'!A2:F2 -> IRN: 050195 LIBERTY LOCAL SCHOOL DISTRICT - TRUMBULL COUNTY
A3: Updated October 15, 2010
E4: Actual | F4: Actual | G4: Estimated | H4: Estimated | I4: Estimated | J4: Estimated | K4: Estimated
A5: PROPERTY TAX VALUE CATEGORIES: | E5: TAX YEAR 2008 | F5: TAX YEAR 2009 | G5: TAX YEAR 2010 | H5: TAX YEAR 2011 | I5: TAX YEAR 2012 | J5: TAX YEAR 2013 | K5: TAX YEAR2014
E6: COLLECT 2009 | F6: COLLECT 2010 | G6: COLLECT 2011 | H6: COLLECT 2012 | I6: COLLECT 2013 | J6: COLLECT 2014 | K6: COLLECT2015
A7: Res/Ag | E7: =E81 -> 172637070 | F7: 173371540 | G7: 173371540 | H7: 173371540 | I7: 173371540 | J7: 173371540 | K7: =K81 -> 173371540
A8: Comm/Ind | E8: =E95 -> 53432710 | F8: 54568870 | G8: 54568870 | H8: 54568870 | I8: 54568870 | J8: 54568870 | K8: =K95 -> 54568870
A9: PUPP | E9: =E100+SUM(E101:E102) -> 4778850 | F9: 4947040 | G9: 4947040 | H9: 4947040 | I9: 4947040 | J9: 4947040 | K9: =K100+SUM(K101:K102) -> 4947040
A10: TPP | E10: =E103 -> 1180240 | F10: 397310 | G10: 0 | H10: 0 | I10: 0 | J10: 0 | K10: =K103 -> 0
A11: Total All Property Value To SF-3 Valuation Info | E11: =SUM(E7:E10) -> 232028870 | F11: 233284760 | G11: 232887450 | H11: 232887450 | I11: 232887450 | J11: 232887450 | K11: =SUM(K7:K10) -> 232887450
A14: PROPERTY VALUE GROWTH RATES:
A16: Res/Ag | F16: =1-(E7/F7) -> 0.004236393124 | G16: 0 | H16: 0 | I16: 0 | J16: 0 | K16: 0
A17: Comm/Ind | F17: =1-(E8/F8) -> 0.02082066204 | G17: 0 | H17: 0 | I17: 0 | J17: 0 | K17: 0
A18: PUPP | F18: 0.03399810796 | G18: 0 | H18: 0 | I18: 0 | J18: 0 | K18: 0
A19: TPP | F19: 0.5 | G19: 1 | H19: 0 | I19: 0 | J19: 0 | K19: 0
A21: Total % Change in AV's | F21: =1-(E11/F11) -> 0.005383506407 | G21: -0.00170601722 | H21: 0 | I21: 0 | J21: 0 | K21: 0
A24: ESTIMATED REAL ESTATE TAX SUMMARY | E24: Actual | F24: Estimated | G24: Estimated | H24: Estimated | I24: Estimated | J24: Estimated | K24: Estimated
B25: Line | E25: FY09 | F25: FY 10 | G25: FY 11 | H25: FY 12 | I25: FY 13 | J25: FY 14 | K25: FY 15
A26: Res Ag./Comm/PUPP collection Est. | E26: =E136 -> 7928866 | F26: 7318469 | G26: 7182174.062 | H26: 6986981.594 | I26: 6690092.395 | J26: 6329076.315 | K26: =K136 -> 6019035.749
A27: HB 264 Taxes & BAN Ded. From Auditor | F27: 529137 | G27: 417050 | H27: 409546 | I27: 397468 | J27: 385392 | K27: 373315
A28: Total Line 1.01 to Note Calc | B28: 1.01 | E28: =E26+E27 -> 7928866 | F28: 7847606 | G28: 7599224.062 | H28: 7396527.594 | I28: 7087560.395 | J28: 6714468.315 | K28: =K26+K27 -> 6392350.749 | M28: 367276
A29: TPP Tax Estimate | B29: 1.02 | E29: =E147 -> 172823 | F29: 48780 | G29: 13980.54428 | H29: 0 | I29: 0 | J29: 0 | K29: =K147 -> 0
A30: Est. Rollback, & Homstead | B30: 1.05 | E30: =E142 -> 1119661.027 | F30: 1118809 | G30: 1127745.33 | H30: 1078615.519 | I30: 1032347.64 | J30: 976086.0828 | K30: =K142 -> 927717.4076
A32: Property Tax Levy Rates (1)
B33: First | C33: Last
A34: General Fund Levies (Gross Tax Rates) | B34: Year | C34: Year | D34: Collect 2008 | E34: COLLECT 2009 | F34: COLLECT 2010 | G34: COLLECT 2011 | H34: COLLECT 2012 | I34: COLLECT 2013 | J34: COLLECT 2014 | K34: COLLECT2015
A35: Inside Millage | B35: n/a | C35: n/a | D35: 5.7 | E35: =D35 -> 5.7 | F35: 5.7 | G35: 5.7 | H35: 5.7 | I35: 5.7 | J35: 5.7 | K35: 5.7
A36: Current Expense 1976 | B36: n/a | C36: n/a | D36: 26.5 | E36: 26.5 | F36: 26.5 | G36: =F36 -> 26.5 | H36: =G36 -> 26.5 | I36: 26.5 | J36: 26.5 | K36: 26.5
A37: Current Expense | B37: n/a | C37: n/a | D37: 0 | E37: 0 | F37: 0 | G37: =F37 -> 0 | H37: 0 | I37: 0 | J37: 0 | K37: 0
A38: Current Expense | B38: n/a | C38: n/a | D38: 0 | E38: 0 | F38: 0 | G38: =F38 -> 0 | H38: 0 | I38: 0 | J38: 0 | K38: 0
A39: Current Expense | B39: n/a | C39: n/a | D39: 0 | E39: 0 | F39: 0 | G39: =F39 -> 0 | H39: 0 | I39: 0 | J39: 0 | K39: 0 | M39: If levies expire add them back below as renewal or replacement…1 to 10 years.
A40: Emergency Levy 2005 & 10 ($1,776,316)) | B40: 2011 | C40: 2015 | D40: 7.45 | E40: 7.45 | F40: 7.45 | G40: 7.45 | H40: 7.45 | I40: 7.45 | J40: 7.45 | K40: 7.45
A41: Emergency Levy 2006 ($740,680) | B41: 2007 | C41: 2011 | D41: 3.15 | E41: 3.15 | F41: 3.1 | G41: 3.1 | H41: 0 | I41: 0 | J41: 0 | K41: 0
A42: Emergency Levy 2009 ($839,531) | B42: 2009 | C42: 2013 | D42: 3.55 | E42: 3.55 | F42: 3.55 | G42: 3.55 | H42: 3.55 | I42: 3.55 | J42: 0 | K42: 0
A43: Total | D43: =SUM(D35:D42) -> 46.35 | E43: =SUM(E35:E42) -> 46.35 | F43: 46.3 | G43: 46.3 | H43: 43.2 | I43: 43.2 | J43: 39.65 | K43: =SUM(K35:K42) -> 39.65
A45: General Fund Levies (Effective Tax Rates - Res/Ag)
A46: Inside Millage | B46: n/a | C46: n/a | D46: =D35 -> 5.7 | E46: =D46 -> 5.7 | F46: 5.7 | G46: 5.7 | H46: 5.7 | I46: 5.7 | J46: 5.7 | K46: 5.7
A47: Current Expense 1976 | B47: n/a | C47: n/a | D47: 16.8109 | E47: 16.8019 | F47: 16.8467 | G47: =F47 -> 16.8467 | H47: 16.8467 | I47: 16.8467 | J47: 16.8467 | K47: 16.8467
A48: =A37 -> Current Expense | B48: n/a | C48: n/a | D48: 0 | E48: =D48 -> 0 | F48: 0 | G48: 0 | H48: 0 | I48: 0 | J48: 0 | K48: 0
A49: Current Expense | B49: =+B38 -> n/a | C49: =+C38 -> n/a | D49: 0 | E49: 0 | F49: 0 | G49: 0 | H49: 0 | I49: 0 | J49: 0 | K49: 0
A50: Current Expense | B50: n/a | C50: =+C39 -> n/a | D50: 0 | E50: 0 | F50: 0 | G50: 0 | H50: 0 | I50: 0 | J50: 0 | K50: 0
A51: Emergency Levy 2005 & 10 ($1,776,316)) | B51: =B40 -> 2011 | C51: 2015 | D51: =D40 -> 7.45 | E51: 7.45 | F51: 7.45 | G51: 7.45 | H51: 7.45 | I51: 7.45 | J51: 7.45 | K51: =K40 -> 7.45
A52: Emergency Levy 2006 ($740,680) | B52: 2007 | C52: 2011 | D52: =D41 -> 3.15 | E52: 3.15 | F52: 3.1 | G52: =G41 -> 3.1 | H52: 0 | I52: 0 | J52: 0 | K52: =K41 -> 0
A53: Emergency Levy 2009 ($839,531) | B53: 2009 | C53: 2013 | D53: 3.55 | E53: 3.55 | F53: 3.55 | G53: 3.55 | H53: 3.55 | I53: 3.55 | J53: 0 | K53: =K42 -> 0
A54: Total | D54: =SUM(D46:D53) -> 36.6609 | E54: =SUM(E46:E53) -> 36.6519 | F54: 36.6467 | G54: 36.6467 | H54: 33.5467 | I54: 33.5467 | J54: 29.9967 | K54: =SUM(K46:K53) -> 29.9967
A56: General Fund Levies (Effective Tax Rates - Comm/Ind)
A57: Inside Millage | B57: n/a | C57: n/a | D57: =D35 -> 5.7 | E57: =E35 -> 5.7 | F57: 5.7 | G57: 5.7 | H57: 5.7 | I57: 5.7 | J57: 5.7 | K57: =K35 -> 5.7
A58: Current Expense 1976 | B58: n/a | C58: n/a | D58: 17.2616 | E58: 17.2616 | F58: 17.2054 | G58: =F58 -> 17.2054 | H58: =G58 -> 17.2054 | I58: 17.2054 | J58: 17.2054 | K58: 17.2054
A59: =A37 -> Current Expense | B59: n/a | C59: n/a | D59: 0 | E59: =D59 -> 0 | F59: 0 | G59: 0 | H59: 0 | I59: 0 | J59: 0 | K59: 0
A60: =A38 -> Current Expense | B60: =+B38 -> n/a | C60: n/a | D60: 0 | E60: =D60 -> 0 | F60: 0 | G60: 0 | H60: 0 | I60: 0 | J60: 0 | K60: 0
A61: =A39 -> Current Expense | B61: n/a | C61: n/a | D61: 0 | E61: =D61 -> 0 | F61: 0 | G61: 0 | H61: 0 | I61: 0 | J61: 0 | K61: 0
A62: =A51 -> Emergency Levy 2005 & 10 ($1,776,316)) | B62: 2011 | C62: 2015 | D62: =D40 -> 7.45 | E62: =E40 -> 7.45 | F62: 7.45 | G62: 7.45 | H62: 7.45 | I62: 7.45 | J62: 7.45 | K62: =K40 -> 7.45
A63: =A41 -> Emergency Levy 2006 ($740,680) | B63: 2007 | C63: 2011 | D63: =D41 -> 3.15 | E63: 3.15 | F63: 3.1 | G63: 3.1 | H63: 0 | I63: 0 | J63: 0 | K63: =K41 -> 0
A64: =A42 -> Emergency Levy 2009 ($839,531) | B64: 2009 | C64: 2013 | D64: 3.55 | E64: 3.55 | F64: 3.55 | G64: 3.55 | H64: 3.55 | I64: 3.55 | J64: 0 | K64: =K42 -> 0
A65: Total | D65: =SUM(D57:D64) -> 37.1116 | E65: =SUM(E57:E64) -> 37.1116 | F65: 37.0054 | G65: 37.0054 | H65: 33.9054 | I65: 33.9054 | J65: 30.3554 | K65: =SUM(K57:K64) -> 30.3554
A67: Assessed Valuations for General Property Taxes (2)
D68: Actual | E68: Actual | F68: Estimated | G68: Estimated | H68: Estimated | I68: Estimated | J68: Estimated | K68: Estimated
A69: Res/Ag -Class 1 Real Property | D69: COLLECT 2008 | E69: COLLECT 2009 | F69: COLLECT 2010 | G69: COLLECT 2011 | H69: COLLECT 2012 | I69: COLLECT 2013 | J69: COLLECT 2014 | K69: COLLECT2015
A70: Res/Ag - Carryover Value (Prior Tax Year Value) | D70: 172637070 | E70: =D81 -> 172637070 | F70: 172637070 | G70: 173371540 | H70: 173371540 | I70: 173371540 | J70: 173371540 | K70: 173371540
E71: Reappraisal | H71: Update
A72: Increases/(Decreases) To AV Due To : | D72: (Note: insert changes in AV below or % change in value due to reappraisal or update below…County Auditor Abstract a Good Source)
A73: Net Demolition & New Construction | D73: 0 | E73: 0 | F73: 734470 | G73: 0 | H73: 0 | I73: 0 | J73: 0 | K73: 0 | M73: Will increase decrease tax collections
A74: Changes in Exempt Property | D74: 0 | E74: 0 | F74: 0 | G74: 0 | H74: 0 | I74: 0 | J74: 0 | K74: 0 | M74: Will increase decrease tax collections
A75: Changes by BOR & BTA | D75: 0 | E75: 0 | F75: 0 | G75: 0 | H75: 0 | I75: 0 | J75: 0 | K75: 0 | M75: Will increase decrease tax collections first year then adjust effective millage
A76: Estimated % Increase on Reappraisal | D76: 0 | E76: 0 | F76: 0 | G76: 0 | H76: 0 | I76: 0 | J76: 0 | K76: 0
A77: Reappraisal/Updates | D77: =D70*D76 -> 0 | E77: 0 | F77: 0 | G77: 0 | H77: 0 | I77: 0 | J77: 0 | K77: =K70*K76 -> 0 | M77: Will increase decrease tax collections based only on inside millage
A78: Miscellaneous | D78: 0 | E78: 0 | F78: 0 | G78: 0 | H78: 0 | I78: 0 | J78: 0 | K78: 0 | M78: Will increase decrease tax collections
A79: Subtotal Chages in Res/Ag Value | D79: =SUM(D73:D75)+SUM(D77:D78) -> 0 | E79: =SUM(E73:E75)+SUM(E77:E78) -> 0 | F79: 734470 | G79: 0 | H79: 0 | I79: 0 | J79: 0 | K79: =SUM(K73:K75)+SUM(K77:K78) -> 0
A81: Total Res/Ag Class 1 Valuation | D81: =D70+D79 -> 172637070 | E81: 172637070 | F81: 173371540 | G81: 173371540 | H81: 173371540 | I81: 173371540 | J81: 173371540 | K81: =K70+K79 -> 173371540
A83: Comm/Ind -Class 2 Real Property
A84: Comm/Ind/Mineral/RR- Carryover Value | D84: 53432710 | E84: =D95 -> 53432710 | F84: 53432710 | G84: 54568870 | H84: 54568870 | I84: 54568870 | J84: 54568870 | K84: 54568870
A86: Increases/(Decreases) To AV Due To : | D86: (Note: insert changes in AV below or % change in value due to reappraisal or update below…County Auditor Abstract a Good Source)
A87: Net Demolition & New Construction | D87: 0 | E87: 0 | F87: 1136160 | G87: 0 | H87: 0 | I87: 0 | J87: 0 | K87: 0 | M87: Will increase decrease tax collections
A88: Changes in Exempt Property | D88: 0 | E88: 0 | F88: 0 | G88: 0 | H88: 0 | I88: 0 | J88: 0 | K88: 0 | M88: Will increase decrease tax collections
A89: Changes by BOR & BTA | D89: 0 | E89: 0 | F89: 0 | G89: 0 | H89: 0 | I89: 0 | J89: 0 | K89: 0 | M89: Will increase decrease tax collections first year then adjust effective millage
A90: Estimated % Increase on Reappraisal | D90: 0 | E90: 0 | F90: 0 | G90: 0 | H90: 0 | I90: 0 | J90: 0 | K90: 0
A91: Reappraisal/Updates | D91: =D84*D90 -> 0 | E91: 0 | F91: 0 | G91: 0 | H91: 0 | I91: 0 | J91: 0 | K91: =K84*K90 -> 0 | M91: Will increase decrease tax collections based only on inside millage
A92: Miscellaneous | D92: 0 | E92: 0 | F92: 0 | G92: 0 | H92: 0 | I92: 0 | J92: 0 | K92: 0 | M92: Will increase decrease tax collections
A93: Subtotal Chages in Comm/Ind Value | D93: =SUM(D87:D89)+SUM(D91:D92) -> 0 | E93: =SUM(E87:E89)+SUM(E91:E92) -> 0 | F93: 1136160 | G93: 0 | H93: 0 | I93: 0 | J93: 0 | K93: =SUM(K87:K89)+SUM(K91:K92) -> 0
A95: Total Comm/Ind Class 2 Valuation | D95: =D84+D93 -> 53432710 | E95: 53432710 | F95: 54568870 | G95: 54568870 | H95: 54568870 | I95: 54568870 | J95: 54568870 | K95: =K84+K93 -> 54568870
A96: Total Res/Ag & Comm/Ind Valuation | D96: =D81+D95 -> 226069780 | E96: 226069780 | F96: 227940410 | G96: 227940410 | H96: 227940410 | I96: 227940410 | J96: 227940410 | K96: =K81+K95 -> 227940410
D98: (Reasearch Note Clik Below to go to website for values)
A99: Public Utility Tangible (PUPP) & TPP Valuation | D99: http://tax.ohio.gov/divisions/personal_property/documents/School_PUPP_2009_with_names_and_counties_for_web_proper_home_counties.xls
A100: Carryover PUPP Value | D100: 4590060 | E100: =D100+D101+D102 -> 4590060 | F100: 4778850 | G100: 4947040 | H100: 4947040 | I100: 4947040 | J100: 4947040 | K100: 4947040
A101: Telephone/Railroad Phase out | D101: 0 | E101: 0 | F101: 0 | G101: 0 | H101: 0 | I101: 0 | J101: 0 | K101: 0 | M101: Will increase decrease tax collections on gross millage amounts
A102: Adjustments in PUPP values +/(-) | D102: 0 | E102: 188790 | F102: 168190 | G102: 0 | H102: 0 | I102: 0 | J102: 0 | K102: 0 | M102: Will increase decrease tax collections on gross millage amounts
A103: Tangible Personal Property (TPP) | D103: 2663059 | E103: 1180240 | F103: 397310 | G103: 0 | H103: 0 | I103: 0 | J103: 0 | K103: 0 | M103: HB66 phases out TPP in 2010. FY11 collection is last TPP.
A104: Total PUPP & TPP | D104: =D100+D101++D102+D103 -> 7253119 | E104: =E100+E101++E102+E103 -> 5959090 | F104: 5344350 | G104: 4947040 | H104: 4947040 | I104: 4947040 | J104: 4947040 | K104: =K100+K101++K102+K103 -> 4947040
A105: Total All Real, PUPP and TPP Valuation | D105: =D96+D104 -> 233322899 | E105: 232028870 | F105: 233284760 | G105: 232887450 | H105: 232887450 | I105: 232887450 | J105: 232887450 | K105: =K96+K104 -> 232887450 | M105: Use to determine millages unadjustemd amount for PASS charge off.
B107: (Note: The amounts in gray are calculated based on data input above do not over ride) (3)
A108: Est. Tax Dollars -Cal. Year Basis | D108: COLLECT 2008 | E108: COLLECT 2009 | F108: COLLECT 2010 | G108: COLLECT 2011 | H108: COLLECT 2012 | I108: COLLECT 2013 | J108: COLLECT 2014 | K108: COLLECT2015
A109: Tax Revenue Est. from Res/Ag Cal Year | D109: =D81*(D54/1000) -> 6329030.36 | E109: 6327476.626 | F109: 6353494.815 | G109: 6353494.815 | H109: 5816043.041 | I109: 5816043.041 | J109: 5200574.074 | K109: =K81*(K54/1000) -> 5200574.074
A110: Tax Revenue Est. from Comm/Ind Cal Year | D110: =D95*(D65/1000) -> 1982973.36 | E110: 1982973.36 | F110: 2019342.862 | G110: 2019342.862 | H110: 1850179.365 | I110: 1850179.365 | J110: 1656459.876 | K110: =K95*(K65/1000) -> 1656459.876
A111: Tax Revenue from PUPP | D111: =(SUM(D100:D102)*(D43/1000)) -> 212749.281 | E111: 221499.6975 | F111: 229047.952 | G111: 229047.952 | H111: 213712.128 | I111: 213712.128 | J111: 196150.136 | K111: =(SUM(K100:K102)*(K43/1000)) -> 196150.136
A112: Tax Revenue from TPP | D112: =D103*(D43/1000) -> 123432.7847 | E112: 54704.124 | F112: 18395.453 | G112: 0 | H112: 0 | I112: 0 | J112: 0 | K112: =K103*(K43/1000) -> 0
A113: Total Property Tax Estimate Calendar Year Basis | D113: =SUM(D109:D112) -> 8648185.786 | E113: =SUM(E109:E112) -> 8586653.808 | F113: 8620281.082 | G113: 8601885.629 | H113: 7879934.534 | I113: 7879934.534 | J113: 7053184.086 | K113: =SUM(K109:K112) -> 7053184.086
B115: Adjust for Rollback & Homestead and $10,000K State Property Tax Credits To Reimburse District
A116: Est. State Property Tax Credits | B116: Input % | D116: COLLECT 2008 | E116: COLLECT 2009 | F116: COLLECT 2010 | G116: COLLECT 2011 | H116: COLLECT 2012 | I116: COLLECT 2013 | J116: COLLECT 2014 | K116: COLLECT2015
A117: 10% Rollback | B117: 0.1 | D117: =$B117*D$109 -> 632903.036 | E117: 699570 | F117: =$B117*F$109 -> 635349.4815 | G117: 635349.4815 | H117: 581604.3041 | I117: 581604.3041 | J117: 520057.4074 | K117: 520057.4074
A118: 2.5% Rollback at estimated % collection | B118: 0.0175 | D118: =$B118*D$109 -> 110758.0313 | E118: 416637 | F118: 111186.1593 | G118: 111186.1593 | H118: 101780.7532 | I118: 101780.7532 | J118: 91010.04629 | K118: 91010.04629
A119: Homestead at est. % collection | B119: 0.06 | D119: =$B119*D$109 -> 379741.8216 | E119: 0 | F119: 381209.6889 | G119: 381209.6889 | H119: 348962.5825 | I119: 348962.5825 | J119: 312034.4444 | K119: 312034.4444
A120: TPP $10,000 Exemption | B120: 0.05 | D120: =$B120*D112 -> 6171.639233 | E120: 0 | F120: 919.77265 | G120: 0 | H120: 0 | I120: 0 | J120: 0 | K120: =$B120*K112 -> 0
A121: Total State Property Tax Credits | D121: =SUM(D117:D120) -> 1129574.528 | E121: =SUM(E117:E120) -> 1116207 | F121: 1128665.102 | G121: 1127745.33 | H121: 1032347.64 | I121: 1032347.64 | J121: 923101.8981 | K121: =SUM(K117:K120) -> 923101.8981
A123: Total All Prop. Tax Rev. Est. (Net R&H) | D123: =D113-D121 -> 7518611.258 | E123: 7470446.808 | F123: 7491615.98 | G123: 7474140.299 | H123: 6847586.894 | I123: 6847586.894 | J123: 6130082.188 | K123: =K113-K121 -> 6130082.188
A124: Est. Collection Rate - (input rate) | B124: 0.977 | D124: =D123*$B$124 -> 7345683.199 | E124: 7298626.531 | F124: 7319308.812 | G124: 7302235.072 | H124: 6690092.395 | I124: 6690092.395 | J124: 5989090.298 | K124: =K123*$B$124 -> 5989090.298
A125: NOTE: The Estimated collection amount noted on Line 122 is what should be collected from the county treasurer after fees and R&H has been taken out.
A126: Average Percentage of Revenue in February Settlement | D126: 0.52 | E126: 0.52 | F126: 0.52 | G126: 0.515 | H126: 0.515 | I126: 0.515 | J126: 0.515 | K126: 0.52 | M126: Fine tune adjust percentage collection from 1st to 2nd half
A127: Average Percentage of Revenue in August Settlement | D127: 0.48 | E127: 0.48 | F127: 0.485 | G127: 0.485 | H127: 0.485 | I127: 0.485 | J127: 0.485 | K127: 0.48
A129: Fiscal Year Estimated Tax Revenues (4)
E130: Actual | F130: Actual @4/7/10 | G130: Actual @ 10/14/10 | H130: Estimated | I130: Estimated | J130: Estimated | K130: Estimated
E131: Fiscal Year | F131: Fiscal Year | G131: Fiscal Year | H131: Fiscal Year | I131: Fiscal Year | J131: Fiscal Year | K131: Fiscal Year
E132: 2009 | F132: 2010 | G132: 2011 | H132: 2012 | I132: 2013 | J132: 2014 | K132: 2015
A133: General Property Tax Revenue Est. Including PUPP (after State Credits)
A134: August Settlement | E134: 3805856 | F134: 3542158 | G134: 3421523 | H134: =G127*G124 -> 3541584.01 | I134: =H127*H124 -> 3244694.812 | J134: =I127*I124 -> 3244694.812 | K134: =J127*J124 -> 2904708.794
A135: February Settlement | E135: 4123010 | F135: 3776311 | G135: =G126*G124 -> 3760651.062 | H135: =H126*H124 -> 3445397.584 | I135: =I126*I124 -> 3445397.584 | J135: =J126*J124 -> 3084381.503 | K135: =K126*K124 -> 3114326.955
A136: Total General Property Tax Revenues Line 1.01 Forecast | E136: =SUM(E134:E135) -> 7928866 | F136: 7318469 | G136: 7182174.062 | H136: 6986981.594 | I136: 6690092.395 | J136: 6329076.315 | K136: =SUM(K134:K135) -> 6019035.749
A138: Estimated Property Tax Allocations
A139: Rollback @ 10% of Res/Ag | E139: =(D117*D127)+(E117*E126) -> 667569.8573 | F139: 689468 | G139: 635349.4815 | H139: 607670.7151 | I139: 581604.3041 | J139: 549907.6523 | K139: 522657.6944
A140: 2.5% Rollback @ 2.25% Res/Ag | E140: =(D118*D127)+(E118*E126) -> 269815.095 | F140: 0 | G140: 111186.1593 | H140: 106342.3751 | I140: 101780.7532 | J140: 96233.83915 | K140: 91465.09653
A141: Homestead @ 5.75% of Res/Ag | E141: =(D119*D127)+(E119*E126) -> 182276.0744 | F141: 429341 | G141: 381209.6889 | H141: 364602.4291 | I141: 348962.5825 | J141: 329944.5914 | K141: 313594.6167
A142: Total State Property Tax Credits Line 1.050 | E142: =SUM(E139:E141) -> 1119661.027 | F142: 1118809 | G142: 1127745.33 | H142: 1078615.519 | I142: 1032347.64 | J142: 976086.0828 | K142: =SUM(K139:K141) -> 927717.4076
A144: Estimated TPP Tax Revenue | B144: Input % | D144: (Note: Below TPP is net of estimated 5% for $10,000 Exemption)
A145: October Settlement | B145: 0.8 | E145: 138258 | F145: 45744 | G145: =((F112*$B145)*0.95) -> 13980.54428 | H145: =G112*$B145 -> 0 | I145: =H112*$B145 -> 0 | J145: =I112*$B145 -> 0 | K145: =J112*$B145 -> 0
A146: June Settlement | B146: 0.2 | E146: 34565 | F146: 3036 | G146: =$B146*G112 -> 0 | H146: =$B146*H112 -> 0 | I146: =$B146*I112 -> 0 | J146: =$B146*J112 -> 0 | K146: =$B146*K112 -> 0
A147: Total TPP Tax Est. Line 1.02 | E147: =SUM(E145:E146) -> 172823 | F147: 48780 | G147: 13980.54428 | H147: 0 | I147: 0 | J147: 0 | K147: =SUM(K145:K146) -> 0
D149: (Reasearch Note Click Below to go to website for values)
D150: http://tax.ohio.gov/divisions/personal_property/documents/TY_2009_TPP_fixed_sum_for_web.xls
A151: TPP State Reimbursements | D151: http://tax.ohio.gov/divisions/personal_property/documents/FY10_TPP_Direct_Payment_Allocation.xls
A152: Fixed Sum | E152: 0 | F152: 150857 | G152: 118868 | H152: 118868 | I152: 118868 | J152: =((I152/17)*9) -> 62930.11765 | K152: =((I152/17)*7) -> 48945.64706
A153: Fixed Rate | E153: 0 | F153: 406784 | G153: 414779 | H153: 414779 | I153: 414779 | J153: =((I153/17)*9) -> 219588.8824 | K153: =((I153/17)*7) -> 170791.3529
A154: Total State TPP Payments Line 1.050 | E154: =SUM(E152:E153) -> 0 | F154: 557641 | G154: 533647 | H154: 533647 | I154: 533647 | J154: 282519 | K154: =SUM(K152:K153) -> 219737
A156: Renewal/Replacement & New Levies (5)
A157: Est. Revenue from Replacement /Renewal Levies | D157: (Note: new tax levies minus 5% fees for delinquency and A&T Fees but include R&H totals)
A158: Income tax | E158: 0 | F158: 0 | G158: 0 | H158: 0 | I158: 0 | J158: 0 | K158: 0
A159: Property tax- Renewal #1 7.45 Mill Em Levy | B159: 2016 | C159: 2020 | E159: =IF(SUM(E38:E42)>0,0) -> 0 | F159: 0 | G159: 0 | H159: 0 | I159: 0 | J159: 0 | K159: 0
A160: Property Tax Renewal #2 3.10 Mill Em Levy | B160: 2012 | C160: 2016 | E160: =IF(SUM(E39:E43)>0,0) -> 0 | F160: 0 | G160: 0 | H160: =(740680*0.52) -> 385153.6 | I160: =(740680) -> 740680 | J160: =(740680) -> 740680 | K160: =(740680) -> 740680
A161: Property Tax Renewal #3 3.55 Mill Em Levy | B161: 2014 | C161: 2018 | E161: =IF(SUM(E40:E44)>0,0) -> 0 | F161: 0 | G161: 0 | H161: 0 | I161: 0 | J161: =(839531*0.52) -> 436556.12 | K161: =(839531*0.52) -> 436556.12
A162: Cummulative Balance Renew/Repl. Line 11.30 | E162: =SUM(E158:E161) -> 0 | F162: =SUM(F158:F161)+E162 -> 0 | G162: 0 | H162: 385153.6 | I162: 1125833.6 | J162: 2303069.72 | K162: 3480305.84
A164: Est. Revenue from NEW Levies
A165: Income tax - new Line 13.10 | E165: 0 | F165: 0 | G165: 0 | H165: 0 | I165: 0 | J165: 0 | K165: 0
A166: Property tax- new Line 13.20 | E166: 0 | F166: 0 | G166: 0 | H166: 0 | I166: 0 | J166: 0 | K166: 0
A167: Cummulative Balance New Levies 13.30 | E167: =SUM(E165:E166) -> 0 | F167: =SUM(F165:F166)+E167 -> 0 | G167: 0 | H167: 0 | I167: 0 | J167: 0 | K167: 0
D168: end | E168: end | F168: end | G168: end | H168: end | I168: end | J168: end | K168: end | L168: end

Sheet PASS
A1: Ohio Department of Education 10/11/2010
A2: ="IRN: "&'Front Pg'!D60&" "&UPPER('Front Pg'!D58)&", "&UPPER('Front Pg'!D59)&" COUNTY" -> IRN: 050195 LIBERTY LOCAL SCHOOL DISTRICT, TRUMBULL COUNTY
B5: FY 2010 | C5: FY 2011 | D5: FY 2012 | E5: FY 2013 | F5: FY 2014 | G5: 2015
A6: 1A Special Ed. Cat. 1 | B6: 50 | C6: 47 | D6: 47 | E6: 47 | F6: 47 | G6: 47
A7: 1B Special Ed. Cat. 2 | B7: 74.86 | C7: 84.99 | D7: 84.99 | E7: 84.99 | F7: 84.99 | G7: 84.99
A8: 1C Special Ed. Cat. 3 | B8: 9 | C8: 9.26 | D8: 9.26 | E8: 9.26 | F8: 9.26 | G8: 9.26
A9: 1D Special Ed. Cat. 4 | B9: 2 | C9: 2 | D9: 2 | E9: 2 | F9: 2 | G9: 2
A10: 1E Special Ed. Cat. 5 | B10: 13.6 | C10: 12.6 | D10: 12.6 | E10: 12.6 | F10: 12.6 | G10: 12.6
A11: 1F Special Ed. Cat. 6 | B11: 18 | C11: 17 | D11: 17 | E11: 17 | F11: 17 | G11: 17
A12: 1G JVSD Spec Ed | B12: 14.43 | C12: 18.06 | D12: 18.06 | E12: 18.06 | F12: 18.06 | G12: 18.06
A13: 1H Non - Jnt OE JVES | B13: 0 | C13: 0 | D13: 0 | E13: 0 | F13: 0 | G13: 0
A14: 1I All Other Students | B14: 1354.83 | C14: 1329.57 | D14: 1329.57 | E14: 1329.57 | F14: 1329.57 | G14: 1329.57
A15: 1J BDD (formerly MRDD) | B15: 5 | C15: 5 | D15: 5 | E15: 5 | F15: 5 | G15: 5
A16: 1K Ed. Choice | B16: 134.03 | C16: 126 | D16: 126 | E16: 126 | F16: 126 | G16: 126
A17: 2 Total ADM | B17: =SUM(B6:B16) -> 1675.75 | C17: 1651.48 | D17: 1651.48 | E17: 1651.48 | F17: 1651.48 | G17: 1651.48
B18: =(B17-1)-(0.8*B12) -> 1663.206 | C18: 1636.032 | D18: 1636.032 | E18: 1636.032 | F18: 1636.032 | G18: 1636.032
A19: 3 PK | B19: 0 | C19: 0 | D19: 0 | E19: 0 | F19: 0 | G19: 0
A20: 3 KDG | B20: 101.55 | C20: 97.22 | D20: 97.22 | E20: 97.22 | F20: 97.22 | G20: 97.22
A21: 3 Grade 1-3 | B21: 311.2 | C21: 365.08 | D21: 365.08 | E21: 365.08 | F21: 365.08 | G21: 365.08
A22: 3 Gade 4-5 | B22: 218.01 | C22: 225.85 | D22: 225.85 | E22: 225.85 | F22: 225.85 | G22: 225.85
A23: 3 Gade 6-8 | B23: 414.07 | C23: 386.01 | D23: 386.01 | E23: 386.01 | F23: 386.01 | G23: 386.01
A24: 3 Gade 9-12 | B24: 618.38 | C24: 562.87 | D24: 562.87 | E24: 562.87 | F24: 562.87 | G24: 562.87
A25: Line 3 Formula ADM Less Pre-K | B25: =SUM(B19:B24) -> 1663.21 | C25: 1637.03 | D25: 1637.03 | E25: 1637.03 | F25: 1637.03 | G25: 1637.03
A26: 4A Elementary Organizational Units (Line 3 KDG + 1-3 + 4-5) / 418 | B26: =ROUND((+B20+B21+B22)/418,2) -> 1.51 | C26: 1.65 | D26: 1.65 | E26: 1.65 | F26: 1.65 | G26: 1.65
A27: 4B Middle School Organizational Units Line 3 6-8 / 557 | B27: =ROUND(+B23/557,2) -> 0.74 | C27: 0.69 | D27: 0.69 | E27: 0.69 | F27: 0.69 | G27: 0.69
A28: 4C High School Organizational Units Line 3 9-12 / 733 | B28: =ROUND(+B24/733,2) -> 0.84 | C28: 0.77 | D28: 0.77 | E28: 0.77 | F28: 0.77 | G28: 0.77
A29: 4D Total Organizational Units if (4A+4B+4C)<1 then 1 else (4A+4B+4C); if Small district then 1 | B29: =SUM(B26:B28) -> 3.09 | C29: 3.11 | D29: 3.11 | E29: 3.11 | F29: 3.11 | G29: 3.11
A30: 4E Total Buildings Issued Report Cards | B30: 3 | C30: 3 | D30: 3 | E30: 3 | F30: 3 | G30: 3
A31: 5A Educational Challenge Factor | B31: 1.1432 | C31: 1.1432 | D31: 1.1432 | E31: 1.1432 | F31: 1.1432 | G31: 1.1432
A32: 5B Targeted Poverty Indicator | B32: 0.5208 | C32: 0.5208 | D32: 0.5208 | E32: 0.5208 | F32: 0.5208 | G32: 0.5208
A33: 5C Base Teacher Salary | B33: 56902 | C33: 57812 | D33: 57812 | E33: 57812 | F33: 57812 | G33: 57812
A34: 5D LEP Percentage(data not displayed if percentage is <5% or > 95%) | B34: 0 | C34: 0 | D34: 0 | E34: 0 | F34: 0 | G34: 0
A35: 5E School District Typology 0 - 7 Major Urban-Very High Poverty | B35: 4 | C35: 4 | D35: 4 | E35: 4 | F35: 4 | G35: 4
A36: Resources for Teachers and Instructional Services
A37: Number of Teachers
A38: 6A Core teachers: K-3((Line 3 K-3 + Line 1F PK) / 19) x 5A x 5C | B38: =ROUND((B20+B21+1)/19,2) -> 21.78 | C38: =ROUND((C20+C21)/19,2) -> 24.33 | D38: 24.38 | E38: 24.38 | F38: 24.38 | G38: 24.38
A39: Cost | B39: =+B38*B33*B31 -> 1416796.98 | C39: 1607986.205 | D39: 1611290.739 | E39: 1611290.739 | F39: 1611290.739 | G39: 1611290.739
A40: 6B Core teachers: 4-5 (Line 3 4-5 / 25) x 5A x 5C | B40: =ROUND(+B22/25,2) -> 8.72 | C40: 9.03 | D40: 9.03 | E40: 9.03 | F40: 9.03 | G40: 9.03
A41: Cost | B41: =+B40*B33*B31 -> 567239.195 | C41: 596798.826 | D41: 596798.826 | E41: 596798.826 | F41: 596798.826 | G41: 596798.826
A42: 6C Core teachers: 6-8 (Line 3 6-8 / 25) x 5A x 5C | B42: =ROUND(+B23/25,2) -> 16.56 | C42: 15.44 | D42: 15.44 | E42: 15.44 | F42: 15.44 | G42: 15.44
A43: Cost | B43: =+B42*B31*B33 -> 1077234.068 | C43: 1020440.074 | D43: 1020440.074 | E43: 1020440.074 | F43: 1020440.074 | G43: 1020440.074
A44: 6D Core teachers: 9-12 (Line 3 9-12 / 25) x 5A x 5C | B44: =ROUND(+B24/25,2) -> 24.74 | C44: =+C24/25 -> 22.5148 | D44: =+D24/25 -> 22.5148 | E44: =+E24/25 -> 22.5148 | F44: =+F24/25 -> 22.5148 | G44: =+G24/25 -> 22.5148
A45: Cost | B45: =+B44*B31*B33 -> 1609346.065 | C45: 1488018.406 | D45: 1488018.406 | E45: 1488018.406 | F45: 1488018.406 | G45: 1488018.406
A46: 7 Specialist teachers (# Teachers from((6A +6B +6C) x .20) + (6D x .25)) x 5A x 5C | B46: =ROUND(((B38+B40+B42)*0.2)+(B44*0.25),2) -> 15.6 | C46: 15.39 | D46: 15.4 | E46: 15.4 | F46: 15.4 | G46: 15.4
A47: Cost | B47: =+B46*B31*B33 -> 1014785.716 | C47: 1017135.541 | D47: 1017796.447 | E47: 1017796.447 | F47: 1017796.447 | G47: 1017796.447
A48: 8 Lead teachers (Instructional Facilitators) 4D x 5A x 5C | B48: =+B29 -> 3.09 | C48: 3.11 | D48: 3.11 | E48: 3.11 | F48: 3.11 | G48: 3.11
A49: Cost | B49: =+B48*B31*B33 -> 201005.6322 | C49: 205542.0098 | D49: 205542.0098 | E49: 205542.0098 | F49: 205542.0098 | G49: 205542.0098
A50: 9 Special Education Teacher Factor (((Pre-K-12 Special Ed ADM x weight) x .90) /20) x 5A x 5C | B50: =(ROUND((+B6*0.2906),2)+ROUND((B7*0.7374),2)+ROUND((B8*1.7716),2)+ROUND((B9*2.3643),2)+ROUND((B10*3.2022),2)+ROUND((B11*4.7205),2))*0.9/20 -> 9.8514 | C50: 10.51 | D50: 9.81315 | E50: 9.81315 | F50: 9.81315 | G50: 9.81315
A51: Cost | B51: =+B50*B31*B33 -> 640837.1796 | C51: 694613.03 | D51: 648557.7407 | E51: 648557.7407 | F51: 648557.7407 | G51: 648557.7407
A52: 10 Special Education Teacher's Aide Factor ((((Pre-K-12 Special Ed ADM x weight) x .90) /20) /2)x.50x5Ax5C | B52: =+B50*0.5/2 -> 2.46285 | C52: 2.6275 | D52: 2.4532875 | E52: 2.4532875 | F52: 2.4532875 | G52: 2.4532875
A53: Cost | B53: =+B52*B31*B33 -> 160209.2949 | C53: 173653.2575 | D53: 162139.4352 | E53: 162139.4352 | F53: 162139.4352 | G53: 162139.4352
A54: 11 Teachers for LEP students ((Line 3 + Line 1F PK) x 5D) / 100) x 5A x 5C | B54: =(+B25+B19)*B34/100 -> 0 | C54: 0 | D54: 0 | E54: 0 | F54: 0 | G54: 0
A55: Cost | B55: =+B31*B33*B54 -> 0 | C55: 0 | D55: 0 | E55: 0 | F55: 0 | G55: 0
A56: 12 Supplemental Teacher Factor (((Line 3 + Line 1F PK) x 5B) / 100) x 5A x 5C | B56: =((+B25*B32)/100) -> 8.66199768 | C56: 8.52565224 | D56: 8.52565224 | E56: 8.52565224 | F56: 8.52565224 | G56: 8.52565224
A57: Cost | B57: =+B56*B31*B33 -> 563466.1228 | C57: 563466.1403 | D57: 563466.1403 | E57: 563466.1403 | F57: 563466.1403 | G57: 563466.1403
A58: 13 Total Instructional Services Support Sum (6A through 12) | B58: =+B38+B40+B42+B44+B46+B48+B50+B52+B56+B54 -> 111.4662477 | C58: =+C38+C40+C42+C44+C46+C48+C50+C52+C56+C54 -> 111.4779522 | D58: =+D38+D40+D42+D44+D46+D48+D50+D52+D56+D54 -> 110.6668897 | E58: 110.6668897 | F58: 110.6668897 | G58: 110.6668897
B59: =+B39+B41+B43+B45+B47+B49+B51+B53+B57+B55 -> 7250920.253 | C59: =+C39+C41+C43+C45+C47+C49+C51+C53+C57+C55 -> 7367653.49 | D59: 7314049.819 | E59: 7314049.819 | F59: 7314049.819 | G59: 7314049.819
A60: Resources for Additional Student Services
A61: 14 Family and Community Liaison Factor ((Line 3 x 5B) / 75) x 39,381* 5A | B61: =ROUND(+B18*B32/75,2) -> 11.55 | C61: 11.36 | D61: 11.36 | E61: 11.36 | F61: 11.36 | G61: 11.36
A62: Base Salary | B62: 38633 | C62: 39381 | D62: 39381 | E62: 39381 | F62: 39381 | G62: 39381
A63: Cost | B63: =+B61*B62*B31 -> 510108.5867 | C63: 511431.2805 | D63: 511431.2805 | E63: 511431.2805 | F63: 511431.2805 | G63: 511431.2805
A65: 15 Counselors Factor ((Total Formula ADM 6-8 + Total 9-12) / 250) | B65: =ROUND((B23+B24)/250,2) -> 4.13 | C65: 3.8 | D65: 3.8 | E65: 3.8 | F65: 3.8 | G65: 3.8
A66: Base Salary Not Funded | B66: 0 | C66: 0 | D66: 0 | E66: 0 | F66: 0 | G66: 0
A67: Cost | B67: =+B65*B66 -> 0 | C67: 0 | D67: 0 | E67: 0 | F67: 0 | G67: 0
A69: 16 Summer Remediation Program Factor (((Line 3 x 5B) x 0.50) / 30) x 3,000 x 5A | B69: =ROUND(((+B18*B32*0.5)/30),2)*3000*B31 -> 49523.424 | C69: 48700.32 | D69: 48700.32 | E69: 48700.32 | F69: 48700.32 | G69: 48700.32
A70: 17 School Nurse Wellness Coordinator Factor (4A+4B+4C) | B70: =+B26+B27+B28 -> 3.09 | C70: 3.11 | D70: 3.11 | E70: 3.11 | F70: 3.11 | G70: 3.11
A71: Base Salary Not Funded | B71: 0 | C71: 0 | D71: 0 | E71: 0 | F71: 0 | G71: 0
A72: Cost | B72: =+B70*B71 -> 0 | C72: 0 | D72: 0 | E72: 0 | F72: 0 | G72: 0
A73: 18 District Health Professional Factor
A74: Base Salary Not Funded | B74: 0 | C74: 0 | D74: 0 | E74: 0 | F74: 0 | G74: 0
A75: Cost | B75: 0 | C75: 0 | D75: 0 | E75: 0 | F75: 0 | G75: 0
A76: Resources for Administrators
A77: 19 Administration Factor | B77: 187176 | C77: 190801 | D77: 190801 | E77: 190801 | F77: 190801 | G77: 190801
A78: 20 Principal Factor (If 5E = 1 or 2 then (Max(4D, 4E) x 91,297) else 4D | B78: =+B29 -> 3.09 | C78: 3.11 | D78: 3.11 | E78: 3.11 | F78: 3.11 | G78: 3.11
A79: Base Salary | B79: 89563 | C79: 91297 | D79: 91297 | E79: 91297 | F79: 91297 | G79: 91297
A80: Cost | B80: =+B78*B79 -> 276749.67 | C80: 283933.67 | D80: 283933.67 | E80: 283933.67 | F80: 283933.67 | G80: 283933.67
A81: Resources for Administrative Support Personnel
A82: 21A Building Manager 4D | B82: =+B29 -> 3.09 | C82: 3.11 | D82: 3.11 | E82: 3.11 | F82: 3.11 | G82: 3.11
A83: Base Salary | B83: 33624 | C83: 34275 | D83: 34275 | E83: 34275 | F83: 34275 | G83: 34275
A84: Cost | B84: =+B82*B83 -> 103898.16 | C84: 106595.25 | D84: 106595.25 | E84: 106595.25 | F84: 106595.25 | G84: 106595.25
A85: 21B Secretaries Max(1,((4A +4B) + (3 x 4C))) x 34,275 | B85: =+B26+B27+(B28*3) -> 4.77 | C85: 4.65 | D85: 4.65 | E85: 4.65 | F85: 4.65 | G85: 4.65
A86: Base Salary | B86: 33624 | C86: =+C83 -> 34275 | D86: =+D83 -> 34275 | E86: =+E83 -> 34275 | F86: =+F83 -> 34275 | G86: =+G83 -> 34275
A87: Cost | B87: =+B85*B86 -> 160386.48 | C87: 159378.75 | D87: 159378.75 | E87: 159378.75 | F87: 159378.75 | G87: 159378.75
A88: 21C Non-instructional aide Max(1,(((2 x(4A+4B))+(3 x 4C))) | B88: =+((2*(B26+B27))+(B28*3)) -> 7.02 | C88: 6.99 | D88: 6.99 | E88: 6.99 | F88: 6.99 | G88: 6.99
A89: Base Salary Not Funded | B89: 0 | C89: 0 | D89: 0 | E89: 0 | F89: 0 | G89: 0
A90: Cost | B90: 0 | C90: 0 | D90: 0 | E90: 0 | F90: 0 | G90: 0
A91: Resources for Operations and Maintenance
A92: 22 Operations & Maintenance Line 3 x 884 x 0.45 | B92: =+B18*884*0.45 -> 661623.3468 | C92: 650813.5296 | D92: 650813.5296 | E92: 650813.5296 | F92: 650813.5296 | G92: 650813.5296
A93: Resources for Gifted Education
A94: 23 Gifted Identification Factor Line 3 x $5 | B94: =+B18*5 -> 8316.03 | C94: 8180.16 | D94: 8180.16 | E94: 8180.16 | F94: 8180.16 | G94: 8180.16
A95: 24 Gifted Coordinator Factor (Line 3 / 2,500) x 67,660 | B95: =+B18/2500 -> 0.6652824 | C95: 0.6544128 | D95: 0.6544128 | E95: 0.6544128 | F95: 0.6544128 | G95: 0.6544128
A96: Base Salary | B96: 66375 | C96: 67660 | D96: 67660 | E96: 67660 | F96: 67660 | G96: 67660
A97: Cost | B97: =+B95*B96 -> 44158.1193 | C97: 44277.57005 | D97: 44277.57005 | E97: 44277.57005 | F97: 44277.57005 | G97: 44277.57005
A98: 25 Gifted Intervention Specialist Factor Line 4D x line 5A x line 5C x Funding Factor | B98: =+B29*B31*B127 -> 0.7064976 | C98: 1.0666056 | D98: 1.4221408 | E98: 1.777676 | F98: 2.1332112 | G98: 2.4887464
A99: Base Salary | B99: =+B33 -> 56902 | C99: 57812 | D99: 57812 | E99: 57812 | F99: 57812 | G99: 57812
A100: Cost | B100: =+B98*B99 -> 40201.12644 | C100: 61662.60295 | D100: 82216.80393 | E100: 102771.0049 | F100: 123325.2059 | G100: 143879.4069
A101: 26 Gifted Intervention Specialist PD Factor Line 4D x 1,833 x Funding Factor | B101: =+B29*1833*B127 -> 1132.794 | C101: 1710.189 | D101: 2280.252 | E101: 2850.315 | F101: 3420.378 | G101: 3990.441
A102: Resources for Enrichment for All Students
A103: 27 Enrichment Support Component Line 3 x 100 x 5A x Funding Factor | B103: =+B18*100*B31*B127 -> 38027.54198 | C103: 56109.35347 | D103: 74812.4713 | E103: 93515.58912 | F103: 112218.7069 | G103: 130921.8248
A104: Resources for Technology
A105: 28 Licensed Librarian & Media Specialist Factor Line 4D x 60,000 x Funding Factor | B105: =+B29*60000*B127 -> 37080 | C105: 55980 | D105: 74640 | E105: 93300 | F105: 111960 | G105: 130620
A106: 29 Technical Equipment Factor Line 3 x 250 x Funding Factor | B106: =+B18*250*B127 -> 83160.3 | C106: 122702.4 | D106: 163603.2 | E106: 204504 | F106: 245404.8 | G106: 286305.6
A107: 30 Professional Development Factor Teachers for Lines 6 - 9 x 1,833 | B107: =(+B38+B40+B42+B44+B46+B48+B50)*1833 -> 183925.7862 | C107: 183895.3584 | D107: 182728.0124 | E107: 182728.0124 | F107: 182728.0124 | G107: 182728.0124
A108: 31 Instructional Materials Factor Line 3 x 165 x Funding Factor | B108: =+B18*165*B127 -> 54885.798 | C108: 80983.584 | D108: 107978.112 | E108: 134972.64 | F108: 161967.168 | G108: 188961.696
A109: 32 Total Funding for the EBM Sum of Lines 13 through 31 | B109: =+B59+B63+B69+B67+B72+B75+B77+B80+B84+B87+B90+B92+B97+B100+B101+B103+B105+B106+B107+B108+B94 -> 9691273.416 | C109: 9934808.508 | D109: 10006420.2 | E109: 10132802.91 | F109: 10259185.62 | G109: 10385568.33
A110: Local Share
A111: 33A Adjusted Assessed Valuation Reduced by tax exempt value if Tax exempt value > 0.25 | B111: 235346140 | C111: 233682070 | D111: 233682070 | E111: 233682070 | F111: 233682070 | G111: 233682070
A112: 33B Adjusted Recognized Valuation Reduced by tax exempt value if Tax exempt value > 0.25 | B112: 235271167 | C112: 233644583 | D112: 233644583 | E112: 233644583 | F112: 233644583 | G112: 233644583
A113: 33C Property Exemption Value (TIF) Certified to ODE by Tax Department
A114: 33D Class I Effective Millage Rate Provided to ODE by Tax Department | B114: 22.559 | C114: 22.547 | D114: 22.547 | E114: 22.547 | F114: 22.547 | G114: 22.547
A115: 33E Charge Off Amount: If 33D >= 20.1 then ((33B+33C) * 0.022) else ((33A+33C) * 0.022) | B115: =(+B111+B113)*0.022 -> 5177615.08 | C115: =(+C112+C113)*0.022 -> 5140180.826 | D115: =(+D112+D113)*0.022 -> 5140180.826 | E115: =(+E112+E113)*0.022 -> 5140180.826 | F115: =(+F112+F113)*0.022 -> 5140180.826 | G115: =(+G112+G113)*0.022 -> 5140180.826
A116: 34A State Portion of EBM Funding (Line 32 - Line 33E) | B116: =+B109-B115 -> 4513658.336 | C116: 4794627.682 | D116: 4866239.375 | E116: 4992622.085 | F116: 5119004.795 | G116: 5245387.504
A117: 34B State Share Percentage (Line 34A / Line 32) | B117: =+B116/B109 -> 0.4657446078 | C117: 0.4826089681 | D117: 0.4863117156 | E117: 0.4927187599 | F117: 0.4989679477 | G117: 0.5050650419
A118: 35A Pro-rated Transportation | B118: 436087.97 | C118: 438348 | D118: 438348 | E118: 438348 | F118: 438348 | G118: 438348
A119: 35B Supplemental Transportation | B119: 0 | C119: 0 | D119: 0 | E119: 0 | F119: 0 | G119: 0
A120: 36 Career Technical Ed. (CTE) FY10 CTE Cat 1,2 and Assoc. Services x 1.0075 | B120: 9210 | C120: 8569 | D120: 8569 | E120: 8569 | F120: 8569 | G120: 8569
A121: Transitional Aid
A122: 37A Transitional Aid Base FY2010 PASS Summary State Sources - Supp. Resources Transp, services line | B122: 5418975.39 | C122: 5459618 | D122: =+C122*0.99 -> 5405021.82 | E122: =+D122*0.99 -> 5350971.602 | F122: =+E122*0.99 -> 5297461.886 | G122: =+F122*0.99 -> 5244487.267
A123: 37B Transitional Aid 0.98 x Line 37A - (Line 34A + 35A + 36) must be positive 0.00 | B123: 344113 | C123: =IF((0.98*C122)-(C116+C118+C120)<0,0,((0.98*C122)-(C116+C118+C120))) -> 108880.9578 | D123: =IF((0.99*D122)-(D116+D118+D120)<0,0,((0.99*D122)-(D116+D118+D120))) -> 37815.22673 | E123: =IF((0.99*E122)-(E116+E118+E120)<0,0,((0.99*E122)-(E116+E118+E120))) -> 0 | F123: =IF((0.99*F122)-(F116+F118+F120)<0,0,((0.99*F122)-(F116+F118+F120))) -> 0 | G123: =IF((0.99*G122)-(G116+G118+G120)<0,0,((0.99*G122)-(G116+G118+G120))) -> 0
A124: Gain Cap
A125: 38 FY11 Cap Level 1.0075 x ((FY10 PASS (Line 37A-36) | B125: =+B122*1.0075 -> 5459617.705 | C125: =(+C122-C120)*1.0075 -> 5491931.868 | D125: =(+D122-D120)*1.0075 -> 5436926.216 | E125: =(+E122-E120)*1.0075 -> 5382470.621 | F125: =(+F122-F120)*1.0075 -> 5328559.582 | G125: =(+G122-G120)*1.0075 -> 5275187.654
A126: 39 Additional Transitional Aid Must Be Positive
A127: Funding Factor | B127: 0.2 | C127: 0.3 | D127: 0.4 | E127: 0.5 | F127: 0.6 | G127: 0.7
A128: =+'State Model By %'!A1&" Funding Level" -> Liberty Local School District Funding Level | B128: =+B116+B118+B119+B123 -> 5293859.306 | C128: =+C116+C118+C119+C120+C123 -> 5350425.64 | D128: =+D116+D118+D119+D120+D123 -> 5350971.602 | E128: =+E116+E118+E119+E120+E123 -> 5439539.085 | F128: =+F116+F118+F119+F120+F123 -> 5565921.795 | G128: =+G116+G118+G119+G120+G123 -> 5692304.504

Sheet STAFF_Plan
B1: DISTRICT STAFFING PLAN AND COST ESTIMATES FY 09 THROUGH FY 13 | D1: DISTRICT STAFFING PLAN AND COST ESTIMATES FY 09 THROUGH FY 15
C4: FY 07-08 | E4: FY 08-09 | G4: FY 09-10 | I4: FY 10-11 | K4: FY 11-12 | M4: FY 12-13 | O4: FY 13-14 | Q4: FY 14-15
A6: PROJECTED ENROLLMENT | C6: 0 | E6: 0 | G6: 0 | I6: 0 | K6: 0 | M6: 0 | O6: 0 | Q6: 0
A7: (includes Kindergarten)
A9: ENROLLMENT GROWTH | C9: N/A | E9: =E6-C6 -> 0 | G9: =G6-E6 -> 0 | I9: =I6-G6 -> 0 | K9: =K6-I6 -> 0 | M9: =M6-K6 -> 0 | O9: =O6-M6 -> 0 | Q9: =Q6-O6 -> 0
A12: GROWTH - Regular | B12: FTE | D12: FTE | F12: FTE | H12: FTE | J12: FTE | L12: FTE | N12: FTE | P12: FTE
A13: Administrative | B13: 0 | C13: =((B13*$C$40)*11/12) -> 0 | D13: 0 | E13: =((B13*C40)*1/12)+((D13*E40)*11/12) -> 0 | F13: 0 | G13: =((D13*E40)*1/12)+((F13*G40)*11/12) -> 0 | H13: 0 | I13: =((F13*G40)*1/12)+((H13*I40)*11/12) -> 0 | J13: 0 | K13: =((H13*I40)*1/12)+((J13*K40)*11/12) -> 0 | L13: 0 | M13: =((J13*K40)*1/12)+((L13*M40)*11/12) -> 0 | N13: 0 | O13: =((L13*M40)*1/12)+((N13*O40)*11/12) -> 0 | P13: 0 | Q13: =((N13*O40)*1/12)+((P13*Q40)*11/12) -> 0
A14: Certified | B14: 0 | C14: =((B14*$C$41)*10/12) -> 0 | D14: 0 | E14: =((B14*C41)*2/12)+((D14*E41)*10/12) -> 0 | F14: 0 | G14: =((D14*E41)*2/12)+((F14*G41)*10/12) -> 0 | H14: 0 | I14: =((F14*G41)*2/12)+((H14*I41)*10/12) -> 0 | J14: 0 | K14: =((H14*I41)*2/12)+((J14*K41)*10/12) -> 0 | L14: 0 | M14: =((J14*K41)*2/12)+((L14*M41)*10/12) -> 0 | N14: 0 | O14: =((L14*M41)*2/12)+((N14*O41)*10/12) -> 0 | P14: 0 | Q14: =((N14*O41)*2/12)+((P14*Q41)*10/12) -> 0
A15: Classified | B15: 0 | C15: =((B15*$C$42)*11/12) -> 0 | D15: 0 | E15: =((B15*C42)*1/12)+((D15*E42)*11/12) -> 0 | F15: 0 | G15: =((D15*E42)*1/12)+((F15*G42)*11/12) -> 0 | H15: 0 | I15: =((F15*G42)*1/12)+((H15*I42)*11/12) -> 0 | J15: 0 | K15: =((H15*I42)*1/12)+((J15*K42)*11/12) -> 0 | L15: 0 | M15: =((J15*K42)*1/12)+((L15*M42)*11/12) -> 0 | N15: 0 | O15: =((L15*M42)*1/12)+((N15*O42)*11/12) -> 0 | P15: 0 | Q15: =((N15*O42)*1/12)+((P15*Q42)*11/12) -> 0
A16: TOTAL | C16: =SUM(C13:C15) -> 0 | E16: =SUM(E13:E15) -> 0 | G16: =SUM(G13:G15) -> 0 | I16: =SUM(I13:I15) -> 0 | K16: =SUM(K13:K15) -> 0 | M16: =SUM(M13:M15) -> 0 | O16: =SUM(O13:O15) -> 0 | Q16: =SUM(Q13:Q15) -> 0
A17: UNFUNDED RECAPTURE
A19: ARRA
A20: Administrative | B20: 0 | C20: =((B20*$C$40)*11/12) -> 0 | D20: 0 | E20: =((B20*C40)*1/12)+((D20*E40)*11/12) -> 0 | F20: 0 | G20: =((D20*E40)*1/12)+((F20*G40)*11/12) -> 0 | H20: 0 | I20: =((F20*G40)*1/12)+((H20*I40)*11/12) -> 0 | J20: 0 | K20: =((H20*I40)*1/12)+((J20*K40)*11/12) -> 0 | L20: 0 | M20: =((J20*K40)*1/12)+((L20*M40)*11/12) -> 0 | N20: 0 | O20: =((L20*M40)*1/12)+((N20*O40)*11/12) -> 0 | P20: 0 | Q20: =((N20*O40)*1/12)+((P20*Q40)*11/12) -> 0
A21: Certified | B21: 0 | C21: =((B21*$C$41)*10/12) -> 0 | D21: 0 | E21: =((B21*C41)*2/12)+((D21*E41)*10/12) -> 0 | F21: 0 | G21: =((D21*E41)*2/12)+((F21*G41)*10/12) -> 0 | H21: 0 | I21: =((F21*G41)*2/12)+((H21*I41)*10/12) -> 0 | J21: 0 | K21: =((H21*I41)*2/12)+((J21*K41)*10/12) -> 0 | L21: 0 | M21: =((J21*K41)*2/12)+((L21*M41)*10/12) -> 0 | N21: 0 | O21: =((L21*M41)*2/12)+((N21*O41)*10/12) -> 0 | P21: 0 | Q21: =((N21*O41)*2/12)+((P21*Q41)*10/12) -> 0
A22: Classified | B22: 0 | C22: =((B22*$C$42)*11/12) -> 0 | D22: 0 | E22: =((B22*C42)*1/12)+((D22*E42)*11/12) -> 0 | F22: 0 | G22: =((D22*E42)*1/12)+((F22*G42)*11/12) -> 0 | H22: 0 | I22: =((F22*G42)*1/12)+((H22*I42)*11/12) -> 0 | J22: 0 | K22: =((H22*I42)*1/12)+((J22*K42)*11/12) -> 0 | L22: 0 | M22: =((J22*K42)*1/12)+((L22*M42)*11/12) -> 0 | N22: 0 | O22: =((L22*M42)*1/12)+((N22*O42)*11/12) -> 0 | P22: 0 | Q22: =((N22*O42)*1/12)+((P22*Q42)*11/12) -> 0
A23: TOTAL | C23: =SUM(C20:C22) -> 0 | E23: =SUM(E20:E22) -> 0 | G23: =SUM(G20:G22) -> 0 | I23: =SUM(I20:I22) -> 0 | K23: =SUM(K20:K22) -> 0 | M23: =SUM(M20:M22) -> 0 | O23: =SUM(O20:O22) -> 0 | Q23: =SUM(Q20:Q22) -> 0
A25: SPECIAL EDUCATION
A26: Administrative | B26: 0 | C26: =((B26*$C$40)*11/12) -> 0 | D26: 0 | E26: =((B26*C40)*1/12)+((D26*E40)*11/12) -> 0 | F26: 0 | G26: =((D26*E40)*1/12)+((F26*G40)*11/12) -> 0 | H26: 0 | I26: =((F26*G40)*1/12)+((H26*I40)*11/12) -> 0 | J26: 0 | K26: =((H26*I40)*1/12)+((J26*K40)*11/12) -> 0 | L26: 0 | M26: =((J26*K40)*1/12)+((L26*M40)*11/12) -> 0 | N26: 0 | O26: =((L26*M40)*1/12)+((N26*O40)*11/12) -> 0 | P26: 0 | Q26: =((N26*O40)*1/12)+((P26*Q40)*11/12) -> 0
A27: Certified | B27: 0 | C27: =((B27*$C$41)*10/12) -> 0 | D27: 0 | E27: =((B27*C41)*2/12)+((D27*E41)*10/12) -> 0 | F27: 0 | G27: =((D27*E41)*2/12)+((F27*G41)*10/12) -> 0 | H27: 0 | I27: =((F27*G41)*2/12)+((H27*I41)*10/12) -> 0 | J27: 0 | K27: =((H27*I41)*2/12)+((J27*K41)*10/12) -> 0 | L27: 0 | M27: =((J27*K41)*2/12)+((L27*M41)*10/12) -> 0 | N27: 0 | O27: =((L27*M41)*2/12)+((N27*O41)*10/12) -> 0 | P27: 0 | Q27: =((N27*O41)*2/12)+((P27*Q41)*10/12) -> 0
A28: Classified | B28: 0 | C28: =((B28*$C$42)*11/12) -> 0 | D28: 0 | E28: =((B28*C42)*1/12)+((D28*E42)*11/12) -> 0 | F28: 0 | G28: =((D28*E42)*1/12)+((F28*G42)*11/12) -> 0 | H28: 0 | I28: =((F28*G42)*1/12)+((H28*I42)*11/12) -> 0 | J28: 0 | K28: =((H28*I42)*1/12)+((J28*K42)*11/12) -> 0 | L28: 0 | M28: =((J28*K42)*1/12)+((L28*M42)*11/12) -> 0 | N28: 0 | O28: =((L28*M42)*1/12)+((N28*O42)*11/12) -> 0 | P28: 0 | Q28: =((N28*O42)*1/12)+((P28*Q42)*11/12) -> 0
A29: TOTAL | C29: =SUM(C26:C28) -> 0 | E29: =SUM(E26:E28) -> 0 | G29: =SUM(G26:G28) -> 0 | I29: =SUM(I26:I28) -> 0 | K29: =SUM(K26:K28) -> 0 | M29: =SUM(M26:M28) -> 0 | O29: =SUM(O26:O28) -> 0 | Q29: =SUM(Q26:Q28) -> 0
A31: STAFF REDUCTIONS (A)
A32: Administrative | B32: 0 | C32: =((B32*$C$40)*11/12) -> 0 | D32: 0 | E32: =((B32*C40)*1/12)+((D32*E40)*11/12) -> 0 | F32: 0 | G32: =((D32*E40)*1/12)+((F32*G40)*11/12) -> 0 | H32: 0 | I32: =((F32*G40)*1/12)+((H32*I40)*11/12) -> 0 | J32: 0 | K32: =((H32*I40)*1/12)+((J32*K40)*11/12) -> 0 | L32: 0 | M32: =((J32*K40)*1/12)+((L32*M40)*11/12) -> 0 | N32: 0 | O32: =((L32*M40)*1/12)+((N32*O40)*11/12) -> 0 | P32: 0 | Q32: =((N32*O40)*1/12)+((P32*Q40)*11/12) -> 0
A33: Certified | B33: 0 | C33: =((B33*$C$41)*10/12) -> 0 | D33: 0 | E33: =((B33*C41)*2/12)+((D33*E41)*10/12) -> 0 | F33: 0 | G33: =((D33*E41)*2/12)+((F33*G41)*10/12) -> 0 | H33: 0 | I33: =((F33*G41)*2/12)+((H33*I41)*10/12) -> 0 | J33: 0 | K33: =((H33*I41)*2/12)+((J33*K41)*10/12) -> 0 | L33: 0 | M33: =((J33*K41)*2/12)+((L33*M41)*10/12) -> 0 | N33: 0 | O33: =((L33*M41)*2/12)+((N33*O41)*10/12) -> 0 | P33: 0 | Q33: =((N33*O41)*2/12)+((P33*Q41)*10/12) -> 0
A34: Classified | B34: 0 | C34: =((B34*$C$42)*11/12) -> 0 | D34: 0 | E34: =((B34*C42)*1/12)+((D34*E42)*11/12) -> 0 | F34: 0 | G34: =((D34*E42)*1/12)+((F34*G42)*11/12) -> 0 | H34: 0 | I34: =((F34*G42)*1/12)+((H34*I42)*11/12) -> 0 | J34: 0 | K34: =((H34*I42)*1/12)+((J34*K42)*11/12) -> 0 | L34: 0 | M34: =((J34*K42)*1/12)+((L34*M42)*11/12) -> 0 | N34: 0 | O34: =((L34*M42)*1/12)+((N34*O42)*11/12) -> 0 | P34: 0 | Q34: =((N34*O42)*1/12)+((P34*Q42)*11/12) -> 0
A35: TOTAL | C35: =SUM(C32:C34) -> 0 | E35: =SUM(E32:E34) -> 0 | G35: =SUM(G32:G34) -> 0 | I35: =SUM(I32:I34) -> 0 | K35: =SUM(K32:K34) -> 0 | M35: =SUM(M32:M34) -> 0 | O35: =SUM(O32:O34) -> 0 | Q35: =SUM(Q32:Q34) -> 0
A37: GRAND TOTAL | C37: =C16+C23+C29+C35 -> 0 | E37: =E16+E23+E29+E35 -> 0 | G37: =G16+G23+G29+G35 -> 0 | I37: =I16+I23+I29+I35 -> 0 | K37: =K16+K23+K29+K35 -> 0 | M37: =M16+M23+M29+M35 -> 0 | O37: =O16+O23+O29+O35 -> 0 | Q37: =Q16+Q23+Q29+Q35 -> 0
A39: INPUT TABLE | C39: AVG. COST | E39: AVG. COST | G39: AVG. COST | I39: AVG. COST | K39: AVG. COST | M39: AVG. COST | O39: AVG. COST | Q39: AVG. COST
A40: Administrative | C40: 66899 | E40: =ROUND(C40*($E$44+1),0) -> 66899 | G40: =ROUND(E40*($G$44+1),0) -> 67568 | I40: =ROUND(G40*($I$44+1),0) -> 68244 | K40: =ROUND(I40*($K$44+1),0) -> 68926 | M40: =ROUND(K40*($M$44+1),0) -> 69615 | O40: =ROUND(M40*($M$44+1),0) -> 70311 | Q40: =ROUND(O40*($M$44+1),0) -> 71014
A41: Certified | C41: 46480 | E41: =ROUND(C41*($E$44+1),0) -> 46480 | G41: =ROUND(E41*($G$44+1),0) -> 46945 | I41: =ROUND(G41*($I$44+1),0) -> 47414 | K41: =ROUND(I41*($K$44+1),0) -> 47888 | M41: =ROUND(K41*($M$44+1),0) -> 48367 | O41: =ROUND(M41*($M$44+1),0) -> 48851 | Q41: =ROUND(O41*($M$44+1),0) -> 49340
A42: Classified | C42: =ROUND(C41/2,0) -> 23240 | E42: =ROUND(C42*($E$44+1),0) -> 23240 | G42: =ROUND(E42*($G$44+1),0) -> 23472 | I42: =ROUND(G42*($I$44+1),0) -> 23707 | K42: =ROUND(I42*($K$44+1),0) -> 23944 | M42: =ROUND(K42*($M$44+1),0) -> 24183 | O42: =ROUND(M42*($M$44+1),0) -> 24425 | Q42: =ROUND(O42*($M$44+1),0) -> 24669
A44: Base increases each year | C44: ** | E44: 0 | G44: 0.01 | I44: 0.01 | K44: 0.01 | M44: 0.01 | O44: 0.01 | Q44: 0.01
A49: This sheets takes costs to the Notes Sheet under Wages automatically. Just drop in the FTE and it does the rest.
A50: Remember put a negative sign "-" in front of the FTE (ie. -1) for a reduction.
A51: The wages used in the Input Table are averages from the FY2007 Cupp report then adjusted for the wage increases planned.
A52: This also means if we use averages if you cut staff at the average and don't hire back …the savings maybe different based on the staff member.
A53: Classified staff estimates above are made by dividing certificated by 2…or 50% of certificated staff. It is typically accurate.

Sheet Students
A1: =+'Front Pg'!D58 -> Liberty Local School District
A2: Enrollment from the Final October Count
A3: ="Fiscal Year 2005 through "&+'Front Pg'!E47 -> Fiscal Year 2005 through 2015
A6: NEED NUMBERS | C6: By Grade Level | I6: Projects of All Students
C7: 2005 | D7: 2006 | E7: 2007 | F7: 2008 | G7: 2009 | H7: 2010 | I7: 2011 | J7: 2012 | K7: 2013 | L7: 2014 | M7: 2015 | N7: 2016 | O7: 2017 | P7: 2018 | Q7: 2019 | R7: 2020
B8: PS | E8: 50 | F8: 51 | G8: 34 | H8: 1 | I8: 29 | J8: 29 | K8: 29 | L8: 29 | M8: 29 | N8: 29 | O8: 29 | P8: 29 | Q8: 29
B9: K | E9: 83 | F9: 96 | G9: 119 | H9: 101 | I9: 93 | J9: 93 | K9: 93 | L9: 93 | M9: 93 | N9: 93 | O9: 93 | P9: 93 | Q9: 93
B10: 1 | E10: 99 | F10: 100 | G10: 109 | H10: 119 | I10: 93 | J10: =I9 -> 93 | K10: 93 | L10: 93 | M10: 93 | N10: 93 | O10: 93 | P10: 93 | Q10: 93
B11: 2 | E11: 111 | F11: 102 | G11: 94 | H11: 103 | I11: 119 | J11: 93 | K11: 93 | L11: 93 | M11: 93 | N11: 93 | O11: 93 | P11: 93 | Q11: 93
B12: 3 | E12: 86 | F12: 105 | G12: 95 | H12: 88 | I12: 103 | J12: 119 | K12: 119 | L12: 119 | M12: 119 | N12: 119 | O12: 119 | P12: 119 | Q12: 119
B13: 4 | E13: 81 | F13: 86 | G13: 101 | H13: 89 | I13: 88 | J13: 103 | K13: 103 | L13: 103 | M13: 103 | N13: 103 | O13: 103 | P13: 103 | Q13: 103
B14: 5 | E14: 80 | F14: 82 | G14: 88 | H14: 107 | I14: 90 | J14: 88 | K14: 88 | L14: 88 | M14: 88 | N14: 88 | O14: 88 | P14: 88 | Q14: 88
B15: 6 | E15: 104 | F15: 92 | G15: 80 | H15: 92 | I15: 107 | J15: 90 | K15: 90 | L15: 90 | M15: 90 | N15: 90 | O15: 90 | P15: 90 | Q15: 90
B16: 7 | E16: 96 | F16: 106 | G16: 87 | H16: 87 | I16: 92 | J16: 107 | K16: 107 | L16: 107 | M16: 107 | N16: 107 | O16: 107 | P16: 107 | Q16: 107
B17: 8 | E17: 86 | F17: 96 | G17: 105 | H17: 88 | I17: 87 | J17: 92 | K17: 92 | L17: 92 | M17: 92 | N17: 92 | O17: 92 | P17: 92 | Q17: 92
B18: 9 | E18: 96 | F18: 89 | G18: 101 | H18: 102 | I18: 88 | J18: 87 | K18: 87 | L18: 87 | M18: 87 | N18: 87 | O18: 87 | P18: 87 | Q18: 87
B19: 10 | E19: 126 | F19: 96 | G19: 86 | H19: 97 | I19: 102 | J19: 88 | K19: 88 | L19: 88 | M19: 88 | N19: 88 | O19: 88 | P19: 88 | Q19: 88
B20: 11 | E20: 113 | F20: 135 | G20: 104 | H20: 92 | I20: 97 | J20: 102 | K20: 102 | L20: 102 | M20: 102 | N20: 102 | O20: 102 | P20: 102 | Q20: 102
B21: 12 | E21: 106 | F21: 121 | G21: 129 | H21: 98 | I21: 92 | J21: 97 | K21: 97 | L21: 97 | M21: 97 | N21: 97 | O21: 97 | P21: 97 | Q21: 97
B22: Total | C22: =SUM(C8:C21) -> 0 | D22: =SUM(D8:D21) -> 0 | E22: 1317 | F22: 1357 | G22: 1332 | H22: 1264 | I22: 1280 | J22: 1281 | K22: 1281 | L22: 1281 | M22: 1281 | N22: 1281 | O22: 1281 | P22: 1281 | Q22: 1281 | R22: 0
B24: JVs | C24: 0 | D24: 0 | E24: 0 | F24: 0 | G24: 0 | H24: 0
B25: Open | C25: 0 | D25: 0 | E25: 0 | F25: 0 | G25: 0 | H25: 0
B26: Community | C26: 0 | D26: 0 | E26: 0 | F26: 0 | G26: 0 | H26: 0
C29: 2005 | D29: 2006 | E29: 2007 | F29: 2008 | G29: 2009 | H29: 2010 | I29: 2011 | J29: 2012 | K29: 2013 | L29: 2014 | M29: 2015 | N29: 2016 | O29: 2017 | P29: 2018 | Q29: 2019 | R29: 2020
B30: Pre | C30: =C8 -> 0 | D30: 0 | E30: 50 | F30: 51 | G30: 34 | H30: 1 | I30: =I8 -> 29 | J30: 29 | K30: 29 | L30: 29 | M30: 29 | N30: 29 | O30: 29 | P30: 29 | Q30: 29 | R30: 0
B31: KG | C31: 0 | D31: 0 | E31: 83 | F31: 96 | G31: 119 | H31: 101 | I31: =I9 -> 93 | J31: 93 | K31: 93 | L31: 93 | M31: 93 | N31: 93 | O31: 93 | P31: 93 | Q31: 93 | R31: 0
B32: 1-3 | C32: =SUM(C10:C12) -> 0 | D32: 0 | E32: 296 | F32: 307 | G32: 298 | H32: 310 | I32: =SUM(I10:I12) -> 315 | J32: 305 | K32: 305 | L32: 305 | M32: 305 | N32: 305 | O32: 305 | P32: 305 | Q32: 305 | R32: 0
B33: 4-5 | C33: =SUM(C13:C14) -> 0 | D33: 0 | E33: 161 | F33: 168 | G33: 189 | H33: 196 | I33: =SUM(I13:I14) -> 178 | J33: 191 | K33: 191 | L33: 191 | M33: 191 | N33: 191 | O33: 191 | P33: 191 | Q33: 191 | R33: 0
B34: 6-8 | C34: =SUM(C15:C17) -> 0 | D34: 0 | E34: 286 | F34: 294 | G34: 272 | H34: 267 | I34: =SUM(I15:I17) -> 286 | J34: 289 | K34: 289 | L34: 289 | M34: 289 | N34: 289 | O34: 289 | P34: 289 | Q34: 289 | R34: 0
B35: 9-12 | C35: =SUM(C18:C21) -> 0 | D35: 0 | E35: 441 | F35: 441 | G35: 420 | H35: 389 | I35: =SUM(I18:I21) -> 379 | J35: 374 | K35: 374 | L35: 374 | M35: 374 | N35: 374 | O35: 374 | P35: 374 | Q35: 374 | R35: 0
C37: =SUM(C30:C35) -> 0 | D37: 0 | E37: 1317 | F37: 1357 | G37: 1332 | H37: 1264 | I37: =SUM(I30:I35) -> 1280 | J37: 1281 | K37: 1281 | L37: 1281 | M37: 1281 | N37: 1281 | O37: 1281 | P37: 1281 | Q37: 1281 | R37: 0

Sheet Graphs
B1: General Fund Revenues Versus Expenditures - All Sources and Uses
C3: A07 | D3: A08 | E3: A09 | F3: A10 | G3: ="E"&RIGHT('Front Pg'!A47,2) -> E11 | H3: ="E"&RIGHT('Front Pg'!B47,2) -> E12 | I3: ="E"&RIGHT('Front Pg'!C47,2) -> E13 | J3: ="E"&RIGHT('Front Pg'!D47,2) -> E14 | K3: ="E"&RIGHT('Front Pg'!E47,2) -> E15
B4: Revenue | C4: =+'New State Model Fcast'!E29 -> 19265720 | D4: =+'New State Model Fcast'!F29 -> 15603130 | E4: =+'New State Model Fcast'!G29 -> 16947742 | F4: =+'New State Model Fcast'!H29 -> 18893737 | G4: =+'New State Model Fcast'!J29 -> 15914904.74 | H4: =+'New State Model Fcast'!K29 -> 15295437.86 | I4: =+'New State Model Fcast'!L29 -> 14921518.84 | J4: =+'New State Model Fcast'!M29 -> 14707287.62 | K4: =+'New State Model Fcast'!N29 -> 14625244.55
B5: Expenditures | C5: =+'New State Model Fcast'!E54 -> 19179828 | D5: =+'New State Model Fcast'!F54 -> 15986932 | E5: =+'New State Model Fcast'!G54 -> 17568992 | F5: =+'New State Model Fcast'!H54 -> 18276618 | G5: =+'New State Model Fcast'!J54 -> 17450238.18 | H5: =+'New State Model Fcast'!K54 -> 17741685.63 | I5: =+'New State Model Fcast'!L54 -> 18216520.23 | J5: =+'New State Model Fcast'!M54 -> 18711173.51 | K5: =+'New State Model Fcast'!N54 -> 19055094.31
B6: Ending Bal. | C6: =+'New State Model Fcast'!E59 -> 1630171 | D6: =+'New State Model Fcast'!F59 -> 1246369 | E6: =+'New State Model Fcast'!G59 -> 625119 | F6: =+'New State Model Fcast'!H59 -> 1242238 | G6: =+'New State Model Fcast'!J59 -> -293095.4391 | H6: =+'New State Model Fcast'!K59 -> -2739343.213 | I6: =+'New State Model Fcast'!L59 -> -6034344.595 | J6: =+'New State Model Fcast'!M59 -> -10038230.49 | K6: =+'New State Model Fcast'!N59 -> -14468080.25
B35: General Fund Ending Cash Balances
C37: A07 | D37: A08 | E37: A09 | F37: A10 | G37: =+G3 -> E11 | H37: =+H3 -> E12 | I37: =+I3 -> E13 | J37: =+J3 -> E14 | K37: =+K3 -> E15
B38: 30 Day Cash Ratio | C38: =+'New State Model Fcast'!E47/12 -> 1299064.25 | D38: =+'New State Model Fcast'!F47/12 -> 1330235.667 | E38: =+'New State Model Fcast'!G47/12 -> 1451735.417 | F38: =+'New State Model Fcast'!H47/12 -> 1487687.333 | G38: =+'New State Model Fcast'!J47/12 -> 1449186.515 | H38: =+'New State Model Fcast'!K47/12 -> 1473057.136 | I38: =+'New State Model Fcast'!L47/12 -> 1512210.019 | J38: =+'New State Model Fcast'!M47/12 -> 1553014.46 | K38: =+'New State Model Fcast'!N47/12 -> 1581674.526
B39: Ending Cash Bal. | C39: =+C6 -> 1630171 | D39: 1246369 | E39: 625119 | F39: =+F6 -> 1242238 | G39: -293095.4391 | H39: -2739343.213 | I39: -6034344.595 | J39: -10038230.49 | K39: -14468080.25
B40: Unencumbered Bal. | C40: =+'New State Model Fcast'!E73 -> 1406359 | D40: =+'New State Model Fcast'!F73 -> 824346 | E40: =+'New State Model Fcast'!G73 -> 203639 | F40: =+'New State Model Fcast'!H73 -> 1031577 | G40: =+'New State Model Fcast'!J73 -> -293095.4391 | H40: =+'New State Model Fcast'!K73 -> -2950004.213 | I40: =+'New State Model Fcast'!L73 -> -6245005.595 | J40: =+'New State Model Fcast'!M73 -> -10248891.49 | K40: =+'New State Model Fcast'!N73 -> -14678741.25
B70: General Fund Local Vs. State Revenues - Revenue Receipts Only Excludes Other Financing Sources
C72: A07 | D72: A08 | E72: A09 | F72: A10 | G72: =+G3 -> E11 | H72: =+H3 -> E12 | I72: =+I3 -> E13 | J72: =+J3 -> E14 | K72: =+K3 -> E15
B73: Local Revenue | C73: =+'New State Model Fcast'!E12+'New State Model Fcast'!E13+'New State Model Fcast'!E14+'New State Model Fcast'!E19 -> 9469267 | D73: =+'New State Model Fcast'!F12+'New State Model Fcast'!F13+'New State Model Fcast'!F14+'New State Model Fcast'!F19 -> 8775922 | E73: =+'New State Model Fcast'!G12+'New State Model Fcast'!G13+'New State Model Fcast'!G14+'New State Model Fcast'!G19 -> 9059772 | F73: =+'New State Model Fcast'!H12+'New State Model Fcast'!H13+'New State Model Fcast'!H14+'New State Model Fcast'!H19 -> 9713425 | G73: =+'New State Model Fcast'!J12+'New State Model Fcast'!J13+'New State Model Fcast'!J14+'New State Model Fcast'!J19 -> 8903086.771 | H73: =+'New State Model Fcast'!K12+'New State Model Fcast'!K13+'New State Model Fcast'!K14+'New State Model Fcast'!K19 -> 8647993.791 | I73: =+'New State Model Fcast'!L12+'New State Model Fcast'!L13+'New State Model Fcast'!L14+'New State Model Fcast'!L19 -> 8452639.52 | J73: =+'New State Model Fcast'!M12+'New State Model Fcast'!M13+'New State Model Fcast'!M14+'New State Model Fcast'!M19 -> 8151087.941 | K73: =+'New State Model Fcast'!N12+'New State Model Fcast'!N13+'New State Model Fcast'!N14+'New State Model Fcast'!N19 -> 7785485.637
B74: State Revenue | C74: =+'New State Model Fcast'!E15+'New State Model Fcast'!E16+'New State Model Fcast'!E17+'New State Model Fcast'!E18 -> 6399432 | D74: =+'New State Model Fcast'!F15+'New State Model Fcast'!F16+'New State Model Fcast'!F17+'New State Model Fcast'!F18 -> 6772342 | E74: =+'New State Model Fcast'!G15+'New State Model Fcast'!G16+'New State Model Fcast'!G17+'New State Model Fcast'!G18 -> 7013002 | F74: =+'New State Model Fcast'!H15+'New State Model Fcast'!H16+'New State Model Fcast'!H17+'New State Model Fcast'!H18 -> 7101516 | G74: =+'New State Model Fcast'!J15+'New State Model Fcast'!J16+'New State Model Fcast'!J17+'New State Model Fcast'!J18 -> 7011817.97 | H74: =+'New State Model Fcast'!K15+'New State Model Fcast'!K16+'New State Model Fcast'!K17+'New State Model Fcast'!K18 -> 6647444.069 | I74: =+'New State Model Fcast'!L15+'New State Model Fcast'!L16+'New State Model Fcast'!L17+'New State Model Fcast'!L18 -> 6468879.323 | J74: =+'New State Model Fcast'!M15+'New State Model Fcast'!M16+'New State Model Fcast'!M17+'New State Model Fcast'!M18 -> 6556199.677 | K74: =+'New State Model Fcast'!N15+'New State Model Fcast'!N16+'New State Model Fcast'!N17+'New State Model Fcast'!N18 -> 6839758.912
B75: Total | C75: =+C73+C74 -> 15868699 | D75: 15548264 | E75: 16072774 | F75: =+F73+F74 -> 16814941 | G75: 15914904.74 | H75: 15295437.86 | I75: 14921518.84 | J75: 14707287.62 | K75: 14625244.55
B103: General Fund Revenue By Source - Revenue Receipts Only Excludes Other Financing Sources
E104: A09 | F104: A10 | G104: =+G3 -> E11 | H104: =+H3 -> E12 | I104: =+I3 -> E13 | J104: =+J3 -> E14 | K104: =+K3 -> E15
B105: Real Estate Taxes | E105: =+'New State Model Fcast'!G12 -> 7928867 | F105: =+'New State Model Fcast'!H12 -> 8770342 | G105: =+'New State Model Fcast'!J12 -> 7847606
B106: Tangible Property Tax | E106: =+'New State Model Fcast'!G13 -> 172823 | F106: =+'New State Model Fcast'!H13 -> 48780 | G106: =+'New State Model Fcast'!J13 -> 13980.54428
B107: Other Local | C107: =(+E107+E106+E105)/E111 -> 0.5636719586 | E107: =+'New State Model Fcast'!G19 -> 958082 | F107: =+'New State Model Fcast'!H19 -> 894303 | G107: =+'New State Model Fcast'!J19 -> 1041500.227
B108: State Foundation | E108: =+'New State Model Fcast'!G15 -> 5297121 | F108: ='New State Model Fcast'!H15+'New State Model Fcast'!H16+'New State Model Fcast'!H17 -> 5425066 | G108: ='New State Model Fcast'!J15+'New State Model Fcast'!J16+'New State Model Fcast'!J17 -> 5350425.64
B109: Other State | C109: =(E109+E108)/E111 -> 0.4363280414 | E109: =+'New State Model Fcast'!G16+'New State Model Fcast'!G18 -> 1715881 | F109: ='New State Model Fcast'!H18 -> 1676450 | G109: =+'New State Model Fcast'!J18 -> 1661392.33
B111: Total | E111: =SUM(E105:E109) -> 16072774 | F111: =SUM(F105:F109) -> 16814941 | G111: =SUM(G105:G109) -> 15914904.74
B112: ="General Fund Revenues Actual "&+'New State Model Fcast'!H9&" - "&DOLLAR(+F111,0) -> General Fund Revenues Actual 2010 - $16,814,941
B113: ="General Fund Revenues Estimated "&+'New State Model Fcast'!H9+1&" - "&DOLLAR(+G111,0) -> General Fund Revenues Estimated 2011 - $15,914,905
I115: =+E111 -> 16072774
B159: General Fund Expenditures By Source - Operating Expenses Only Excludes Other Financing Uses
E160: A09 | F160: A10 | G160: =+G3 -> E11 | H160: =+H3 -> E12 | I160: =+I3 -> E13 | J160: =+J3 -> E14 | K160: =+K3 -> E15
B161: Wages | E161: =+'New State Model Fcast'!G32 -> 7933566 | F161: =+'New State Model Fcast'!H32 -> 7516913 | G161: =+'New State Model Fcast'!J32 -> 7253818
B162: Benefits | E162: =+'New State Model Fcast'!G33 -> 3919536 | F162: =+'New State Model Fcast'!H33 -> 3740930 | G162: =+'New State Model Fcast'!J33 -> 3473269
B163: Services | E163: =+'New State Model Fcast'!G34 -> 3262870 | F163: =+'New State Model Fcast'!H34 -> 3405437 | G163: =+'New State Model Fcast'!J34 -> 4217896.98
B164: Materials | E164: =+'New State Model Fcast'!G35 -> 456696 | F164: =+'New State Model Fcast'!H35 -> 318878 | G164: =+'New State Model Fcast'!J35 -> 322067
B165: Capital | E165: =+'New State Model Fcast'!G36 -> 29404 | F165: =+'New State Model Fcast'!H36 -> 33960 | G165: =+'New State Model Fcast'!J36 -> 36337.2
B166: Other | E166: =+'New State Model Fcast'!G46 -> 1432740 | F166: =+'New State Model Fcast'!H46 -> 2401551 | G166: =+'New State Model Fcast'!J46 -> 1502000
B167: Total | E167: =SUM(E161:E166) -> 17034812 | F167: =SUM(F161:F166) -> 17417669 | G167: =SUM(G161:G166) -> 16805388.18
B216: General Fund Expenditures Actual FY07 Through Est. FY14
C218: A07 | D218: A08 | E218: A09 | F218: A10 | G218: =+G3 -> E11 | H218: =+H3 -> E12 | I218: =+I3 -> E13 | J218: =+J3 -> E14 | K218: =+K3 -> E15
B219: Wages | C219: =+'New State Model Fcast'!E32 -> 7670134 | D219: =+'New State Model Fcast'!F32 -> 8155009 | E219: =+'New State Model Fcast'!G32 -> 7933566 | F219: =+'New State Model Fcast'!H32 -> 7516913 | G219: =+'New State Model Fcast'!J32 -> 7253818 | H219: =+'New State Model Fcast'!K32 -> 7313914 | I219: =+'New State Model Fcast'!L32 -> 7438251 | J219: =+'New State Model Fcast'!M32 -> 7564701 | K219: =+'New State Model Fcast'!N32 -> 7693301
B220: Benefits | C220: =+'New State Model Fcast'!E33 -> 3418890 | D220: =+'New State Model Fcast'!F33 -> 3115650 | E220: =+'New State Model Fcast'!G33 -> 3919536 | F220: =+'New State Model Fcast'!H33 -> 3740930 | G220: =+'New State Model Fcast'!J33 -> 3473269 | H220: =+'New State Model Fcast'!K33 -> 3670487 | I220: =+'New State Model Fcast'!L33 -> 3902413 | J220: =+'New State Model Fcast'!M33 -> 4148589 | K220: =+'New State Model Fcast'!N33 -> 4411123
B221: Services | C221: =+'New State Model Fcast'!E34 -> 2158261 | D221: =+'New State Model Fcast'!F34 -> 2776176 | E221: =+'New State Model Fcast'!G34 -> 3262870 | F221: =+'New State Model Fcast'!H34 -> 3405437 | G221: =+'New State Model Fcast'!J34 -> 4217896.98 | H221: =+'New State Model Fcast'!K34 -> 4349836.831 | I221: =+'New State Model Fcast'!L34 -> 4462603.365 | J221: =+'New State Model Fcast'!M34 -> 4578531.998 | K221: =+'New State Model Fcast'!N34 -> 4697714.512
B222: Material | C222: =+'New State Model Fcast'!E35 -> 603721 | D222: =+'New State Model Fcast'!F35 -> 502654 | E222: =+'New State Model Fcast'!G35 -> 456696 | F222: =+'New State Model Fcast'!H35 -> 318878 | G222: =+'New State Model Fcast'!J35 -> 322067 | H222: =+'New State Model Fcast'!K35 -> 325288 | I222: =+'New State Model Fcast'!L35 -> 328541 | J222: =+'New State Model Fcast'!M35 -> 331826 | K222: =+'New State Model Fcast'!N35 -> 335144
B223: Capital | C223: =+'New State Model Fcast'!E36 -> 232560 | D223: =+'New State Model Fcast'!F36 -> 88983 | E223: =+'New State Model Fcast'!G36 -> 29404 | F223: =+'New State Model Fcast'!H36 -> 33960 | G223: =+'New State Model Fcast'!J36 -> 36337.2 | H223: =+'New State Model Fcast'!K36 -> 38880.804 | I223: =+'New State Model Fcast'!L36 -> 41602.46028 | J223: =+'New State Model Fcast'!M36 -> 44514.6325 | K223: =+'New State Model Fcast'!N36 -> 47630.65677
B224: Other Expenses | C224: =+'New State Model Fcast'!E46 -> 1094438 | D224: =+'New State Model Fcast'!F46 -> 948169 | E224: =+'New State Model Fcast'!G46 -> 1432740 | F224: =+'New State Model Fcast'!H46 -> 2401551 | G224: =+'New State Model Fcast'!J46 -> 1502000 | H224: =+'New State Model Fcast'!K46 -> 1400933 | I224: =+'New State Model Fcast'!L46 -> 1407841.4 | J224: =+'New State Model Fcast'!M46 -> 1414818.884 | K224: =+'New State Model Fcast'!N46 -> 1421866.143
D225: =+D226/C226-1 -> 0.02692297353 | E225: 0.09291103837 | F225: 0.02247497654 | G225: =+G226/E226-1 -> -0.01346793965 | H225: 0.01749150043 | I225: 0.02818311123 | J225: 0.0285377448 | K225: 0.02896634032
B226: total | C226: =SUM(C219:C224) -> 15178004 | D226: 15586641 | E226: 17034812 | F226: =SUM(F219:F224) -> 17417669 | G226: 16805388.18 | H226: 17099339.63 | I226: 17581252.23 | J226: 18082981.51 | K226: =SUM(K219:K224) -> 18606779.31
B260: General Fund Revenues With Replacement Levies Vs. Expenditures FY07 through FY14
C262: A07 | D262: A08 | E262: A09 | F262: A10 | G262: =+G3 -> E11 | H262: =+H3 -> E12 | I262: =+I3 -> E13 | J262: =+J3 -> E14 | K262: =+K3 -> E15
B263: Revenue W/Renewals | C263: =+'New State Model Fcast'!E29+'New State Model Fcast'!E77 -> 19265720 | D263: =+'New State Model Fcast'!F29+'New State Model Fcast'!F77 -> 15603130 | E263: =+'New State Model Fcast'!G29+'New State Model Fcast'!G77 -> 16947742 | F263: =+'New State Model Fcast'!H29+'New State Model Fcast'!H77 -> 18893737 | G263: =+'New State Model Fcast'!J29+'New State Model Fcast'!J77 -> 15914904.74 | H263: =+'New State Model Fcast'!K29+'New State Model Fcast'!K77 -> 15680591.46 | I263: =+'New State Model Fcast'!L29+'New State Model Fcast'!L77 -> 15662198.84 | J263: =+'New State Model Fcast'!M29+'New State Model Fcast'!M77 -> 15884523.74 | K263: =+'New State Model Fcast'!N29+'New State Model Fcast'!N77 -> 15802480.67
B264: Expenditures | C264: =+'New State Model Fcast'!E47 -> 15588771 | D264: =+'New State Model Fcast'!F47 -> 15962828 | E264: =+'New State Model Fcast'!G47 -> 17420825 | F264: =+'New State Model Fcast'!H47 -> 17852248 | G264: =+'New State Model Fcast'!J47 -> 17390238.18 | H264: =+'New State Model Fcast'!K47 -> 17676685.63 | I264: =+'New State Model Fcast'!L47 -> 18146520.23 | J264: =+'New State Model Fcast'!M47 -> 18636173.51 | K264: =+'New State Model Fcast'!N47 -> 18980094.31
B265: =B38 -> 30 Day Cash Ratio | C265: =C38 -> 1299064.25 | D265: 1330235.667 | E265: 1451735.417 | F265: =F38 -> 1487687.333 | G265: 1449186.515 | H265: 1473057.136 | I265: 1512210.019 | J265: 1553014.46 | K265: 1581674.526
B266: Ending Cash Balances | C266: =+'New State Model Fcast'!E59 -> 1630171 | D266: =+'New State Model Fcast'!F59 -> 1246369 | E266: =+'New State Model Fcast'!G59 -> 625119 | F266: =+'New State Model Fcast'!H59 -> 1242238 | G266: =+'New State Model Fcast'!J59 -> -293095.4391 | H266: =+'New State Model Fcast'!K59 -> -2739343.213 | I266: =+'New State Model Fcast'!L59 -> -6034344.595 | J266: =+'New State Model Fcast'!M59 -> -10038230.49 | K266: =+'New State Model Fcast'!N59 -> -14468080.25
B305: Fringe Benefit Growth FY06 Through FY14
C307: A07 | D307: A08 | E307: A09 | F307: A10 | G307: E10 | H307: E11 | I307: E12 | J307: E13 | K307: E14
B308: Fringe Benefit Costs | C308: =+'New State Model Fcast'!E33 -> 3418890 | D308: =+'New State Model Fcast'!F33 -> 3115650 | E308: =+'New State Model Fcast'!G33 -> 3919536 | F308: =+'New State Model Fcast'!H33 -> 3740930 | G308: =+'New State Model Fcast'!J33 -> 3473269 | H308: =+'New State Model Fcast'!K33 -> 3670487 | I308: =+'New State Model Fcast'!L33 -> 3902413 | J308: =+'New State Model Fcast'!M33 -> 4148589 | K308: =+'New State Model Fcast'!N33 -> 4411123
B350: Cost Per Pupil Comparison Trumbull County FY08
B351: Lord.
B352: Bloom
B353: War
B354: LLSD
B355: How
B356: St. Avg.
B357: Math
B358: Weath
B359: Champ
B360: LaBrae
B361: Niles
B362: Hub
B363: Newt
B364: Girard
B365: Maple
B366: Lakev
B367: Brook
B368: J Badger
B369: McDon
B370: Brist
B371: Southgtn
B391: A06 | C391: A07 | D391: A08 | E391: A09 | F391: A10 | G391: =+G3 -> E11 | H391: =+H3 -> E12 | I391: =+I3 -> E13 | J391: =+J3 -> E14 | K391: =+K3 -> E15
B392: 1813 | C392: 1766 | D392: 1733 | E392: 1675 | F392: 1675 | G392: 1770 | H392: =+G392*1.01 -> 1787.7 | I392: =+H392*1 -> 1787.7 | J392: =+I392*1 -> 1787.7 | K392: =+J392*1 -> 1787.7
B395: Enrollment History - Formual ADM per SF3
B397: Year
B398: FY05
B399: FY06
B400: FY07
B401: FY08
B402: FY09
B403: FY10
A427: End | B427: End | C427: End | D427: End | E427: End | F427: End | G427: End | H427: End | I427: End | J427: End | K427: End | L427: End
